{"text_format":"1","workbook":"xlsx","n_sheets":4,"sheets":["ribbon","setting","Helpsheet","Nhattrinh"],"not_rendered":{"charts":0,"images":1,"macros":1,"external_links":1,"defined_names":29,"comments":0,"pivot_tables":0},"unopened":[],"bounds":{"document_bytes":16777216,"sheet_cells":100000,"rows_first":2000,"rows_last":500,"rows_between":2000,"halvings":0,"cell_chars":16384,"cell_head_chars":4096},"cells_cut":0,"cells_raw":0,"read":"whole","date_system":"1900"}

{"sheet":"ribbon","index":0,"n_rows":269,"n_cols":21,"rows_kept":269,"cut":false,"hidden":false,"merged":[]}
["0=false","Sheet","getLabel","getScreentip","getSupertip","getTitle","getVisible","getEnabled","getPressed","getSize","imageMso"]
[{"$f":"+O2","v":"TAB001"},null,"HTQLCL",1,1,null,{"$f":"+IF(setting!$B$1,1,0)","v":1},1,1,0,null,"      <tab id=\"XXXX\" insertBeforeMso=\"TabHome\" getVisible=\"getVisible\" getLabel=\"getLabel\">","TAB",1,{"$f":"+M2&TEXT(N2,\"000\")","v":"TAB001"},{"$f":"+SUBSTITUTE(SUBSTITUTE(L2,\"XXXX\",O2),\"HappyFace\",IF(K2<>\"\",K2,\"HappyFace\"))","v":"      <tab id=\"TAB001\" insertBeforeMso=\"TabHome\" getVisible=\"getVisible\" getLabel=\"getLabel\">"}]
[{"$f":"+O3","v":"GROU001"},null,"Hệ thống",1,1,null,{"$f":"+IF(ISNUMBER(C3),0,1)","v":1},1,1,0,null,"        <group id=\"XXXX\" getVisible=\"getVisible\" getLabel=\"getLabel\">","GROU",{"$f":"+COUNTIF($M$3:M3,M3)","v":1},{"$f":"IF(B3<>\"\",IF(LEFT(B3,3)<>\"But\",\"Sel_\"&B3,B3),M3&TEXT(N3,\"000\"))","v":"GROU001"},{"$f":"+SUBSTITUTE(SUBSTITUTE(L3,\"XXXX\",O3),\"HappyFace\",IF(K3<>\"\",K3,\"HappyFace\"))","v":"        <group id=\"GROU001\" getVisible=\"getVisible\" getLabel=\"getLabel\">"}]
[{"$f":"+O4","v":"But_TaoMoi"},"But_TaoMoi","Tạo mới",{"$f":"+C4","v":"Tạo mới"},"Tạo file quản lý công trình mới",null,{"$f":"+IF(ISNUMBER(C4),0,1)","v":1},1,1,1,"FileNew","          <button id=\"XXXX\" onAction=\"onActionBUT\" getSize=\"getSize\" getVisible=\"getVisible\" getLabel=\"getLabel\" getScreentip=\"getScreentip\" getSupertip=\"getSupertip\" imageMso=\"HappyFace\" getEnabled=\"getEnabled\"/>","BUTT",{"$f":"+COUNTIF($M$3:M4,M4)","v":1},"But_TaoMoi","          <button id=\"But_TaoMoi\" onAction=\"onActionBUT\" getSize=\"getSize\" getVisible=\"getVisible\" getLabel=\"getLabel\" getScreentip=\"getScreentip\" getSupertip=\"getSupertip\" imageMso=\"FileNew\" getEnabled=\"getEnabled\"/>"]
["But_Mo","But_Mo","Mở","Mở tập tin","Mở tập tin quản lý chất lượng",null,{"$f":"+IF(ISNUMBER(C5),0,1)","v":1},1,1,1,"FileOpen","          <button id=\"XXXX\" onAction=\"onActionBUT\" getSize=\"getSize\" getVisible=\"getVisible\" getLabel=\"getLabel\" getScreentip=\"getScreentip\" getSupertip=\"getSupertip\" imageMso=\"HappyFace\" getEnabled=\"getEnabled\"/>","BUTT",{"$f":"+COUNTIF($M$3:M5,M5)","v":2},"But_Mo","          <button id=\"But_Mo\" onAction=\"onActionBUT\" getSize=\"getSize\" getVisible=\"getVisible\" getLabel=\"getLabel\" getScreentip=\"getScreentip\" getSupertip=\"getSupertip\" imageMso=\"FileOpen\" getEnabled=\"getEnabled\"/>"]
["BUTT003",null,{"$f":"+MAX($C$1:C5)+1","v":1},null,null,null,0,1,1,1,null,"          <button id=\"XXXX\" onAction=\"onActionBUT\" getSize=\"getSize\" getVisible=\"getVisible\" getLabel=\"getLabel\" getScreentip=\"getScreentip\" getSupertip=\"getSupertip\" imageMso=\"HappyFace\" getEnabled=\"getEnabled\"/>","BUTT",{"$f":"+COUNTIF($M$3:M6,M6)","v":3},"BUTT003","          <button id=\"BUTT003\" onAction=\"onActionBUT\" getSize=\"getSize\" getVisible=\"getVisible\" getLabel=\"getLabel\" getScreentip=\"getScreentip\" getSupertip=\"getSupertip\" imageMso=\"HappyFace\" getEnabled=\"getEnabled\"/>"]
["BUTT004",null,{"$f":"+MAX($C$1:C6)+1","v":2},null,null,null,0,1,1,1,null,"          <button id=\"XXXX\" onAction=\"onActionBUT\" getSize=\"getSize\" getVisible=\"getVisible\" getLabel=\"getLabel\" getScreentip=\"getScreentip\" getSupertip=\"getSupertip\" imageMso=\"HappyFace\" getEnabled=\"getEnabled\"/>","BUTT",{"$f":"+COUNTIF($M$3:M7,M7)","v":4},"BUTT004","          <button id=\"BUTT004\" onAction=\"onActionBUT\" getSize=\"getSize\" getVisible=\"getVisible\" getLabel=\"getLabel\" getScreentip=\"getScreentip\" getSupertip=\"getSupertip\" imageMso=\"HappyFace\" getEnabled=\"getEnabled\"/>"]
["SPLI001",null,{"$f":"+C9","v":"Dữ liệu"},null,null,null,{"$f":"+IF(ISNUMBER(C9),0,1)","v":1},1,1,1,null,"          <splitButton id=\"XXXX\" size=\"large\" getVisible=\"getVisible\" getEnabled=\"getEnabled\">","SPLI",{"$f":"+COUNTIF($M$3:M8,M8)","v":1},"SPLI001","          <splitButton id=\"SPLI001\" size=\"large\" getVisible=\"getVisible\" getEnabled=\"getEnabled\">"]
["But_DuLieu","But_DuLieu","Dữ liệu","Thông tin dữ liệu chương trình","Nhấn vào để đi đến các Sheet",null,1,1,1,1,"DatabaseCopyDatabaseFile","            <button id=\"XXXX\" onAction=\"onActionBUT\" getLabel=\"getLabel\" getScreentip=\"getScreentip\" getSupertip=\"getSupertip\" imageMso=\"HappyFace\" getEnabled=\"getEnabled\"/>","BUTT",{"$f":"+COUNTIF($M$3:M9,M9)","v":5},"But_DuLieu","            <button id=\"But_DuLieu\" onAction=\"onActionBUT\" getLabel=\"getLabel\" getScreentip=\"getScreentip\" getSupertip=\"getSupertip\" imageMso=\"DatabaseCopyDatabaseFile\" getEnabled=\"getEnabled\"/>"]
["MENU001",null,{"$f":"+MAX($C$1:C9)+1","v":3},null,null,null,{"$f":"+IF(ISNUMBER(C11),0,1)","v":1},1,1,1,null,"            <menu id=\"XXXX\" itemSize=\"normal\" getLabel=\"getLabel\" getScreentip=\"getScreentip\" getSupertip=\"getSupertip\" imageMso=\"HappyFace\" getEnabled=\"getEnabled\">","MENU",{"$f":"+COUNTIF($M$3:M10,M10)","v":1},"MENU001","            <menu id=\"MENU001\" itemSize=\"normal\" getLabel=\"getLabel\" getScreentip=\"getScreentip\" getSupertip=\"getSupertip\" imageMso=\"HappyFace\" getEnabled=\"getEnabled\">"]
["Sel_MaCV","MaCV","Mã công việc",{"$f":"+C11","v":"Mã công việc"},null,null,1,1,1,1,"_1","              <button id=\"XXXX\" onAction=\"onActionBUT\" getVisible=\"getVisible\" getLabel=\"getLabel\" getScreentip=\"getScreentip\" getSupertip=\"getSupertip\" imageMso=\"HappyFace\" getEnabled=\"getEnabled\"/>","BUTT",{"$f":"+COUNTIF($M$3:M11,M11)","v":6},"Sel_MaCV","              <button id=\"Sel_MaCV\" onAction=\"onActionBUT\" getVisible=\"getVisible\" getLabel=\"getLabel\" getScreentip=\"getScreentip\" getSupertip=\"getSupertip\" imageMso=\"_1\" getEnabled=\"getEnabled\"/>"]
["Sel_TCNT","TCNT","Tiêu chuẩn nghiệm thu","Tiêu chuẩn nghiệm thu",null,null,1,1,1,1,"_2","              <button id=\"XXXX\" onAction=\"onActionBUT\" getVisible=\"getVisible\" getLabel=\"getLabel\" getScreentip=\"getScreentip\" getSupertip=\"getSupertip\" imageMso=\"HappyFace\" getEnabled=\"getEnabled\"/>","BUTT",{"$f":"+COUNTIF($M$3:M12,M12)","v":7},"Sel_TCNT","              <button id=\"Sel_TCNT\" onAction=\"onActionBUT\" getVisible=\"getVisible\" getLabel=\"getLabel\" getScreentip=\"getScreentip\" getSupertip=\"getSupertip\" imageMso=\"_2\" getEnabled=\"getEnabled\"/>"]
["Sel_MaBBKT","MaBBKT","Danh mục biên bản kiểm tra","Danh mục biên bản kiểm tra",null,null,1,1,1,0,"_3","              <button id=\"XXXX\" onAction=\"onActionBUT\" getVisible=\"getVisible\" getLabel=\"getLabel\" getScreentip=\"getScreentip\" getSupertip=\"getSupertip\" imageMso=\"HappyFace\" getEnabled=\"getEnabled\"/>","BUTT",{"$f":"+COUNTIF($M$3:M13,M13)","v":8},"Sel_MaBBKT","              <button id=\"Sel_MaBBKT\" onAction=\"onActionBUT\" getVisible=\"getVisible\" getLabel=\"getLabel\" getScreentip=\"getScreentip\" getSupertip=\"getSupertip\" imageMso=\"_3\" getEnabled=\"getEnabled\"/>"]
["Sel_MaTN","MaTN","Mã thí nghiệm","Mã thí nghiệm",null,null,1,1,1,0,"_4","              <button id=\"XXXX\" onAction=\"onActionBUT\" getVisible=\"getVisible\" getLabel=\"getLabel\" getScreentip=\"getScreentip\" getSupertip=\"getSupertip\" imageMso=\"HappyFace\" getEnabled=\"getEnabled\"/>","BUTT",{"$f":"+COUNTIF($M$3:M14,M14)","v":9},"Sel_MaTN","              <button id=\"Sel_MaTN\" onAction=\"onActionBUT\" getVisible=\"getVisible\" getLabel=\"getLabel\" getScreentip=\"getScreentip\" getSupertip=\"getSupertip\" imageMso=\"_4\" getEnabled=\"getEnabled\"/>"]
["Sel_KQTN","KQTN","Kết quả thí nghiệm","Kết quả thí nghiệm",null,null,1,1,1,0,"_5","              <button id=\"XXXX\" onAction=\"onActionBUT\" getVisible=\"getVisible\" getLabel=\"getLabel\" getScreentip=\"getScreentip\" getSupertip=\"getSupertip\" imageMso=\"HappyFace\" getEnabled=\"getEnabled\"/>","BUTT",{"$f":"+COUNTIF($M$3:M15,M15)","v":10},"Sel_KQTN","              <button id=\"Sel_KQTN\" onAction=\"onActionBUT\" getVisible=\"getVisible\" getLabel=\"getLabel\" getScreentip=\"getScreentip\" getSupertip=\"getSupertip\" imageMso=\"_5\" getEnabled=\"getEnabled\"/>"]
["Sel_tbDinhmuc","tbDinhmuc","Định mức","Định mức",null,null,1,1,1,0,"_6","              <button id=\"XXXX\" onAction=\"onActionBUT\" getVisible=\"getVisible\" getLabel=\"getLabel\" getScreentip=\"getScreentip\" getSupertip=\"getSupertip\" imageMso=\"HappyFace\" getEnabled=\"getEnabled\"/>","BUTT",{"$f":"+COUNTIF($M$3:M16,M16)","v":11},"Sel_tbDinhmuc","              <button id=\"Sel_tbDinhmuc\" onAction=\"onActionBUT\" getVisible=\"getVisible\" getLabel=\"getLabel\" getScreentip=\"getScreentip\" getSupertip=\"getSupertip\" imageMso=\"_6\" getEnabled=\"getEnabled\"/>"]
["Sel_tbGiaCamay","tbGiaCamay","Danh mục máy thi công","Danh mục máy thi công",null,null,1,1,1,0,"_7","              <button id=\"XXXX\" onAction=\"onActionBUT\" getVisible=\"getVisible\" getLabel=\"getLabel\" getScreentip=\"getScreentip\" getSupertip=\"getSupertip\" imageMso=\"HappyFace\" getEnabled=\"getEnabled\"/>","BUTT",{"$f":"+COUNTIF($M$3:M17,M17)","v":12},"Sel_tbGiaCamay","              <button id=\"Sel_tbGiaCamay\" onAction=\"onActionBUT\" getVisible=\"getVisible\" getLabel=\"getLabel\" getScreentip=\"getScreentip\" getSupertip=\"getSupertip\" imageMso=\"_7\" getEnabled=\"getEnabled\"/>"]
["Sel_tbTHmay","tbTHmay","Định mức máy thi công","Định mức máy thi công",null,null,1,1,1,0,"_8","              <button id=\"XXXX\" onAction=\"onActionBUT\" getVisible=\"getVisible\" getLabel=\"getLabel\" getScreentip=\"getScreentip\" getSupertip=\"getSupertip\" imageMso=\"HappyFace\" getEnabled=\"getEnabled\"/>","BUTT",{"$f":"+COUNTIF($M$3:M18,M18)","v":13},"Sel_tbTHmay","              <button id=\"Sel_tbTHmay\" onAction=\"onActionBUT\" getVisible=\"getVisible\" getLabel=\"getLabel\" getScreentip=\"getScreentip\" getSupertip=\"getSupertip\" imageMso=\"_8\" getEnabled=\"getEnabled\"/>"]
["Sel_Config","Config","Khung giờ nghiệm thu","Khung giờ nghiệm thu",null,null,1,1,1,0,"_9","              <button id=\"XXXX\" onAction=\"onActionBUT\" getVisible=\"getVisible\" getLabel=\"getLabel\" getScreentip=\"getScreentip\" getSupertip=\"getSupertip\" imageMso=\"HappyFace\" getEnabled=\"getEnabled\"/>","BUTT",{"$f":"+COUNTIF($M$3:M19,M19)","v":14},"Sel_Config","              <button id=\"Sel_Config\" onAction=\"onActionBUT\" getVisible=\"getVisible\" getLabel=\"getLabel\" getScreentip=\"getScreentip\" getSupertip=\"getSupertip\" imageMso=\"_9\" getEnabled=\"getEnabled\"/>"]
[null,null,{"$f":"+MAX($C$1:C19)+1","v":4},null,null,null,0,null,null,null,null,"            </menu>",null,{"$f":"+COUNTIF($M$3:M20,M20)","v":0},"000",{"$f":"+SUBSTITUTE(SUBSTITUTE(L20,\"XXXX\",O20),\"HappyFace\",IF(K20<>\"\",K20,\"HappyFace\"))","v":"            </menu>"}]
[null,null,{"$f":"+MAX($C$1:C20)+1","v":5},null,null,null,0,null,null,null,null,"          </splitButton>",null,{"$f":"+COUNTIF($M$3:M21,M21)","v":0},"000","          </splitButton>"]
["But_CaiDatHeThong","But_CaiDatHeThong",null,null,null,null,null,null,null,null,null,"          <dialogBoxLauncher><button id=\"XXXX\" onAction=\"onActionBUT\"/></dialogBoxLauncher>","BUTT",{"$f":"+COUNTIF($M$3:M22,M22)","v":15},"But_CaiDatHeThong","          <dialogBoxLauncher><button id=\"But_CaiDatHeThong\" onAction=\"onActionBUT\"/></dialogBoxLauncher>"]
[null,null,{"$f":"+MAX($C$1:C21)+1","v":6},null,null,null,0,null,null,null,null,"        </group>",null,{"$f":"+COUNTIF($M$3:M23,M23)","v":0},"000","        </group>"]
[{"$f":"+O24","v":"GROU002"},null,"Thông tin",{"$f":"+C24","v":"Thông tin"},null,null,1,1,1,0,null,"        <group id=\"XXXX\" getVisible=\"getVisible\" getLabel=\"getLabel\">","GROU",{"$f":"+COUNTIF($M$3:M24,M24)","v":2},"GROU002","        <group id=\"GROU002\" getVisible=\"getVisible\" getLabel=\"getLabel\">"]
[{"$f":"+O25","v":"Sel_Thongtin"},"Thongtin","Thông tin chung","Thông tin chung","Thông tin công trình, chủ đầu tư,\nĐơn vị: giám sát, thi công, thí nghiệm",null,1,1,1,1,"FunctionsRecentlyUsedtInsertGallery","          <button id=\"XXXX\" onAction=\"onActionBUT\" getSize=\"getSize\" getVisible=\"getVisible\" getLabel=\"getLabel\" getScreentip=\"getScreentip\" getSupertip=\"getSupertip\" imageMso=\"HappyFace\" getEnabled=\"getEnabled\"/>","BUTT",{"$f":"+COUNTIF($M$3:M25,M25)","v":16},"Sel_Thongtin","          <button id=\"Sel_Thongtin\" onAction=\"onActionBUT\" getSize=\"getSize\" getVisible=\"getVisible\" getLabel=\"getLabel\" getScreentip=\"getScreentip\" getSupertip=\"getSupertip\" imageMso=\"FunctionsRecentlyUsedtInsertGallery\" getEnabled=\"getEnabled\"/>"]
["BUTT017",null,{"$f":"+MAX($C$1:C25)+1","v":7},null,null,null,0,1,1,1,null,"          <button id=\"XXXX\" onAction=\"onActionBUT\" getSize=\"getSize\" getVisible=\"getVisible\" getLabel=\"getLabel\" getScreentip=\"getScreentip\" getSupertip=\"getSupertip\" imageMso=\"HappyFace\" getEnabled=\"getEnabled\"/>","BUTT",{"$f":"+COUNTIF($M$3:M26,M26)","v":17},"BUTT017","          <button id=\"BUTT017\" onAction=\"onActionBUT\" getSize=\"getSize\" getVisible=\"getVisible\" getLabel=\"getLabel\" getScreentip=\"getScreentip\" getSupertip=\"getSupertip\" imageMso=\"HappyFace\" getEnabled=\"getEnabled\"/>"]
["BUTT018",null,{"$f":"+MAX($C$1:C26)+1","v":8},null,null,null,0,1,1,1,null,"          <button id=\"XXXX\" onAction=\"onActionBUT\" getSize=\"getSize\" getVisible=\"getVisible\" getLabel=\"getLabel\" getScreentip=\"getScreentip\" getSupertip=\"getSupertip\" imageMso=\"HappyFace\" getEnabled=\"getEnabled\"/>","BUTT",{"$f":"+COUNTIF($M$3:M27,M27)","v":18},"BUTT018","          <button id=\"BUTT018\" onAction=\"onActionBUT\" getSize=\"getSize\" getVisible=\"getVisible\" getLabel=\"getLabel\" getScreentip=\"getScreentip\" getSupertip=\"getSupertip\" imageMso=\"HappyFace\" getEnabled=\"getEnabled\"/>"]
["BUTT019",null,{"$f":"+MAX($C$1:C27)+1","v":9},null,null,null,0,1,1,1,null,"          <button id=\"XXXX\" onAction=\"onActionBUT\" getSize=\"getSize\" getVisible=\"getVisible\" getLabel=\"getLabel\" getScreentip=\"getScreentip\" getSupertip=\"getSupertip\" imageMso=\"HappyFace\" getEnabled=\"getEnabled\"/>","BUTT",{"$f":"+COUNTIF($M$3:M28,M28)","v":19},"BUTT019","          <button id=\"BUTT019\" onAction=\"onActionBUT\" getSize=\"getSize\" getVisible=\"getVisible\" getLabel=\"getLabel\" getScreentip=\"getScreentip\" getSupertip=\"getSupertip\" imageMso=\"HappyFace\" getEnabled=\"getEnabled\"/>"]
["SPLI002",null,{"$f":"+C30","v":"Thời tiết"},{"$f":"+C29","v":"Thời tiết"},"Dữ liệu thời tiết\nNgày nghỉ\nNhân lực thi công",null,{"$f":"+IF(ISNUMBER(C30),0,1)","v":1},1,1,1,null,"          <splitButton id=\"XXXX\" size=\"large\" getVisible=\"getVisible\" getEnabled=\"getEnabled\">","SPLI",{"$f":"+COUNTIF($M$3:M29,M29)","v":2},"SPLI002","          <splitButton id=\"SPLI002\" size=\"large\" getVisible=\"getVisible\" getEnabled=\"getEnabled\">"]
["But_ThoiTiet","But_ThoiTiet","Thời tiết","Thời tiết","Nhấn vào để di chuyển đến các sheet tương ứng",null,1,1,1,1,"PictureBrightnessGallery","            <button id=\"XXXX\" onAction=\"onActionBUT\" getLabel=\"getLabel\" getScreentip=\"getScreentip\" getSupertip=\"getSupertip\" imageMso=\"HappyFace\" getEnabled=\"getEnabled\"/>","BUTT",{"$f":"+COUNTIF($M$3:M30,M30)","v":20},"But_ThoiTiet","            <button id=\"But_ThoiTiet\" onAction=\"onActionBUT\" getLabel=\"getLabel\" getScreentip=\"getScreentip\" getSupertip=\"getSupertip\" imageMso=\"PictureBrightnessGallery\" getEnabled=\"getEnabled\"/>"]
["MENU002",null,{"$f":"+MAX($C$1:C30)+1","v":10},null,null,null,{"$f":"+IF(ISNUMBER(C32),0,1)","v":1},1,1,1,null,"            <menu id=\"XXXX\" itemSize=\"normal\" getLabel=\"getLabel\" getScreentip=\"getScreentip\" getSupertip=\"getSupertip\" imageMso=\"HappyFace\" getEnabled=\"getEnabled\">","MENU",{"$f":"+COUNTIF($M$3:M31,M31)","v":2},"MENU002","            <menu id=\"MENU002\" itemSize=\"normal\" getLabel=\"getLabel\" getScreentip=\"getScreentip\" getSupertip=\"getSupertip\" imageMso=\"HappyFace\" getEnabled=\"getEnabled\">"]
["Sel_tb_Thoitiet","tb_Thoitiet","Thời tiết thi công",{"$f":"+C32","v":"Thời tiết thi công"},"Bảng dữ liệu thời tiết thi công, ngày nghỉ, nhân công",null,1,1,1,1,"PictureBrightnessGallery","              <button id=\"XXXX\" onAction=\"onActionBUT\" getVisible=\"getVisible\" getLabel=\"getLabel\" getScreentip=\"getScreentip\" getSupertip=\"getSupertip\" imageMso=\"HappyFace\" getEnabled=\"getEnabled\"/>","BUTT",{"$f":"+COUNTIF($M$3:M32,M32)","v":21},"Sel_tb_Thoitiet","              <button id=\"Sel_tb_Thoitiet\" onAction=\"onActionBUT\" getVisible=\"getVisible\" getLabel=\"getLabel\" getScreentip=\"getScreentip\" getSupertip=\"getSupertip\" imageMso=\"PictureBrightnessGallery\" getEnabled=\"getEnabled\"/>"]
["But_CapNhatThoiTiet","But_CapNhatThoiTiet","Cập nhật thời tiết","Cập nhật thời tiết","Cập nhật lại dữ liệu thời tiết tại địa điểm thi công",null,1,1,1,1,"TableIndexes","              <button id=\"XXXX\" onAction=\"onActionBUT\" getVisible=\"getVisible\" getLabel=\"getLabel\" getScreentip=\"getScreentip\" getSupertip=\"getSupertip\" imageMso=\"HappyFace\" getEnabled=\"getEnabled\"/>","BUTT",{"$f":"+COUNTIF($M$3:M33,M33)","v":22},"But_CapNhatThoiTiet","              <button id=\"But_CapNhatThoiTiet\" onAction=\"onActionBUT\" getVisible=\"getVisible\" getLabel=\"getLabel\" getScreentip=\"getScreentip\" getSupertip=\"getSupertip\" imageMso=\"TableIndexes\" getEnabled=\"getEnabled\"/>"]
["Sel_DataWeather","DataWeather","Trạm quan trắc","Trạm quan trắc","Dữ liệu trạm quan trắc thời tiết các tỉnh thành, địa phương",null,1,1,1,0,"ShowTimeZones","              <button id=\"XXXX\" onAction=\"onActionBUT\" getVisible=\"getVisible\" getLabel=\"getLabel\" getScreentip=\"getScreentip\" getSupertip=\"getSupertip\" imageMso=\"HappyFace\" getEnabled=\"getEnabled\"/>","BUTT",{"$f":"+COUNTIF($M$3:M34,M34)","v":23},"Sel_DataWeather","              <button id=\"Sel_DataWeather\" onAction=\"onActionBUT\" getVisible=\"getVisible\" getLabel=\"getLabel\" getScreentip=\"getScreentip\" getSupertip=\"getSupertip\" imageMso=\"ShowTimeZones\" getEnabled=\"getEnabled\"/>"]
[null,null,{"$f":"+MAX($C$1:C34)+1","v":11},null,null,null,{"$f":"+IF(ISNUMBER(C35),0,1)","v":0},null,null,null,null,"            </menu>",null,null,{"$f":"IF(B35<>\"\",IF(LEFT(B35,3)<>\"But\",\"Sel_\"&B35,B35),M35&TEXT(N35,\"000\"))","v":"000"},{"$f":"+SUBSTITUTE(SUBSTITUTE(L35,\"XXXX\",O35),\"HappyFace\",IF(K35<>\"\",K35,\"HappyFace\"))","v":"            </menu>"}]
[null,null,{"$f":"+MAX($C$1:C35)+1","v":12},null,null,null,0,null,null,null,null,"          </splitButton>",null,null,"000","          </splitButton>"]
[{"$f":"+O37","v":"SPLI003"},null,{"$f":"+C38","v":"Dữ liệu công trình"},null,null,null,{"$f":"+IF(ISNUMBER(C38),0,1)","v":1},1,1,1,null,"          <splitButton id=\"XXXX\" size=\"large\" getVisible=\"getVisible\" getEnabled=\"getEnabled\">","SPLI",{"$f":"+COUNTIF($M$3:M37,M37)","v":3},"SPLI003","          <splitButton id=\"SPLI003\" size=\"large\" getVisible=\"getVisible\" getEnabled=\"getEnabled\">"]
["But_DuLieuCongTrinh","But_DuLieuCongTrinh","Dữ liệu công trình",{"$f":"+C38","v":"Dữ liệu công trình"},"Nhấn vào để di chuyển đến các sheet tương ứng",null,1,1,1,1,"TranslationToolTip","            <button id=\"XXXX\" onAction=\"onActionBUT\" getLabel=\"getLabel\" getScreentip=\"getScreentip\" getSupertip=\"getSupertip\" imageMso=\"HappyFace\" getEnabled=\"getEnabled\"/>","BUTT",{"$f":"+COUNTIF($M$3:M38,M38)","v":24},"But_DuLieuCongTrinh","            <button id=\"But_DuLieuCongTrinh\" onAction=\"onActionBUT\" getLabel=\"getLabel\" getScreentip=\"getScreentip\" getSupertip=\"getSupertip\" imageMso=\"TranslationToolTip\" getEnabled=\"getEnabled\"/>"]
["MENU003",null,{"$f":"+MAX($C$1:C38)+1","v":13},null,null,null,{"$f":"+IF(ISNUMBER(C40),0,1)","v":1},1,1,1,null,"            <menu id=\"XXXX\" itemSize=\"normal\" getLabel=\"getLabel\" getScreentip=\"getScreentip\" getSupertip=\"getSupertip\" imageMso=\"HappyFace\" getEnabled=\"getEnabled\">","MENU",{"$f":"+COUNTIF($M$3:M39,M39)","v":3},"MENU003","            <menu id=\"MENU003\" itemSize=\"normal\" getLabel=\"getLabel\" getScreentip=\"getScreentip\" getSupertip=\"getSupertip\" imageMso=\"HappyFace\" getEnabled=\"getEnabled\">"]
["Sel_TPCPBT","TPCPBT","Dữ liệu cấp phối",{"$f":"+C40","v":"Dữ liệu cấp phối"},"Dữ liệu thiết kế cấp phối bê tông",null,1,1,1,1,"_1","              <button id=\"XXXX\" onAction=\"onActionBUT\" getVisible=\"getVisible\" getLabel=\"getLabel\" getScreentip=\"getScreentip\" getSupertip=\"getSupertip\" imageMso=\"HappyFace\" getEnabled=\"getEnabled\"/>","BUTT",{"$f":"+COUNTIF($M$3:M40,M40)","v":25},"Sel_TPCPBT","              <button id=\"Sel_TPCPBT\" onAction=\"onActionBUT\" getVisible=\"getVisible\" getLabel=\"getLabel\" getScreentip=\"getScreentip\" getSupertip=\"getSupertip\" imageMso=\"_1\" getEnabled=\"getEnabled\"/>"]
["Sel_Vatlieu","Vatlieu","Dữ liệu vật liệu","Dữ liệu vật liệu","Dữ liệu nghiệm thu vật liệu đầu vào",null,1,1,1,1,"_2","              <button id=\"XXXX\" onAction=\"onActionBUT\" getVisible=\"getVisible\" getLabel=\"getLabel\" getScreentip=\"getScreentip\" getSupertip=\"getSupertip\" imageMso=\"HappyFace\" getEnabled=\"getEnabled\"/>","BUTT",{"$f":"+COUNTIF($M$3:M41,M41)","v":26},"Sel_Vatlieu","              <button id=\"Sel_Vatlieu\" onAction=\"onActionBUT\" getVisible=\"getVisible\" getLabel=\"getLabel\" getScreentip=\"getScreentip\" getSupertip=\"getSupertip\" imageMso=\"_2\" getEnabled=\"getEnabled\"/>"]
["Sel_TbVatlieu","TbVatlieu","Bảng thống kê vật liệu","Bảng thống kê vật liệu",null,null,1,1,1,0,"_3","              <button id=\"XXXX\" onAction=\"onActionBUT\" getVisible=\"getVisible\" getLabel=\"getLabel\" getScreentip=\"getScreentip\" getSupertip=\"getSupertip\" imageMso=\"HappyFace\" getEnabled=\"getEnabled\"/>","BUTT",{"$f":"+COUNTIF($M$3:M42,M42)","v":27},"Sel_TbVatlieu","              <button id=\"Sel_TbVatlieu\" onAction=\"onActionBUT\" getVisible=\"getVisible\" getLabel=\"getLabel\" getScreentip=\"getScreentip\" getSupertip=\"getSupertip\" imageMso=\"_3\" getEnabled=\"getEnabled\"/>"]
["Sel_TbKTHH_HM","TbKTHH_HM","Dữ liệu KTHH đào đất hố móng","Dữ liệu KTHH đào đất hố móng","Dữ liệu đào đất nền đường, đào móng, ….",null,1,1,1,0,"_4","              <button id=\"XXXX\" onAction=\"onActionBUT\" getVisible=\"getVisible\" getLabel=\"getLabel\" getScreentip=\"getScreentip\" getSupertip=\"getSupertip\" imageMso=\"HappyFace\" getEnabled=\"getEnabled\"/>","BUTT",{"$f":"+COUNTIF($M$3:M43,M43)","v":28},"Sel_TbKTHH_HM","              <button id=\"Sel_TbKTHH_HM\" onAction=\"onActionBUT\" getVisible=\"getVisible\" getLabel=\"getLabel\" getScreentip=\"getScreentip\" getSupertip=\"getSupertip\" imageMso=\"_4\" getEnabled=\"getEnabled\"/>"]
["Sel_TbKTHH_Dap","TbKTHH_Dap","Dữ liệu KTHH đắp đất","Dữ liệu KTHH đắp đất","Dữ liệu đắp đất nền đường, đắp móng, ….",null,1,1,1,0,"_5","              <button id=\"XXXX\" onAction=\"onActionBUT\" getVisible=\"getVisible\" getLabel=\"getLabel\" getScreentip=\"getScreentip\" getSupertip=\"getSupertip\" imageMso=\"HappyFace\" getEnabled=\"getEnabled\"/>","BUTT",{"$f":"+COUNTIF($M$3:M44,M44)","v":29},"Sel_TbKTHH_Dap","              <button id=\"Sel_TbKTHH_Dap\" onAction=\"onActionBUT\" getVisible=\"getVisible\" getLabel=\"getLabel\" getScreentip=\"getScreentip\" getSupertip=\"getSupertip\" imageMso=\"_5\" getEnabled=\"getEnabled\"/>"]
["Sel_TbDongCoc","TbDongCoc","Dữ liệu đóng cọc bê tông (BS)","Dữ liệu đóng cọc bê tông (BS)","Dữ liệu đóng cọc bê tông",null,1,1,1,0,"_6","              <button id=\"XXXX\" onAction=\"onActionBUT\" getVisible=\"getVisible\" getLabel=\"getLabel\" getScreentip=\"getScreentip\" getSupertip=\"getSupertip\" imageMso=\"HappyFace\" getEnabled=\"getEnabled\"/>","BUTT",{"$f":"+COUNTIF($M$3:M45,M45)","v":30},"Sel_TbDongCoc","              <button id=\"Sel_TbDongCoc\" onAction=\"onActionBUT\" getVisible=\"getVisible\" getLabel=\"getLabel\" getScreentip=\"getScreentip\" getSupertip=\"getSupertip\" imageMso=\"_6\" getEnabled=\"getEnabled\"/>"]
["Sel_TbKhoanCoc","TbKhoanCoc","Dữ liệu khoan cọc bê tông (BS)","Dữ liệu khoan cọc bê tông (BS)","Dữ liệu khoan cọc xi măng đất….",null,1,1,1,0,"_7","              <button id=\"XXXX\" onAction=\"onActionBUT\" getVisible=\"getVisible\" getLabel=\"getLabel\" getScreentip=\"getScreentip\" getSupertip=\"getSupertip\" imageMso=\"HappyFace\" getEnabled=\"getEnabled\"/>","BUTT",{"$f":"+COUNTIF($M$3:M46,M46)","v":31},"Sel_TbKhoanCoc","              <button id=\"Sel_TbKhoanCoc\" onAction=\"onActionBUT\" getVisible=\"getVisible\" getLabel=\"getLabel\" getScreentip=\"getScreentip\" getSupertip=\"getSupertip\" imageMso=\"_7\" getEnabled=\"getEnabled\"/>"]
["Sel_TbDongCuTram","TbDongCuTram","Dữ liệu đóng cừ tràm (BS)","Dữ liệu đóng cừ tràm (BS)","Dữ liệu đóng cừ tràm",null,1,1,1,0,"_8","              <button id=\"XXXX\" onAction=\"onActionBUT\" getVisible=\"getVisible\" getLabel=\"getLabel\" getScreentip=\"getScreentip\" getSupertip=\"getSupertip\" imageMso=\"HappyFace\" getEnabled=\"getEnabled\"/>","BUTT",{"$f":"+COUNTIF($M$3:M47,M47)","v":32},"Sel_TbDongCuTram","              <button id=\"Sel_TbDongCuTram\" onAction=\"onActionBUT\" getVisible=\"getVisible\" getLabel=\"getLabel\" getScreentip=\"getScreentip\" getSupertip=\"getSupertip\" imageMso=\"_8\" getEnabled=\"getEnabled\"/>"]
["Sel_TbKTHH_Cp","TbKTHH_Cp","Dữ liệu cốt pha","Dữ liệu cốt pha","Dữ liệu lắp đặt ván khuôn",null,1,1,1,0,"_9","              <button id=\"XXXX\" onAction=\"onActionBUT\" getVisible=\"getVisible\" getLabel=\"getLabel\" getScreentip=\"getScreentip\" getSupertip=\"getSupertip\" imageMso=\"HappyFace\" getEnabled=\"getEnabled\"/>","BUTT",{"$f":"+COUNTIF($M$3:M48,M48)","v":33},"Sel_TbKTHH_Cp","              <button id=\"Sel_TbKTHH_Cp\" onAction=\"onActionBUT\" getVisible=\"getVisible\" getLabel=\"getLabel\" getScreentip=\"getScreentip\" getSupertip=\"getSupertip\" imageMso=\"_9\" getEnabled=\"getEnabled\"/>"]
["Sel_TbKTHH_Ct","TbKTHH_Ct","Dữ liệu cốt thép","Dữ liệu cốt thép","Dữ liệu lắp đặt cốt thép",null,1,1,1,0,"_0","              <button id=\"XXXX\" onAction=\"onActionBUT\" getVisible=\"getVisible\" getLabel=\"getLabel\" getScreentip=\"getScreentip\" getSupertip=\"getSupertip\" imageMso=\"HappyFace\" getEnabled=\"getEnabled\"/>","BUTT",{"$f":"+COUNTIF($M$3:M49,M49)","v":34},"Sel_TbKTHH_Ct","              <button id=\"Sel_TbKTHH_Ct\" onAction=\"onActionBUT\" getVisible=\"getVisible\" getLabel=\"getLabel\" getScreentip=\"getScreentip\" getSupertip=\"getSupertip\" imageMso=\"_0\" getEnabled=\"getEnabled\"/>"]
["Sel_TbKTHH_BT","TbKTHH_BT","Dữ liệu KTHH bê tông",{"$f":"+C50","v":"Dữ liệu KTHH bê tông"},"Dữ liệu kích thước hình học",null,1,1,1,0,"_1","              <button id=\"XXXX\" onAction=\"onActionBUT\" getVisible=\"getVisible\" getLabel=\"getLabel\" getScreentip=\"getScreentip\" getSupertip=\"getSupertip\" imageMso=\"HappyFace\" getEnabled=\"getEnabled\"/>","BUTT",{"$f":"+COUNTIF($M$3:M50,M50)","v":35},"Sel_TbKTHH_BT","              <button id=\"Sel_TbKTHH_BT\" onAction=\"onActionBUT\" getVisible=\"getVisible\" getLabel=\"getLabel\" getScreentip=\"getScreentip\" getSupertip=\"getSupertip\" imageMso=\"_1\" getEnabled=\"getEnabled\"/>"]
["Sel_TbKTHH_SDD","TbKTHH_SDD","Dữ liệu sổ đo đạc (BS)",{"$f":"+C51","v":"Dữ liệu sổ đo đạc (BS)"},"Dữ liệu sổ đo đạc kích thước hình học",null,1,1,1,0,"_2","              <button id=\"XXXX\" onAction=\"onActionBUT\" getVisible=\"getVisible\" getLabel=\"getLabel\" getScreentip=\"getScreentip\" getSupertip=\"getSupertip\" imageMso=\"HappyFace\" getEnabled=\"getEnabled\"/>","BUTT",{"$f":"+COUNTIF($M$3:M51,M51)","v":36},"Sel_TbKTHH_SDD","              <button id=\"Sel_TbKTHH_SDD\" onAction=\"onActionBUT\" getVisible=\"getVisible\" getLabel=\"getLabel\" getScreentip=\"getScreentip\" getSupertip=\"getSupertip\" imageMso=\"_2\" getEnabled=\"getEnabled\"/>"]
[null,null,{"$f":"+MAX($C$1:C51)+1","v":14},null,null,null,0,null,null,null,null,"            </menu>",null,null,"000","            </menu>"]
[null,null,{"$f":"+MAX($C$1:C52)+1","v":15},null,null,null,0,null,null,null,null,"          </splitButton>",null,null,"000","          </splitButton>"]
[{"$f":"+O54","v":"But_CaiDatThongTin"},"But_CaiDatThongTin",null,null,null,null,null,null,null,null,null,"          <dialogBoxLauncher><button id=\"XXXX\" onAction=\"onActionBUT\"/></dialogBoxLauncher>","BUTT",{"$f":"+COUNTIF($M$3:M54,M54)","v":37},"But_CaiDatThongTin","          <dialogBoxLauncher><button id=\"But_CaiDatThongTin\" onAction=\"onActionBUT\"/></dialogBoxLauncher>"]
[null,null,{"$f":"+MAX($C$1:C53)+1","v":16},null,null,null,0,null,null,null,null,"        </group>",null,null,"000","        </group>"]
[{"$f":"+O56","v":"GROU003"},null,"Hạng mục thi công",{"$f":"+C56","v":"Hạng mục thi công"},null,null,1,1,1,0,null,"        <group id=\"XXXX\" getVisible=\"getVisible\" getLabel=\"getLabel\">","GROU",{"$f":"+COUNTIF($M$3:M56,M56)","v":3},"GROU003","        <group id=\"GROU003\" getVisible=\"getVisible\" getLabel=\"getLabel\">"]
[{"$f":"+O57","v":"Sel_Nhattrinh"},"Nhattrinh","Nhật trình","Nhật trình","Bảng dữ liệu công việc thi công",null,1,1,1,1,"OpenStartPage","          <button id=\"XXXX\" onAction=\"onActionBUT\" getSize=\"getSize\" getVisible=\"getVisible\" getLabel=\"getLabel\" getScreentip=\"getScreentip\" getSupertip=\"getSupertip\" imageMso=\"HappyFace\" getEnabled=\"getEnabled\"/>","BUTT",{"$f":"+COUNTIF($M$3:M57,M57)","v":38},"Sel_Nhattrinh","          <button id=\"Sel_Nhattrinh\" onAction=\"onActionBUT\" getSize=\"getSize\" getVisible=\"getVisible\" getLabel=\"getLabel\" getScreentip=\"getScreentip\" getSupertip=\"getSupertip\" imageMso=\"OpenStartPage\" getEnabled=\"getEnabled\"/>"]
["But_Kiemtrangay","But_Kiemtrangay","Kiểm tra ngày","Kiểm tra ngày","Kiểm tra ngày tháng thi công có đụng ngày nghỉ không, nếu có sẽ được ký hiệu lại để sửa chữa",null,1,1,1,1,"ZoomToSelection","          <button id=\"XXXX\" onAction=\"onActionBUT\" getSize=\"getSize\" getVisible=\"getVisible\" getLabel=\"getLabel\" getScreentip=\"getScreentip\" getSupertip=\"getSupertip\" imageMso=\"HappyFace\" getEnabled=\"getEnabled\"/>","BUTT",{"$f":"+COUNTIF($M$3:M58,M58)","v":39},"But_Kiemtrangay","          <button id=\"But_Kiemtrangay\" onAction=\"onActionBUT\" getSize=\"getSize\" getVisible=\"getVisible\" getLabel=\"getLabel\" getScreentip=\"getScreentip\" getSupertip=\"getSupertip\" imageMso=\"ZoomToSelection\" getEnabled=\"getEnabled\"/>"]
["But_XuatNhatKy","But_XuatNhatKy","Xuất nhật ký","Xuất nhật ký",null,null,1,1,1,1,"ConvertTableToText","          <button id=\"XXXX\" onAction=\"onActionBUT\" getSize=\"getSize\" getVisible=\"getVisible\" getLabel=\"getLabel\" getScreentip=\"getScreentip\" getSupertip=\"getSupertip\" imageMso=\"HappyFace\" getEnabled=\"getEnabled\"/>","BUTT",{"$f":"+COUNTIF($M$3:M59,M59)","v":40},"But_XuatNhatKy","          <button id=\"But_XuatNhatKy\" onAction=\"onActionBUT\" getSize=\"getSize\" getVisible=\"getVisible\" getLabel=\"getLabel\" getScreentip=\"getScreentip\" getSupertip=\"getSupertip\" imageMso=\"ConvertTableToText\" getEnabled=\"getEnabled\"/>"]
["BUTT041",null,{"$f":"+MAX($C$1:C59)+1","v":17},null,null,null,0,1,1,1,null,"          <button id=\"XXXX\" onAction=\"onActionBUT\" getSize=\"getSize\" getVisible=\"getVisible\" getLabel=\"getLabel\" getScreentip=\"getScreentip\" getSupertip=\"getSupertip\" imageMso=\"HappyFace\" getEnabled=\"getEnabled\"/>","BUTT",{"$f":"+COUNTIF($M$3:M60,M60)","v":41},"BUTT041","          <button id=\"BUTT041\" onAction=\"onActionBUT\" getSize=\"getSize\" getVisible=\"getVisible\" getLabel=\"getLabel\" getScreentip=\"getScreentip\" getSupertip=\"getSupertip\" imageMso=\"HappyFace\" getEnabled=\"getEnabled\"/>"]
["SPLI004",null,"Xuất biên bản",null,null,null,{"$f":"+IF(ISNUMBER(C62),0,1)","v":1},1,1,1,"ReviewReplyWithChanges","          <splitButton id=\"XXXX\" size=\"large\" getVisible=\"getVisible\" getEnabled=\"getEnabled\">","SPLI",{"$f":"+COUNTIF($M$3:M61,M61)","v":4},"SPLI004","          <splitButton id=\"SPLI004\" size=\"large\" getVisible=\"getVisible\" getEnabled=\"getEnabled\">"]
["But_XuatBB","But_XuatBB","Xuất biên bản",{"$f":"+C62","v":"Xuất biên bản"},null,null,1,1,1,1,"CreateReportFromWizard","            <button id=\"XXXX\" onAction=\"onActionBUT\" getLabel=\"getLabel\" getScreentip=\"getScreentip\" getSupertip=\"getSupertip\" imageMso=\"HappyFace\" getEnabled=\"getEnabled\"/>","BUTT",{"$f":"+COUNTIF($M$3:M62,M62)","v":42},"But_XuatBB","            <button id=\"But_XuatBB\" onAction=\"onActionBUT\" getLabel=\"getLabel\" getScreentip=\"getScreentip\" getSupertip=\"getSupertip\" imageMso=\"CreateReportFromWizard\" getEnabled=\"getEnabled\"/>"]
["MENU004",null,{"$f":"+MAX($C$1:C62)+1","v":18},null,null,null,{"$f":"+IF(ISNUMBER(C64),0,1)","v":1},1,1,1,null,"            <menu id=\"XXXX\" itemSize=\"normal\" getLabel=\"getLabel\" getScreentip=\"getScreentip\" getSupertip=\"getSupertip\" imageMso=\"HappyFace\" getEnabled=\"getEnabled\">","MENU",{"$f":"+COUNTIF($M$3:M63,M63)","v":4},"MENU004","            <menu id=\"MENU004\" itemSize=\"normal\" getLabel=\"getLabel\" getScreentip=\"getScreentip\" getSupertip=\"getSupertip\" imageMso=\"HappyFace\" getEnabled=\"getEnabled\">"]
["But_Xuattheohangmuc","But_Xuattheohangmuc","Theo hạng mục",{"$f":"+C64","v":"Theo hạng mục"},"Xuấ theo hạng mục công việc",null,1,1,1,1,"ReviewReplyWithChanges","              <button id=\"XXXX\" onAction=\"onActionBUT\" getVisible=\"getVisible\" getLabel=\"getLabel\" getScreentip=\"getScreentip\" getSupertip=\"getSupertip\" imageMso=\"HappyFace\" getEnabled=\"getEnabled\"/>","BUTT",{"$f":"+COUNTIF($M$3:M64,M64)","v":43},"But_Xuattheohangmuc","              <button id=\"But_Xuattheohangmuc\" onAction=\"onActionBUT\" getVisible=\"getVisible\" getLabel=\"getLabel\" getScreentip=\"getScreentip\" getSupertip=\"getSupertip\" imageMso=\"ReviewReplyWithChanges\" getEnabled=\"getEnabled\"/>"]
["But_Xuattheongaythang","But_Xuattheongaythang","Theo ngày thi công","Theo ngày thi công","Xuất theo ngày thi công",null,1,1,1,1,"SlideShowRehearseTimings","              <button id=\"XXXX\" onAction=\"onActionBUT\" getVisible=\"getVisible\" getLabel=\"getLabel\" getScreentip=\"getScreentip\" getSupertip=\"getSupertip\" imageMso=\"HappyFace\" getEnabled=\"getEnabled\"/>","BUTT",{"$f":"+COUNTIF($M$3:M65,M65)","v":44},"But_Xuattheongaythang","              <button id=\"But_Xuattheongaythang\" onAction=\"onActionBUT\" getVisible=\"getVisible\" getLabel=\"getLabel\" getScreentip=\"getScreentip\" getSupertip=\"getSupertip\" imageMso=\"SlideShowRehearseTimings\" getEnabled=\"getEnabled\"/>"]
[null,null,{"$f":"+MAX($C$1:C65)+1","v":19},null,null,null,{"$f":"+IF(ISNUMBER(C66),0,1)","v":0},null,null,null,null,"            </menu>",null,null,{"$f":"IF(B66<>\"\",IF(LEFT(B66,3)<>\"But\",\"Sel_\"&B66,B66),M66&TEXT(N66,\"000\"))","v":"000"},{"$f":"+SUBSTITUTE(SUBSTITUTE(L66,\"XXXX\",O66),\"HappyFace\",IF(K66<>\"\",K66,\"HappyFace\"))","v":"            </menu>"}]
[null,null,{"$f":"+MAX($C$1:C66)+1","v":20},null,null,null,0,null,null,null,null,"          </splitButton>",null,null,"000","          </splitButton>"]
[{"$f":"+O68","v":"But_CaiDatHangMuc"},"But_CaiDatHangMuc",null,null,null,null,null,null,null,null,null,"          <dialogBoxLauncher><button id=\"XXXX\" onAction=\"onActionBUT\"/></dialogBoxLauncher>","BUTT",{"$f":"+COUNTIF($M$3:M68,M68)","v":45},"But_CaiDatHangMuc","          <dialogBoxLauncher><button id=\"But_CaiDatHangMuc\" onAction=\"onActionBUT\"/></dialogBoxLauncher>"]
[null,null,{"$f":"+MAX($C$1:C67)+1","v":21},null,null,null,0,null,null,null,null,"        </group>",null,null,"000","        </group>"]
[{"$f":"+O70","v":"GROU004"},null,"Xem",{"$f":"+C70","v":"Xem"},null,null,1,1,1,0,null,"        <group id=\"XXXX\" getVisible=\"getVisible\" getLabel=\"getLabel\">","GROU",{"$f":"+COUNTIF($M$3:M70,M70)","v":4},"GROU004","        <group id=\"GROU004\" getVisible=\"getVisible\" getLabel=\"getLabel\">"]
[{"$f":"+O71","v":"BUTT046"},null,{"$f":"+MAX($C$1:C70)+1","v":22},null,null,null,0,1,1,1,null,"          <button id=\"XXXX\" onAction=\"onActionBUT\" getSize=\"getSize\" getVisible=\"getVisible\" getLabel=\"getLabel\" getScreentip=\"getScreentip\" getSupertip=\"getSupertip\" imageMso=\"HappyFace\" getEnabled=\"getEnabled\"/>","BUTT",{"$f":"+COUNTIF($M$3:M71,M71)","v":46},"BUTT046","          <button id=\"BUTT046\" onAction=\"onActionBUT\" getSize=\"getSize\" getVisible=\"getVisible\" getLabel=\"getLabel\" getScreentip=\"getScreentip\" getSupertip=\"getSupertip\" imageMso=\"HappyFace\" getEnabled=\"getEnabled\"/>"]
["BUTT047",null,{"$f":"+MAX($C$1:C71)+1","v":23},null,null,null,0,1,1,1,null,"          <button id=\"XXXX\" onAction=\"onActionBUT\" getSize=\"getSize\" getVisible=\"getVisible\" getLabel=\"getLabel\" getScreentip=\"getScreentip\" getSupertip=\"getSupertip\" imageMso=\"HappyFace\" getEnabled=\"getEnabled\"/>","BUTT",{"$f":"+COUNTIF($M$3:M72,M72)","v":47},"BUTT047","          <button id=\"BUTT047\" onAction=\"onActionBUT\" getSize=\"getSize\" getVisible=\"getVisible\" getLabel=\"getLabel\" getScreentip=\"getScreentip\" getSupertip=\"getSupertip\" imageMso=\"HappyFace\" getEnabled=\"getEnabled\"/>"]
["BUTT048",null,{"$f":"+MAX($C$1:C72)+1","v":24},null,null,null,0,1,1,1,null,"          <button id=\"XXXX\" onAction=\"onActionBUT\" getSize=\"getSize\" getVisible=\"getVisible\" getLabel=\"getLabel\" getScreentip=\"getScreentip\" getSupertip=\"getSupertip\" imageMso=\"HappyFace\" getEnabled=\"getEnabled\"/>","BUTT",{"$f":"+COUNTIF($M$3:M73,M73)","v":48},"BUTT048","          <button id=\"BUTT048\" onAction=\"onActionBUT\" getSize=\"getSize\" getVisible=\"getVisible\" getLabel=\"getLabel\" getScreentip=\"getScreentip\" getSupertip=\"getSupertip\" imageMso=\"HappyFace\" getEnabled=\"getEnabled\"/>"]
["BUTT049",null,{"$f":"+MAX($C$1:C73)+1","v":25},null,null,null,0,1,1,1,null,"          <button id=\"XXXX\" onAction=\"onActionBUT\" getSize=\"getSize\" getVisible=\"getVisible\" getLabel=\"getLabel\" getScreentip=\"getScreentip\" getSupertip=\"getSupertip\" imageMso=\"HappyFace\" getEnabled=\"getEnabled\"/>","BUTT",{"$f":"+COUNTIF($M$3:M74,M74)","v":49},"BUTT049","          <button id=\"BUTT049\" onAction=\"onActionBUT\" getSize=\"getSize\" getVisible=\"getVisible\" getLabel=\"getLabel\" getScreentip=\"getScreentip\" getSupertip=\"getSupertip\" imageMso=\"HappyFace\" getEnabled=\"getEnabled\"/>"]
["SPLI005",null,{"$f":"+MAX($C$1:C74)+1","v":26},null,null,null,{"$f":"+IF(ISNUMBER(C76),0,1)","v":1},1,1,1,null,"          <splitButton id=\"XXXX\" size=\"large\" getVisible=\"getVisible\" getEnabled=\"getEnabled\">","SPLI",{"$f":"+COUNTIF($M$3:M75,M75)","v":5},"SPLI005","          <splitButton id=\"SPLI005\" size=\"large\" getVisible=\"getVisible\" getEnabled=\"getEnabled\">"]
["But_ListBienBan","But_ListBienBan","List Biên bản",{"$f":"+C76","v":"List Biên bản"},"Nhấn vào để di chuyển đến các sheet tương ứng",null,1,1,1,1,"FunctionsFinancialInsertGallery","            <button id=\"XXXX\" onAction=\"onActionBUT\" getLabel=\"getLabel\" getScreentip=\"getScreentip\" getSupertip=\"getSupertip\" imageMso=\"HappyFace\" getEnabled=\"getEnabled\"/>","BUTT",{"$f":"+COUNTIF($M$3:M76,M76)","v":50},"But_ListBienBan","            <button id=\"But_ListBienBan\" onAction=\"onActionBUT\" getLabel=\"getLabel\" getScreentip=\"getScreentip\" getSupertip=\"getSupertip\" imageMso=\"FunctionsFinancialInsertGallery\" getEnabled=\"getEnabled\"/>"]
["MENU005",null,{"$f":"+MAX($C$1:C76)+1","v":27},null,null,null,{"$f":"+IF(ISNUMBER(C78),0,1)","v":1},1,1,1,null,"            <menu id=\"XXXX\" itemSize=\"normal\" getLabel=\"getLabel\" getScreentip=\"getScreentip\" getSupertip=\"getSupertip\" imageMso=\"HappyFace\" getEnabled=\"getEnabled\">","MENU",{"$f":"+COUNTIF($M$3:M77,M77)","v":5},"MENU005","            <menu id=\"MENU005\" itemSize=\"normal\" getLabel=\"getLabel\" getScreentip=\"getScreentip\" getSupertip=\"getSupertip\" imageMso=\"HappyFace\" getEnabled=\"getEnabled\">"]
["Sel_ListBBCV","ListBBCV","List Biên bản công việc",{"$f":"+C78","v":"List Biên bản công việc"},null,null,1,1,1,1,"_1","              <button id=\"XXXX\" onAction=\"onActionBUT\" getVisible=\"getVisible\" getLabel=\"getLabel\" getScreentip=\"getScreentip\" getSupertip=\"getSupertip\" imageMso=\"HappyFace\" getEnabled=\"getEnabled\"/>","BUTT",{"$f":"+COUNTIF($M$3:M78,M78)","v":51},"Sel_ListBBCV","              <button id=\"Sel_ListBBCV\" onAction=\"onActionBUT\" getVisible=\"getVisible\" getLabel=\"getLabel\" getScreentip=\"getScreentip\" getSupertip=\"getSupertip\" imageMso=\"_1\" getEnabled=\"getEnabled\"/>"]
["Sel_ListBBHT","ListBBHT","List Biên bản hoàn thành","List Biên bản hoàn thành",null,null,1,1,1,1,"_2","              <button id=\"XXXX\" onAction=\"onActionBUT\" getVisible=\"getVisible\" getLabel=\"getLabel\" getScreentip=\"getScreentip\" getSupertip=\"getSupertip\" imageMso=\"HappyFace\" getEnabled=\"getEnabled\"/>","BUTT",{"$f":"+COUNTIF($M$3:M79,M79)","v":52},"Sel_ListBBHT","              <button id=\"Sel_ListBBHT\" onAction=\"onActionBUT\" getVisible=\"getVisible\" getLabel=\"getLabel\" getScreentip=\"getScreentip\" getSupertip=\"getSupertip\" imageMso=\"_2\" getEnabled=\"getEnabled\"/>"]
["Sel_ListVlieu","ListVlieu","List Biên bản nghiệm thu vật liệu","List Biên bản nghiệm thu vật liệu",null,null,1,1,1,0,"_3","              <button id=\"XXXX\" onAction=\"onActionBUT\" getVisible=\"getVisible\" getLabel=\"getLabel\" getScreentip=\"getScreentip\" getSupertip=\"getSupertip\" imageMso=\"HappyFace\" getEnabled=\"getEnabled\"/>","BUTT",{"$f":"+COUNTIF($M$3:M80,M80)","v":53},"Sel_ListVlieu","              <button id=\"Sel_ListVlieu\" onAction=\"onActionBUT\" getVisible=\"getVisible\" getLabel=\"getLabel\" getScreentip=\"getScreentip\" getSupertip=\"getSupertip\" imageMso=\"_3\" getEnabled=\"getEnabled\"/>"]
["Sel_ListTN","ListTN","List Thí nghiệm (Tổng)","List Thí nghiệm (Tổng)",null,null,1,1,1,0,"_4","              <button id=\"XXXX\" onAction=\"onActionBUT\" getVisible=\"getVisible\" getLabel=\"getLabel\" getScreentip=\"getScreentip\" getSupertip=\"getSupertip\" imageMso=\"HappyFace\" getEnabled=\"getEnabled\"/>","BUTT",{"$f":"+COUNTIF($M$3:M81,M81)","v":54},"Sel_ListTN","              <button id=\"Sel_ListTN\" onAction=\"onActionBUT\" getVisible=\"getVisible\" getLabel=\"getLabel\" getScreentip=\"getScreentip\" getSupertip=\"getSupertip\" imageMso=\"_4\" getEnabled=\"getEnabled\"/>"]
["Sel_ListTNVL","ListTNVL","List Thí nghiệm vật liệu","List Thí nghiệm vật liệu",null,null,1,1,1,0,"_5","              <button id=\"XXXX\" onAction=\"onActionBUT\" getVisible=\"getVisible\" getLabel=\"getLabel\" getScreentip=\"getScreentip\" getSupertip=\"getSupertip\" imageMso=\"HappyFace\" getEnabled=\"getEnabled\"/>","BUTT",{"$f":"+COUNTIF($M$3:M82,M82)","v":55},"Sel_ListTNVL","              <button id=\"Sel_ListTNVL\" onAction=\"onActionBUT\" getVisible=\"getVisible\" getLabel=\"getLabel\" getScreentip=\"getScreentip\" getSupertip=\"getSupertip\" imageMso=\"_5\" getEnabled=\"getEnabled\"/>"]
["Sel_ListTNBT","ListTNBT","List Thí nghiệm bê tông và vữa","List Thí nghiệm bê tông và vữa",null,null,1,1,1,0,"_6","              <button id=\"XXXX\" onAction=\"onActionBUT\" getVisible=\"getVisible\" getLabel=\"getLabel\" getScreentip=\"getScreentip\" getSupertip=\"getSupertip\" imageMso=\"HappyFace\" getEnabled=\"getEnabled\"/>","BUTT",{"$f":"+COUNTIF($M$3:M83,M83)","v":56},"Sel_ListTNBT","              <button id=\"Sel_ListTNBT\" onAction=\"onActionBUT\" getVisible=\"getVisible\" getLabel=\"getLabel\" getScreentip=\"getScreentip\" getSupertip=\"getSupertip\" imageMso=\"_6\" getEnabled=\"getEnabled\"/>"]
["Sel_ListTNkhac","ListTNkhac","List Thí nghiệm khác","List Thí nghiệm khác",null,null,1,1,1,0,"_7","              <button id=\"XXXX\" onAction=\"onActionBUT\" getVisible=\"getVisible\" getLabel=\"getLabel\" getScreentip=\"getScreentip\" getSupertip=\"getSupertip\" imageMso=\"HappyFace\" getEnabled=\"getEnabled\"/>","BUTT",{"$f":"+COUNTIF($M$3:M84,M84)","v":57},"Sel_ListTNkhac","              <button id=\"Sel_ListTNkhac\" onAction=\"onActionBUT\" getVisible=\"getVisible\" getLabel=\"getLabel\" getScreentip=\"getScreentip\" getSupertip=\"getSupertip\" imageMso=\"_7\" getEnabled=\"getEnabled\"/>"]
["Sel_LIST_BBKT_HM","LIST_BBKT_HM","List Kiểm tra hố móng (đào đất)","List Kiểm tra hố móng (đào đất)",null,null,1,1,1,0,"_8","              <button id=\"XXXX\" onAction=\"onActionBUT\" getVisible=\"getVisible\" getLabel=\"getLabel\" getScreentip=\"getScreentip\" getSupertip=\"getSupertip\" imageMso=\"HappyFace\" getEnabled=\"getEnabled\"/>","BUTT",{"$f":"+COUNTIF($M$3:M85,M85)","v":58},"Sel_LIST_BBKT_HM","              <button id=\"Sel_LIST_BBKT_HM\" onAction=\"onActionBUT\" getVisible=\"getVisible\" getLabel=\"getLabel\" getScreentip=\"getScreentip\" getSupertip=\"getSupertip\" imageMso=\"_8\" getEnabled=\"getEnabled\"/>"]
["Sel_LIST_BBKT_DAP","LIST_BBKT_DAP","List Kiểm tra đắp đát","List Kiểm tra đắp đát",null,null,1,1,1,0,"_9","              <button id=\"XXXX\" onAction=\"onActionBUT\" getVisible=\"getVisible\" getLabel=\"getLabel\" getScreentip=\"getScreentip\" getSupertip=\"getSupertip\" imageMso=\"HappyFace\" getEnabled=\"getEnabled\"/>","BUTT",{"$f":"+COUNTIF($M$3:M86,M86)","v":59},"Sel_LIST_BBKT_DAP","              <button id=\"Sel_LIST_BBKT_DAP\" onAction=\"onActionBUT\" getVisible=\"getVisible\" getLabel=\"getLabel\" getScreentip=\"getScreentip\" getSupertip=\"getSupertip\" imageMso=\"_9\" getEnabled=\"getEnabled\"/>"]
["Sel_LIST_BBKT_BT","LIST_BBKT_BT","List Kiểm tra kích thước hình học bê tông","List Kiểm tra kích thước hình học bê tông",null,null,1,1,1,0,"_0","              <button id=\"XXXX\" onAction=\"onActionBUT\" getVisible=\"getVisible\" getLabel=\"getLabel\" getScreentip=\"getScreentip\" getSupertip=\"getSupertip\" imageMso=\"HappyFace\" getEnabled=\"getEnabled\"/>","BUTT",{"$f":"+COUNTIF($M$3:M87,M87)","v":60},"Sel_LIST_BBKT_BT","              <button id=\"Sel_LIST_BBKT_BT\" onAction=\"onActionBUT\" getVisible=\"getVisible\" getLabel=\"getLabel\" getScreentip=\"getScreentip\" getSupertip=\"getSupertip\" imageMso=\"_0\" getEnabled=\"getEnabled\"/>"]
["Sel_LIST_BBKT_VK","LIST_BBKT_VK","List Kiểm tra kích thước ván khuôn","List Kiểm tra kích thước ván khuôn",null,null,1,1,1,0,"_1","              <button id=\"XXXX\" onAction=\"onActionBUT\" getVisible=\"getVisible\" getLabel=\"getLabel\" getScreentip=\"getScreentip\" getSupertip=\"getSupertip\" imageMso=\"HappyFace\" getEnabled=\"getEnabled\"/>","BUTT",{"$f":"+COUNTIF($M$3:M88,M88)","v":61},"Sel_LIST_BBKT_VK","              <button id=\"Sel_LIST_BBKT_VK\" onAction=\"onActionBUT\" getVisible=\"getVisible\" getLabel=\"getLabel\" getScreentip=\"getScreentip\" getSupertip=\"getSupertip\" imageMso=\"_1\" getEnabled=\"getEnabled\"/>"]
["Sel_LIST_BBKT_CT","LIST_BBKT_CT","List Kiểm tra cốt thép","List Kiểm tra cốt thép",null,null,1,1,1,0,"_2","              <button id=\"XXXX\" onAction=\"onActionBUT\" getVisible=\"getVisible\" getLabel=\"getLabel\" getScreentip=\"getScreentip\" getSupertip=\"getSupertip\" imageMso=\"HappyFace\" getEnabled=\"getEnabled\"/>","BUTT",{"$f":"+COUNTIF($M$3:M89,M89)","v":62},"Sel_LIST_BBKT_CT","              <button id=\"Sel_LIST_BBKT_CT\" onAction=\"onActionBUT\" getVisible=\"getVisible\" getLabel=\"getLabel\" getScreentip=\"getScreentip\" getSupertip=\"getSupertip\" imageMso=\"_2\" getEnabled=\"getEnabled\"/>"]
["Sel_LIST_DKDBT","LIST_DKDBT","List Điều kiện đổ bê tông","List Điều kiện đổ bê tông",null,null,1,1,1,0,"_3","              <button id=\"XXXX\" onAction=\"onActionBUT\" getVisible=\"getVisible\" getLabel=\"getLabel\" getScreentip=\"getScreentip\" getSupertip=\"getSupertip\" imageMso=\"HappyFace\" getEnabled=\"getEnabled\"/>","BUTT",{"$f":"+COUNTIF($M$3:M90,M90)","v":63},"Sel_LIST_DKDBT","              <button id=\"Sel_LIST_DKDBT\" onAction=\"onActionBUT\" getVisible=\"getVisible\" getLabel=\"getLabel\" getScreentip=\"getScreentip\" getSupertip=\"getSupertip\" imageMso=\"_3\" getEnabled=\"getEnabled\"/>"]
["Sel_LIST_PHIEU_BT","LIST_PHIEU_BT","List Phiếu công tác bê tông","List Phiếu công tác bê tông",null,null,1,1,1,0,"_4","              <button id=\"XXXX\" onAction=\"onActionBUT\" getVisible=\"getVisible\" getLabel=\"getLabel\" getScreentip=\"getScreentip\" getSupertip=\"getSupertip\" imageMso=\"HappyFace\" getEnabled=\"getEnabled\"/>","BUTT",{"$f":"+COUNTIF($M$3:M91,M91)","v":64},"Sel_LIST_PHIEU_BT","              <button id=\"Sel_LIST_PHIEU_BT\" onAction=\"onActionBUT\" getVisible=\"getVisible\" getLabel=\"getLabel\" getScreentip=\"getScreentip\" getSupertip=\"getSupertip\" imageMso=\"_4\" getEnabled=\"getEnabled\"/>"]
["Sel_LIST_THAO_VK","LIST_THAO_VK","List Tháo ván khuôn","List Tháo ván khuôn",null,null,1,1,1,0,"_5","              <button id=\"XXXX\" onAction=\"onActionBUT\" getVisible=\"getVisible\" getLabel=\"getLabel\" getScreentip=\"getScreentip\" getSupertip=\"getSupertip\" imageMso=\"HappyFace\" getEnabled=\"getEnabled\"/>","BUTT",{"$f":"+COUNTIF($M$3:M92,M92)","v":65},"Sel_LIST_THAO_VK","              <button id=\"Sel_LIST_THAO_VK\" onAction=\"onActionBUT\" getVisible=\"getVisible\" getLabel=\"getLabel\" getScreentip=\"getScreentip\" getSupertip=\"getSupertip\" imageMso=\"_5\" getEnabled=\"getEnabled\"/>"]
["Sel_LIST_BB_SDD","LIST_BB_SDD","List Sổ đo đạc","List Sổ đo đạc",null,null,1,1,1,0,"_6","              <button id=\"XXXX\" onAction=\"onActionBUT\" getVisible=\"getVisible\" getLabel=\"getLabel\" getScreentip=\"getScreentip\" getSupertip=\"getSupertip\" imageMso=\"HappyFace\" getEnabled=\"getEnabled\"/>","BUTT",{"$f":"+COUNTIF($M$3:M93,M93)","v":66},"Sel_LIST_BB_SDD","              <button id=\"Sel_LIST_BB_SDD\" onAction=\"onActionBUT\" getVisible=\"getVisible\" getLabel=\"getLabel\" getScreentip=\"getScreentip\" getSupertip=\"getSupertip\" imageMso=\"_6\" getEnabled=\"getEnabled\"/>"]
["BUTT067",null,{"$f":"+MAX($C$1:C93)+1","v":28},null,null,null,0,1,1,0,"_7","              <button id=\"XXXX\" onAction=\"onActionBUT\" getVisible=\"getVisible\" getLabel=\"getLabel\" getScreentip=\"getScreentip\" getSupertip=\"getSupertip\" imageMso=\"HappyFace\" getEnabled=\"getEnabled\"/>","BUTT",{"$f":"+COUNTIF($M$3:M94,M94)","v":67},"BUTT067","              <button id=\"BUTT067\" onAction=\"onActionBUT\" getVisible=\"getVisible\" getLabel=\"getLabel\" getScreentip=\"getScreentip\" getSupertip=\"getSupertip\" imageMso=\"_7\" getEnabled=\"getEnabled\"/>"]
["BUTT068",null,{"$f":"+MAX($C$1:C94)+1","v":29},null,null,null,0,1,1,0,"_8","              <button id=\"XXXX\" onAction=\"onActionBUT\" getVisible=\"getVisible\" getLabel=\"getLabel\" getScreentip=\"getScreentip\" getSupertip=\"getSupertip\" imageMso=\"HappyFace\" getEnabled=\"getEnabled\"/>","BUTT",{"$f":"+COUNTIF($M$3:M95,M95)","v":68},"BUTT068","              <button id=\"BUTT068\" onAction=\"onActionBUT\" getVisible=\"getVisible\" getLabel=\"getLabel\" getScreentip=\"getScreentip\" getSupertip=\"getSupertip\" imageMso=\"_8\" getEnabled=\"getEnabled\"/>"]
[null,null,{"$f":"+MAX($C$1:C95)+1","v":30},null,null,null,0,null,null,null,null,"            </menu>",null,null,"000","            </menu>"]
[null,null,{"$f":"+MAX($C$1:C96)+1","v":31},null,null,null,0,null,null,null,null,"          </splitButton>",null,null,"000","          </splitButton>"]
[{"$f":"+O98","v":"SPLI006"},null,{"$f":"+MAX($C$1:C97)+1","v":32},null,null,null,{"$f":"+IF(ISNUMBER(C99),0,1)","v":1},1,1,1,null,"          <splitButton id=\"XXXX\" size=\"large\" getVisible=\"getVisible\" getEnabled=\"getEnabled\">","SPLI",{"$f":"+COUNTIF($M$3:M98,M98)","v":6},"SPLI006","          <splitButton id=\"SPLI006\" size=\"large\" getVisible=\"getVisible\" getEnabled=\"getEnabled\">"]
["But_BienBan","But_BienBan","Biên bản",null,"Nhấn vào để di chuyển đến các sheet tương ứng",null,1,1,1,1,"FormulaMoreFunctionsMenu","            <button id=\"XXXX\" onAction=\"onActionBUT\" getLabel=\"getLabel\" getScreentip=\"getScreentip\" getSupertip=\"getSupertip\" imageMso=\"HappyFace\" getEnabled=\"getEnabled\"/>","BUTT",{"$f":"+COUNTIF($M$3:M99,M99)","v":69},"But_BienBan","            <button id=\"But_BienBan\" onAction=\"onActionBUT\" getLabel=\"getLabel\" getScreentip=\"getScreentip\" getSupertip=\"getSupertip\" imageMso=\"FormulaMoreFunctionsMenu\" getEnabled=\"getEnabled\"/>"]
["MENU006",null,124,null,null,null,{"$f":"+IF(ISNUMBER(C101),0,1)","v":1},1,1,1,null,"            <menu id=\"XXXX\" itemSize=\"normal\" getLabel=\"getLabel\" getScreentip=\"getScreentip\" getSupertip=\"getSupertip\" imageMso=\"HappyFace\" getEnabled=\"getEnabled\">","MENU",{"$f":"+COUNTIF($M$3:M100,M100)","v":6},"MENU006","            <menu id=\"MENU006\" itemSize=\"normal\" getLabel=\"getLabel\" getScreentip=\"getScreentip\" getSupertip=\"getSupertip\" imageMso=\"HappyFace\" getEnabled=\"getEnabled\">"]
["Sel_DanhmucBBCV","DanhmucBBCV","Danh mục hồ sơ nghiệm thu công việc","Danh mục hồ sơ nghiệm thu công việc",null,null,1,1,1,1,"_1","              <button id=\"XXXX\" onAction=\"onActionBUT\" getVisible=\"getVisible\" getLabel=\"getLabel\" getScreentip=\"getScreentip\" getSupertip=\"getSupertip\" imageMso=\"HappyFace\" getEnabled=\"getEnabled\"/>","BUTT",{"$f":"+COUNTIF($M$3:M101,M101)","v":70},"Sel_DanhmucBBCV","              <button id=\"Sel_DanhmucBBCV\" onAction=\"onActionBUT\" getVisible=\"getVisible\" getLabel=\"getLabel\" getScreentip=\"getScreentip\" getSupertip=\"getSupertip\" imageMso=\"_1\" getEnabled=\"getEnabled\"/>"]
["Sel_BienbanCVXD","BienbanCVXD","Biên bản nghiệm thu công việc","Biên bản nghiệm thu công việc",null,null,1,1,1,1,"_2","              <button id=\"XXXX\" onAction=\"onActionBUT\" getVisible=\"getVisible\" getLabel=\"getLabel\" getScreentip=\"getScreentip\" getSupertip=\"getSupertip\" imageMso=\"HappyFace\" getEnabled=\"getEnabled\"/>","BUTT",{"$f":"+COUNTIF($M$3:M102,M102)","v":71},"Sel_BienbanCVXD","              <button id=\"Sel_BienbanCVXD\" onAction=\"onActionBUT\" getVisible=\"getVisible\" getLabel=\"getLabel\" getScreentip=\"getScreentip\" getSupertip=\"getSupertip\" imageMso=\"_2\" getEnabled=\"getEnabled\"/>"]
["Sel_BienbanHT","BienbanHT","Biên bản NTHT công việc","Biên bản NTHT công việc",null,null,1,1,1,0,"_3","              <button id=\"XXXX\" onAction=\"onActionBUT\" getVisible=\"getVisible\" getLabel=\"getLabel\" getScreentip=\"getScreentip\" getSupertip=\"getSupertip\" imageMso=\"HappyFace\" getEnabled=\"getEnabled\"/>","BUTT",{"$f":"+COUNTIF($M$3:M103,M103)","v":72},"Sel_BienbanHT","              <button id=\"Sel_BienbanHT\" onAction=\"onActionBUT\" getVisible=\"getVisible\" getLabel=\"getLabel\" getScreentip=\"getScreentip\" getSupertip=\"getSupertip\" imageMso=\"_3\" getEnabled=\"getEnabled\"/>"]
["Sel_BienbanVatlieu","BienbanVatlieu","Biên bản nghiệm thu vật liệu","Biên bản nghiệm thu vật liệu",null,null,1,1,1,0,"_4","              <button id=\"XXXX\" onAction=\"onActionBUT\" getVisible=\"getVisible\" getLabel=\"getLabel\" getScreentip=\"getScreentip\" getSupertip=\"getSupertip\" imageMso=\"HappyFace\" getEnabled=\"getEnabled\"/>","BUTT",{"$f":"+COUNTIF($M$3:M104,M104)","v":73},"Sel_BienbanVatlieu","              <button id=\"Sel_BienbanVatlieu\" onAction=\"onActionBUT\" getVisible=\"getVisible\" getLabel=\"getLabel\" getScreentip=\"getScreentip\" getSupertip=\"getSupertip\" imageMso=\"_4\" getEnabled=\"getEnabled\"/>"]
["Sel_BBKT_Homong","BBKT_Homong","Biên bản nghiệm thu đào đất","Biên bản nghiệm thu đào đất",null,null,1,1,1,0,"_5","              <button id=\"XXXX\" onAction=\"onActionBUT\" getVisible=\"getVisible\" getLabel=\"getLabel\" getScreentip=\"getScreentip\" getSupertip=\"getSupertip\" imageMso=\"HappyFace\" getEnabled=\"getEnabled\"/>","BUTT",{"$f":"+COUNTIF($M$3:M105,M105)","v":74},"Sel_BBKT_Homong","              <button id=\"Sel_BBKT_Homong\" onAction=\"onActionBUT\" getVisible=\"getVisible\" getLabel=\"getLabel\" getScreentip=\"getScreentip\" getSupertip=\"getSupertip\" imageMso=\"_5\" getEnabled=\"getEnabled\"/>"]
["Sel_BBKT_Dap","BBKT_Dap","Biên bản nghiệm thu đắp đất","Biên bản nghiệm thu đắp đất",null,null,1,1,1,0,"_6","              <button id=\"XXXX\" onAction=\"onActionBUT\" getVisible=\"getVisible\" getLabel=\"getLabel\" getScreentip=\"getScreentip\" getSupertip=\"getSupertip\" imageMso=\"HappyFace\" getEnabled=\"getEnabled\"/>","BUTT",{"$f":"+COUNTIF($M$3:M106,M106)","v":75},{"$f":"IF(B106<>\"\",IF(LEFT(B106,3)<>\"But\",\"Sel_\"&B106,B106),M106&TEXT(N106,\"000\"))","v":"Sel_BBKT_Dap"},{"$f":"+SUBSTITUTE(SUBSTITUTE(L106,\"XXXX\",O106),\"HappyFace\",IF(K106<>\"\",K106,\"HappyFace\"))","v":"              <button id=\"Sel_BBKT_Dap\" onAction=\"onActionBUT\" getVisible=\"getVisible\" getLabel=\"getLabel\" getScreentip=\"getScreentip\" getSupertip=\"getSupertip\" imageMso=\"_6\" getEnabled=\"getEnabled\"/>"}]
["Sel_BBKT_VK","BBKT_VK","Biên bản nghiệm thu ván khuôn","Biên bản nghiệm thu ván khuôn",null,null,1,1,1,0,"_7","              <button id=\"XXXX\" onAction=\"onActionBUT\" getVisible=\"getVisible\" getLabel=\"getLabel\" getScreentip=\"getScreentip\" getSupertip=\"getSupertip\" imageMso=\"HappyFace\" getEnabled=\"getEnabled\"/>","BUTT",{"$f":"+COUNTIF($M$3:M107,M107)","v":76},"Sel_BBKT_VK","              <button id=\"Sel_BBKT_VK\" onAction=\"onActionBUT\" getVisible=\"getVisible\" getLabel=\"getLabel\" getScreentip=\"getScreentip\" getSupertip=\"getSupertip\" imageMso=\"_7\" getEnabled=\"getEnabled\"/>"]
["Sel_BBKT_CT","BBKT_CT","Biên bản nghiệm thu cốt thép","Biên bản nghiệm thu cốt thép",null,null,{"$f":"+IF(ISNUMBER(C108),0,1)","v":1},1,1,0,"_8","              <button id=\"XXXX\" onAction=\"onActionBUT\" getVisible=\"getVisible\" getLabel=\"getLabel\" getScreentip=\"getScreentip\" getSupertip=\"getSupertip\" imageMso=\"HappyFace\" getEnabled=\"getEnabled\"/>","BUTT",{"$f":"+COUNTIF($M$3:M108,M108)","v":77},"Sel_BBKT_CT","              <button id=\"Sel_BBKT_CT\" onAction=\"onActionBUT\" getVisible=\"getVisible\" getLabel=\"getLabel\" getScreentip=\"getScreentip\" getSupertip=\"getSupertip\" imageMso=\"_8\" getEnabled=\"getEnabled\"/>"]
["Sel_BBKT_DKDBT","BBKT_DKDBT","Biên bản kiểm tra điều kiện đổ bê tông","Biên bản kiểm tra điều kiện đổ bê tông",null,null,1,1,1,0,"_9","              <button id=\"XXXX\" onAction=\"onActionBUT\" getVisible=\"getVisible\" getLabel=\"getLabel\" getScreentip=\"getScreentip\" getSupertip=\"getSupertip\" imageMso=\"HappyFace\" getEnabled=\"getEnabled\"/>","BUTT",{"$f":"+COUNTIF($M$3:M109,M109)","v":78},"Sel_BBKT_DKDBT","              <button id=\"Sel_BBKT_DKDBT\" onAction=\"onActionBUT\" getVisible=\"getVisible\" getLabel=\"getLabel\" getScreentip=\"getScreentip\" getSupertip=\"getSupertip\" imageMso=\"_9\" getEnabled=\"getEnabled\"/>"]
["Sel_PHIEU_BT","PHIEU_BT","Phiếu công tác bê tông","Phiếu công tác bê tông",null,null,1,1,1,0,"_0","              <button id=\"XXXX\" onAction=\"onActionBUT\" getVisible=\"getVisible\" getLabel=\"getLabel\" getScreentip=\"getScreentip\" getSupertip=\"getSupertip\" imageMso=\"HappyFace\" getEnabled=\"getEnabled\"/>","BUTT",{"$f":"+COUNTIF($M$3:M110,M110)","v":79},"Sel_PHIEU_BT","              <button id=\"Sel_PHIEU_BT\" onAction=\"onActionBUT\" getVisible=\"getVisible\" getLabel=\"getLabel\" getScreentip=\"getScreentip\" getSupertip=\"getSupertip\" imageMso=\"_0\" getEnabled=\"getEnabled\"/>"]
["Sel_THAO_VK","THAO_VK","Biên bản kiểm tra bê tông sau khi tháo ván khuôn","Biên bản kiểm tra bê tông sau khi tháo ván khuôn",null,null,1,1,1,0,"_1","              <button id=\"XXXX\" onAction=\"onActionBUT\" getVisible=\"getVisible\" getLabel=\"getLabel\" getScreentip=\"getScreentip\" getSupertip=\"getSupertip\" imageMso=\"HappyFace\" getEnabled=\"getEnabled\"/>","BUTT",{"$f":"+COUNTIF($M$3:M111,M111)","v":80},"Sel_THAO_VK","              <button id=\"Sel_THAO_VK\" onAction=\"onActionBUT\" getVisible=\"getVisible\" getLabel=\"getLabel\" getScreentip=\"getScreentip\" getSupertip=\"getSupertip\" imageMso=\"_1\" getEnabled=\"getEnabled\"/>"]
["Sel_BBKT_KTHHBT","BBKT_KTHHBT","Biên bản kiểm tra cao độ, kích thước hình học bê tông","Biên bản kiểm tra cao độ, kích thước hình học bê tông",null,null,1,1,1,0,"_2","              <button id=\"XXXX\" onAction=\"onActionBUT\" getVisible=\"getVisible\" getLabel=\"getLabel\" getScreentip=\"getScreentip\" getSupertip=\"getSupertip\" imageMso=\"HappyFace\" getEnabled=\"getEnabled\"/>","BUTT",{"$f":"+COUNTIF($M$3:M112,M112)","v":81},"Sel_BBKT_KTHHBT","              <button id=\"Sel_BBKT_KTHHBT\" onAction=\"onActionBUT\" getVisible=\"getVisible\" getLabel=\"getLabel\" getScreentip=\"getScreentip\" getSupertip=\"getSupertip\" imageMso=\"_2\" getEnabled=\"getEnabled\"/>"]
["Sel_BBKT_SDD","BBKT_SDD","Biên bản sổ đo đạc","Biên bản sổ đo đạc",null,null,1,1,1,0,"_3","              <button id=\"XXXX\" onAction=\"onActionBUT\" getVisible=\"getVisible\" getLabel=\"getLabel\" getScreentip=\"getScreentip\" getSupertip=\"getSupertip\" imageMso=\"HappyFace\" getEnabled=\"getEnabled\"/>","BUTT",{"$f":"+COUNTIF($M$3:M113,M113)","v":82},"Sel_BBKT_SDD","              <button id=\"Sel_BBKT_SDD\" onAction=\"onActionBUT\" getVisible=\"getVisible\" getLabel=\"getLabel\" getScreentip=\"getScreentip\" getSupertip=\"getSupertip\" imageMso=\"_3\" getEnabled=\"getEnabled\"/>"]
["Sel_BBLMVL","BBLMVL","Biên bản lấy MTN vật liệu đầu vào","Biên bản lấy MTN vật liệu đầu vào",null,null,1,1,1,0,"_4","              <button id=\"XXXX\" onAction=\"onActionBUT\" getVisible=\"getVisible\" getLabel=\"getLabel\" getScreentip=\"getScreentip\" getSupertip=\"getSupertip\" imageMso=\"HappyFace\" getEnabled=\"getEnabled\"/>","BUTT",{"$f":"+COUNTIF($M$3:M114,M114)","v":83},"Sel_BBLMVL","              <button id=\"Sel_BBLMVL\" onAction=\"onActionBUT\" getVisible=\"getVisible\" getLabel=\"getLabel\" getScreentip=\"getScreentip\" getSupertip=\"getSupertip\" imageMso=\"_4\" getEnabled=\"getEnabled\"/>"]
["Sel_BBLMBT","BBLMBT","Biên bản lấy mẫu thí nghiệm bê tông và vữa","Biên bản lấy mẫu thí nghiệm bê tông và vữa",null,null,1,1,1,0,"_5","              <button id=\"XXXX\" onAction=\"onActionBUT\" getVisible=\"getVisible\" getLabel=\"getLabel\" getScreentip=\"getScreentip\" getSupertip=\"getSupertip\" imageMso=\"HappyFace\" getEnabled=\"getEnabled\"/>","BUTT",{"$f":"+COUNTIF($M$3:M115,M115)","v":84},"Sel_BBLMBT","              <button id=\"Sel_BBLMBT\" onAction=\"onActionBUT\" getVisible=\"getVisible\" getLabel=\"getLabel\" getScreentip=\"getScreentip\" getSupertip=\"getSupertip\" imageMso=\"_5\" getEnabled=\"getEnabled\"/>"]
["Sel_BBLMkhac","BBLMkhac","Biên bản lấy mẫu thí nghiệm (khác)","Biên bản lấy mẫu thí nghiệm (khác)",null,null,1,1,1,0,"_6","              <button id=\"XXXX\" onAction=\"onActionBUT\" getVisible=\"getVisible\" getLabel=\"getLabel\" getScreentip=\"getScreentip\" getSupertip=\"getSupertip\" imageMso=\"HappyFace\" getEnabled=\"getEnabled\"/>","BUTT",{"$f":"+COUNTIF($M$3:M116,M116)","v":85},"Sel_BBLMkhac","              <button id=\"Sel_BBLMkhac\" onAction=\"onActionBUT\" getVisible=\"getVisible\" getLabel=\"getLabel\" getScreentip=\"getScreentip\" getSupertip=\"getSupertip\" imageMso=\"_6\" getEnabled=\"getEnabled\"/>"]
["BUTT086",null,{"$f":"+MAX($C$1:C116)+1","v":125},null,null,null,0,1,1,0,"_7","              <button id=\"XXXX\" onAction=\"onActionBUT\" getVisible=\"getVisible\" getLabel=\"getLabel\" getScreentip=\"getScreentip\" getSupertip=\"getSupertip\" imageMso=\"HappyFace\" getEnabled=\"getEnabled\"/>","BUTT",{"$f":"+COUNTIF($M$3:M117,M117)","v":86},"BUTT086","              <button id=\"BUTT086\" onAction=\"onActionBUT\" getVisible=\"getVisible\" getLabel=\"getLabel\" getScreentip=\"getScreentip\" getSupertip=\"getSupertip\" imageMso=\"_7\" getEnabled=\"getEnabled\"/>"]
["BUTT087",null,{"$f":"+MAX($C$1:C117)+1","v":126},null,null,null,0,1,1,0,"_8","              <button id=\"XXXX\" onAction=\"onActionBUT\" getVisible=\"getVisible\" getLabel=\"getLabel\" getScreentip=\"getScreentip\" getSupertip=\"getSupertip\" imageMso=\"HappyFace\" getEnabled=\"getEnabled\"/>","BUTT",{"$f":"+COUNTIF($M$3:M118,M118)","v":87},"BUTT087","              <button id=\"BUTT087\" onAction=\"onActionBUT\" getVisible=\"getVisible\" getLabel=\"getLabel\" getScreentip=\"getScreentip\" getSupertip=\"getSupertip\" imageMso=\"_8\" getEnabled=\"getEnabled\"/>"]
[null,null,{"$f":"+MAX($C$1:C118)+1","v":127},null,null,null,0,null,null,null,null,"            </menu>",null,null,"000","            </menu>"]
[null,null,{"$f":"+MAX($C$1:C119)+1","v":128},null,null,null,0,null,null,null,null,"          </splitButton>",null,null,"000","          </splitButton>"]
[{"$f":"+O121","v":"SPLI007"},null,135,null,null,null,{"$f":"+IF(ISNUMBER(C122),0,1)","v":1},1,1,1,null,"          <splitButton id=\"XXXX\" size=\"large\" getVisible=\"getVisible\" getEnabled=\"getEnabled\">","SPLI",{"$f":"+COUNTIF($M$3:M121,M121)","v":7},"SPLI007","          <splitButton id=\"SPLI007\" size=\"large\" getVisible=\"getVisible\" getEnabled=\"getEnabled\">"]
["But_BienBanKhac","But_BienBanKhac","Biên bản khác","Biên bản khác","Nhấn vào để di chuyển đến các sheet tương ứng",null,1,1,1,1,"FunctionsLogicalInsertGallery","            <button id=\"XXXX\" onAction=\"onActionBUT\" getLabel=\"getLabel\" getScreentip=\"getScreentip\" getSupertip=\"getSupertip\" imageMso=\"HappyFace\" getEnabled=\"getEnabled\"/>","BUTT",{"$f":"+COUNTIF($M$3:M122,M122)","v":88},"But_BienBanKhac","            <button id=\"But_BienBanKhac\" onAction=\"onActionBUT\" getLabel=\"getLabel\" getScreentip=\"getScreentip\" getSupertip=\"getSupertip\" imageMso=\"FunctionsLogicalInsertGallery\" getEnabled=\"getEnabled\"/>"]
["MENU007",null,136,null,null,null,{"$f":"+IF(ISNUMBER(C124),0,1)","v":1},1,1,1,null,"            <menu id=\"XXXX\" itemSize=\"normal\" getLabel=\"getLabel\" getScreentip=\"getScreentip\" getSupertip=\"getSupertip\" imageMso=\"HappyFace\" getEnabled=\"getEnabled\">","MENU",{"$f":"+COUNTIF($M$3:M123,M123)","v":7},"MENU007","            <menu id=\"MENU007\" itemSize=\"normal\" getLabel=\"getLabel\" getScreentip=\"getScreentip\" getSupertip=\"getSupertip\" imageMso=\"HappyFace\" getEnabled=\"getEnabled\">"]
["Sel_Bia_Hoso","Bia_Hoso","Bìa hồ sơ hoàn công","Bìa hồ sơ hoàn công",null,null,1,1,1,1,"_1","              <button id=\"XXXX\" onAction=\"onActionBUT\" getVisible=\"getVisible\" getLabel=\"getLabel\" getScreentip=\"getScreentip\" getSupertip=\"getSupertip\" imageMso=\"HappyFace\" getEnabled=\"getEnabled\"/>","BUTT",{"$f":"+COUNTIF($M$3:M124,M124)","v":89},"Sel_Bia_Hoso","              <button id=\"Sel_Bia_Hoso\" onAction=\"onActionBUT\" getVisible=\"getVisible\" getLabel=\"getLabel\" getScreentip=\"getScreentip\" getSupertip=\"getSupertip\" imageMso=\"_1\" getEnabled=\"getEnabled\"/>"]
["Sel_Bia_nhatky","Bia_nhatky","Bìa nhật ký thi công","Bìa nhật ký thi công",null,null,1,1,1,1,"_2","              <button id=\"XXXX\" onAction=\"onActionBUT\" getVisible=\"getVisible\" getLabel=\"getLabel\" getScreentip=\"getScreentip\" getSupertip=\"getSupertip\" imageMso=\"HappyFace\" getEnabled=\"getEnabled\"/>","BUTT",{"$f":"+COUNTIF($M$3:M125,M125)","v":90},"Sel_Bia_nhatky","              <button id=\"Sel_Bia_nhatky\" onAction=\"onActionBUT\" getVisible=\"getVisible\" getLabel=\"getLabel\" getScreentip=\"getScreentip\" getSupertip=\"getSupertip\" imageMso=\"_2\" getEnabled=\"getEnabled\"/>"]
["Sel_LenhKcong","LenhKcong","Lệnh khởi công","Lệnh khởi công",null,null,1,1,1,0,"_3","              <button id=\"XXXX\" onAction=\"onActionBUT\" getVisible=\"getVisible\" getLabel=\"getLabel\" getScreentip=\"getScreentip\" getSupertip=\"getSupertip\" imageMso=\"HappyFace\" getEnabled=\"getEnabled\"/>","BUTT",{"$f":"+COUNTIF($M$3:M126,M126)","v":91},"Sel_LenhKcong","              <button id=\"Sel_LenhKcong\" onAction=\"onActionBUT\" getVisible=\"getVisible\" getLabel=\"getLabel\" getScreentip=\"getScreentip\" getSupertip=\"getSupertip\" imageMso=\"_3\" getEnabled=\"getEnabled\"/>"]
["Sel_Matbang","Matbang","Biên bản bàn giao mặt bằng","Biên bản bàn giao mặt bằng",null,null,1,1,1,0,"_4","              <button id=\"XXXX\" onAction=\"onActionBUT\" getVisible=\"getVisible\" getLabel=\"getLabel\" getScreentip=\"getScreentip\" getSupertip=\"getSupertip\" imageMso=\"HappyFace\" getEnabled=\"getEnabled\"/>","BUTT",{"$f":"+COUNTIF($M$3:M127,M127)","v":92},"Sel_Matbang","              <button id=\"Sel_Matbang\" onAction=\"onActionBUT\" getVisible=\"getVisible\" getLabel=\"getLabel\" getScreentip=\"getScreentip\" getSupertip=\"getSupertip\" imageMso=\"_4\" getEnabled=\"getEnabled\"/>"]
["Sel_PhieuCTVL","PhieuCTVL","Biên bản vật liệu nguồn","Biên bản vật liệu nguồn",null,null,1,1,1,0,"_5","              <button id=\"XXXX\" onAction=\"onActionBUT\" getVisible=\"getVisible\" getLabel=\"getLabel\" getScreentip=\"getScreentip\" getSupertip=\"getSupertip\" imageMso=\"HappyFace\" getEnabled=\"getEnabled\"/>","BUTT",{"$f":"+COUNTIF($M$3:M128,M128)","v":93},"Sel_PhieuCTVL","              <button id=\"Sel_PhieuCTVL\" onAction=\"onActionBUT\" getVisible=\"getVisible\" getLabel=\"getLabel\" getScreentip=\"getScreentip\" getSupertip=\"getSupertip\" imageMso=\"_5\" getEnabled=\"getEnabled\"/>"]
["Sel_PhongThinghiem","PhongThinghiem","Biên bản kiểm tra phòng thí nghiệm","Biên bản kiểm tra phòng thí nghiệm",null,null,1,1,1,0,"_6","              <button id=\"XXXX\" onAction=\"onActionBUT\" getVisible=\"getVisible\" getLabel=\"getLabel\" getScreentip=\"getScreentip\" getSupertip=\"getSupertip\" imageMso=\"HappyFace\" getEnabled=\"getEnabled\"/>","BUTT",{"$f":"+COUNTIF($M$3:M129,M129)","v":94},"Sel_PhongThinghiem","              <button id=\"Sel_PhongThinghiem\" onAction=\"onActionBUT\" getVisible=\"getVisible\" getLabel=\"getLabel\" getScreentip=\"getScreentip\" getSupertip=\"getSupertip\" imageMso=\"_6\" getEnabled=\"getEnabled\"/>"]
["Sel_Nhanluc","Nhanluc","Biên bản kiểm tra thiết bị, nhân lực","Biên bản kiểm tra thiết bị, nhân lực",null,null,1,1,1,0,"_7","              <button id=\"XXXX\" onAction=\"onActionBUT\" getVisible=\"getVisible\" getLabel=\"getLabel\" getScreentip=\"getScreentip\" getSupertip=\"getSupertip\" imageMso=\"HappyFace\" getEnabled=\"getEnabled\"/>","BUTT",{"$f":"+COUNTIF($M$3:M130,M130)","v":95},"Sel_Nhanluc","              <button id=\"Sel_Nhanluc\" onAction=\"onActionBUT\" getVisible=\"getVisible\" getLabel=\"getLabel\" getScreentip=\"getScreentip\" getSupertip=\"getSupertip\" imageMso=\"_7\" getEnabled=\"getEnabled\"/>"]
["Sel_NthuMoc","NthuMoc","Biên bản kiểm tra tim mốc","Biên bản kiểm tra tim mốc",null,null,1,1,1,0,"_8","              <button id=\"XXXX\" onAction=\"onActionBUT\" getVisible=\"getVisible\" getLabel=\"getLabel\" getScreentip=\"getScreentip\" getSupertip=\"getSupertip\" imageMso=\"HappyFace\" getEnabled=\"getEnabled\"/>","BUTT",{"$f":"+COUNTIF($M$3:M131,M131)","v":96},"Sel_NthuMoc","              <button id=\"Sel_NthuMoc\" onAction=\"onActionBUT\" getVisible=\"getVisible\" getLabel=\"getLabel\" getScreentip=\"getScreentip\" getSupertip=\"getSupertip\" imageMso=\"_8\" getEnabled=\"getEnabled\"/>"]
["Sel_Dieukientruocthicong","Dieukientruocthicong","Biên bản kiểm tra điều kiện khởi công","Biên bản kiểm tra điều kiện khởi công",null,null,1,1,1,0,"_9","              <button id=\"XXXX\" onAction=\"onActionBUT\" getVisible=\"getVisible\" getLabel=\"getLabel\" getScreentip=\"getScreentip\" getSupertip=\"getSupertip\" imageMso=\"HappyFace\" getEnabled=\"getEnabled\"/>","BUTT",{"$f":"+COUNTIF($M$3:M132,M132)","v":97},"Sel_Dieukientruocthicong","              <button id=\"Sel_Dieukientruocthicong\" onAction=\"onActionBUT\" getVisible=\"getVisible\" getLabel=\"getLabel\" getScreentip=\"getScreentip\" getSupertip=\"getSupertip\" imageMso=\"_9\" getEnabled=\"getEnabled\"/>"]
["Sel_BBXLKT","BBXLKT","Biên bản xử lý kỹ thuật","Biên bản xử lý kỹ thuật",null,null,1,1,1,0,"_0","              <button id=\"XXXX\" onAction=\"onActionBUT\" getVisible=\"getVisible\" getLabel=\"getLabel\" getScreentip=\"getScreentip\" getSupertip=\"getSupertip\" imageMso=\"HappyFace\" getEnabled=\"getEnabled\"/>","BUTT",{"$f":"+COUNTIF($M$3:M133,M133)","v":98},"Sel_BBXLKT","              <button id=\"Sel_BBXLKT\" onAction=\"onActionBUT\" getVisible=\"getVisible\" getLabel=\"getLabel\" getScreentip=\"getScreentip\" getSupertip=\"getSupertip\" imageMso=\"_0\" getEnabled=\"getEnabled\"/>"]
["Sel_Baocaosuco","Baocaosuco","Biên bản báo cáo sự cố","Biên bản báo cáo sự cố",null,null,1,1,1,0,"_1","              <button id=\"XXXX\" onAction=\"onActionBUT\" getVisible=\"getVisible\" getLabel=\"getLabel\" getScreentip=\"getScreentip\" getSupertip=\"getSupertip\" imageMso=\"HappyFace\" getEnabled=\"getEnabled\"/>","BUTT",{"$f":"+COUNTIF($M$3:M134,M134)","v":99},"Sel_Baocaosuco","              <button id=\"Sel_Baocaosuco\" onAction=\"onActionBUT\" getVisible=\"getVisible\" getLabel=\"getLabel\" getScreentip=\"getScreentip\" getSupertip=\"getSupertip\" imageMso=\"_1\" getEnabled=\"getEnabled\"/>"]
["Sel_Baocaohoanthanh","Baocaohoanthanh","Biên bản hoàn thành công trình","Biên bản hoàn thành công trình",null,null,1,1,1,0,"_2","              <button id=\"XXXX\" onAction=\"onActionBUT\" getVisible=\"getVisible\" getLabel=\"getLabel\" getScreentip=\"getScreentip\" getSupertip=\"getSupertip\" imageMso=\"HappyFace\" getEnabled=\"getEnabled\"/>","BUTT",{"$f":"+COUNTIF($M$3:M135,M135)","v":100},"Sel_Baocaohoanthanh","              <button id=\"Sel_Baocaohoanthanh\" onAction=\"onActionBUT\" getVisible=\"getVisible\" getLabel=\"getLabel\" getScreentip=\"getScreentip\" getSupertip=\"getSupertip\" imageMso=\"_2\" getEnabled=\"getEnabled\"/>"]
["Sel_BB_BanGiao","BB_BanGiao","Biên bản bàn giao công trình","Biên bản bàn giao công trình",null,null,1,1,1,0,"_3","              <button id=\"XXXX\" onAction=\"onActionBUT\" getVisible=\"getVisible\" getLabel=\"getLabel\" getScreentip=\"getScreentip\" getSupertip=\"getSupertip\" imageMso=\"HappyFace\" getEnabled=\"getEnabled\"/>","BUTT",{"$f":"+COUNTIF($M$3:M136,M136)","v":101},"Sel_BB_BanGiao","              <button id=\"Sel_BB_BanGiao\" onAction=\"onActionBUT\" getVisible=\"getVisible\" getLabel=\"getLabel\" getScreentip=\"getScreentip\" getSupertip=\"getSupertip\" imageMso=\"_3\" getEnabled=\"getEnabled\"/>"]
["BUTT102",null,{"$f":"+MAX($C$1:C136)+1","v":137},null,null,null,0,1,1,0,"_4","              <button id=\"XXXX\" onAction=\"onActionBUT\" getVisible=\"getVisible\" getLabel=\"getLabel\" getScreentip=\"getScreentip\" getSupertip=\"getSupertip\" imageMso=\"HappyFace\" getEnabled=\"getEnabled\"/>","BUTT",{"$f":"+COUNTIF($M$3:M137,M137)","v":102},"BUTT102","              <button id=\"BUTT102\" onAction=\"onActionBUT\" getVisible=\"getVisible\" getLabel=\"getLabel\" getScreentip=\"getScreentip\" getSupertip=\"getSupertip\" imageMso=\"_4\" getEnabled=\"getEnabled\"/>"]
["BUTT103",null,{"$f":"+MAX($C$1:C137)+1","v":138},null,null,null,0,1,1,0,"_5","              <button id=\"XXXX\" onAction=\"onActionBUT\" getVisible=\"getVisible\" getLabel=\"getLabel\" getScreentip=\"getScreentip\" getSupertip=\"getSupertip\" imageMso=\"HappyFace\" getEnabled=\"getEnabled\"/>","BUTT",{"$f":"+COUNTIF($M$3:M138,M138)","v":103},"BUTT103","              <button id=\"BUTT103\" onAction=\"onActionBUT\" getVisible=\"getVisible\" getLabel=\"getLabel\" getScreentip=\"getScreentip\" getSupertip=\"getSupertip\" imageMso=\"_5\" getEnabled=\"getEnabled\"/>"]
["BUTT104",null,{"$f":"+MAX($C$1:C138)+1","v":139},null,null,null,0,1,1,0,"_6","              <button id=\"XXXX\" onAction=\"onActionBUT\" getVisible=\"getVisible\" getLabel=\"getLabel\" getScreentip=\"getScreentip\" getSupertip=\"getSupertip\" imageMso=\"HappyFace\" getEnabled=\"getEnabled\"/>","BUTT",{"$f":"+COUNTIF($M$3:M139,M139)","v":104},"BUTT104","              <button id=\"BUTT104\" onAction=\"onActionBUT\" getVisible=\"getVisible\" getLabel=\"getLabel\" getScreentip=\"getScreentip\" getSupertip=\"getSupertip\" imageMso=\"_6\" getEnabled=\"getEnabled\"/>"]
["BUTT105",null,{"$f":"+MAX($C$1:C139)+1","v":140},null,null,null,0,1,1,0,"_7","              <button id=\"XXXX\" onAction=\"onActionBUT\" getVisible=\"getVisible\" getLabel=\"getLabel\" getScreentip=\"getScreentip\" getSupertip=\"getSupertip\" imageMso=\"HappyFace\" getEnabled=\"getEnabled\"/>","BUTT",{"$f":"+COUNTIF($M$3:M140,M140)","v":105},"BUTT105","              <button id=\"BUTT105\" onAction=\"onActionBUT\" getVisible=\"getVisible\" getLabel=\"getLabel\" getScreentip=\"getScreentip\" getSupertip=\"getSupertip\" imageMso=\"_7\" getEnabled=\"getEnabled\"/>"]
["BUTT106",null,{"$f":"+MAX($C$1:C140)+1","v":141},null,null,null,0,1,1,0,"_8","              <button id=\"XXXX\" onAction=\"onActionBUT\" getVisible=\"getVisible\" getLabel=\"getLabel\" getScreentip=\"getScreentip\" getSupertip=\"getSupertip\" imageMso=\"HappyFace\" getEnabled=\"getEnabled\"/>","BUTT",{"$f":"+COUNTIF($M$3:M141,M141)","v":106},"BUTT106","              <button id=\"BUTT106\" onAction=\"onActionBUT\" getVisible=\"getVisible\" getLabel=\"getLabel\" getScreentip=\"getScreentip\" getSupertip=\"getSupertip\" imageMso=\"_8\" getEnabled=\"getEnabled\"/>"]
[null,null,{"$f":"+MAX($C$1:C141)+1","v":142},null,null,null,0,null,null,null,null,"            </menu>",null,null,"000","            </menu>"]
[null,null,{"$f":"+MAX($C$1:C142)+1","v":143},null,null,null,0,null,null,null,null,"          </splitButton>",null,null,"000","          </splitButton>"]
[{"$f":"+O144","v":"SPLI008"},null,169,null,null,null,{"$f":"+IF(ISNUMBER(C145),0,1)","v":1},1,1,1,null,"          <splitButton id=\"XXXX\" size=\"large\" getVisible=\"getVisible\" getEnabled=\"getEnabled\">","SPLI",{"$f":"+COUNTIF($M$3:M144,M144)","v":8},{"$f":"IF(B144<>\"\",IF(LEFT(B144,3)<>\"But\",\"Sel_\"&B144,B144),M144&TEXT(N144,\"000\"))","v":"SPLI008"},{"$f":"+SUBSTITUTE(SUBSTITUTE(L144,\"XXXX\",O144),\"HappyFace\",IF(K144<>\"\",K144,\"HappyFace\"))","v":"          <splitButton id=\"SPLI008\" size=\"large\" getVisible=\"getVisible\" getEnabled=\"getEnabled\">"}]
["But_NhatKy","But_NhatKy","Nhật ký","Nhật ký","Nhấn vào để di chuyển đến các sheet tương ứng",null,{"$f":"+IF(ISNUMBER(C145),0,1)","v":1},1,1,1,"Thesaurus","            <button id=\"XXXX\" onAction=\"onActionBUT\" getLabel=\"getLabel\" getScreentip=\"getScreentip\" getSupertip=\"getSupertip\" imageMso=\"HappyFace\" getEnabled=\"getEnabled\"/>","BUTT",{"$f":"+COUNTIF($M$3:M145,M145)","v":107},"But_NhatKy","            <button id=\"But_NhatKy\" onAction=\"onActionBUT\" getLabel=\"getLabel\" getScreentip=\"getScreentip\" getSupertip=\"getSupertip\" imageMso=\"Thesaurus\" getEnabled=\"getEnabled\"/>"]
["MENU008",null,170,null,null,null,{"$f":"+IF(ISNUMBER(C147),0,1)","v":1},1,1,1,null,"            <menu id=\"XXXX\" itemSize=\"normal\" getLabel=\"getLabel\" getScreentip=\"getScreentip\" getSupertip=\"getSupertip\" imageMso=\"HappyFace\" getEnabled=\"getEnabled\">","MENU",{"$f":"+COUNTIF($M$3:M146,M146)","v":8},"MENU008","            <menu id=\"MENU008\" itemSize=\"normal\" getLabel=\"getLabel\" getScreentip=\"getScreentip\" getSupertip=\"getSupertip\" imageMso=\"HappyFace\" getEnabled=\"getEnabled\">"]
["Sel_DMnhatky","DMnhatky","Danh mục nhật ký","Danh mục nhật ký",null,null,{"$f":"+IF(ISNUMBER(C147),0,1)","v":1},1,1,1,"FunctionsTextInsertGallery","              <button id=\"XXXX\" onAction=\"onActionBUT\" getVisible=\"getVisible\" getLabel=\"getLabel\" getScreentip=\"getScreentip\" getSupertip=\"getSupertip\" imageMso=\"HappyFace\" getEnabled=\"getEnabled\"/>","BUTT",{"$f":"+COUNTIF($M$3:M147,M147)","v":108},"Sel_DMnhatky","              <button id=\"Sel_DMnhatky\" onAction=\"onActionBUT\" getVisible=\"getVisible\" getLabel=\"getLabel\" getScreentip=\"getScreentip\" getSupertip=\"getSupertip\" imageMso=\"FunctionsTextInsertGallery\" getEnabled=\"getEnabled\"/>"]
["Sel_NKchitiet","NKchitiet","Phân tích chi tiết","Phân tích chi tiết",null,null,1,1,1,1,"ImportMoreMenu","              <button id=\"XXXX\" onAction=\"onActionBUT\" getVisible=\"getVisible\" getLabel=\"getLabel\" getScreentip=\"getScreentip\" getSupertip=\"getSupertip\" imageMso=\"HappyFace\" getEnabled=\"getEnabled\"/>","BUTT",{"$f":"+COUNTIF($M$3:M148,M148)","v":109},"Sel_NKchitiet","              <button id=\"Sel_NKchitiet\" onAction=\"onActionBUT\" getVisible=\"getVisible\" getLabel=\"getLabel\" getScreentip=\"getScreentip\" getSupertip=\"getSupertip\" imageMso=\"ImportMoreMenu\" getEnabled=\"getEnabled\"/>"]
["Sel_GhiNhatky","GhiNhatky","Nhật ký thi công (Chép tay)","Nhật ký thi công (Chép tay)","Nhật ký thi công ghi thủ công",null,{"$f":"+IF(ISNUMBER(C149),0,1)","v":1},1,1,1,"ReviewTrackChanges","              <button id=\"XXXX\" onAction=\"onActionBUT\" getVisible=\"getVisible\" getLabel=\"getLabel\" getScreentip=\"getScreentip\" getSupertip=\"getSupertip\" imageMso=\"HappyFace\" getEnabled=\"getEnabled\"/>","BUTT",{"$f":"+COUNTIF($M$3:M149,M149)","v":110},"Sel_GhiNhatky","              <button id=\"Sel_GhiNhatky\" onAction=\"onActionBUT\" getVisible=\"getVisible\" getLabel=\"getLabel\" getScreentip=\"getScreentip\" getSupertip=\"getSupertip\" imageMso=\"ReviewTrackChanges\" getEnabled=\"getEnabled\"/>"]
["Sel_InNKTC","InNKTC","Nhật ký thi công (Bản in)","Nhật ký thi công (Bản in)","Nhật ký thi công in máy",null,1,1,1,1,"FilePrint","              <button id=\"XXXX\" onAction=\"onActionBUT\" getVisible=\"getVisible\" getLabel=\"getLabel\" getScreentip=\"getScreentip\" getSupertip=\"getSupertip\" imageMso=\"HappyFace\" getEnabled=\"getEnabled\"/>","BUTT",{"$f":"+COUNTIF($M$3:M150,M150)","v":111},"Sel_InNKTC","              <button id=\"Sel_InNKTC\" onAction=\"onActionBUT\" getVisible=\"getVisible\" getLabel=\"getLabel\" getScreentip=\"getScreentip\" getSupertip=\"getSupertip\" imageMso=\"FilePrint\" getEnabled=\"getEnabled\"/>"]
["Sel_InNKGS","InNKGS","Nhật ký giám sát (Bản in)","Nhật ký giám sát (Bản in)","Nhật ký giám sát",null,1,1,1,0,"FilePrint","              <button id=\"XXXX\" onAction=\"onActionBUT\" getVisible=\"getVisible\" getLabel=\"getLabel\" getScreentip=\"getScreentip\" getSupertip=\"getSupertip\" imageMso=\"HappyFace\" getEnabled=\"getEnabled\"/>","BUTT",{"$f":"+COUNTIF($M$3:M151,M151)","v":112},"Sel_InNKGS","              <button id=\"Sel_InNKGS\" onAction=\"onActionBUT\" getVisible=\"getVisible\" getLabel=\"getLabel\" getScreentip=\"getScreentip\" getSupertip=\"getSupertip\" imageMso=\"FilePrint\" getEnabled=\"getEnabled\"/>"]
[{"$f":"+O152","v":"Sel_DanhmucNhatKy"},"DanhmucNhatKy","Danh sách nhật ký",{"$f":"+C152","v":"Danh sách nhật ký"},"Danh sách nhật ký dạng cột để \"Trộn thư\"",null,1,1,1,0,"Thesaurus","              <button id=\"XXXX\" onAction=\"onActionBUT\" getVisible=\"getVisible\" getLabel=\"getLabel\" getScreentip=\"getScreentip\" getSupertip=\"getSupertip\" imageMso=\"HappyFace\" getEnabled=\"getEnabled\"/>","BUTT",{"$f":"+COUNTIF($M$3:M152,M152)","v":113},"Sel_DanhmucNhatKy","              <button id=\"Sel_DanhmucNhatKy\" onAction=\"onActionBUT\" getVisible=\"getVisible\" getLabel=\"getLabel\" getScreentip=\"getScreentip\" getSupertip=\"getSupertip\" imageMso=\"Thesaurus\" getEnabled=\"getEnabled\"/>"]
[null,null,{"$f":"+MAX($C$1:C152)+1","v":171},null,null,null,0,null,null,null,null,"            </menu>",null,null,"000","            </menu>"]
[null,null,{"$f":"+MAX($C$1:C153)+1","v":172},null,null,null,0,null,null,null,null,"          </splitButton>",null,null,"000","          </splitButton>"]
[{"$f":"+O155","v":"SPLI009"},null,null,null,null,null,{"$f":"+IF(ISNUMBER(C156),0,1)","v":1},1,1,1,null,"          <splitButton id=\"XXXX\" size=\"large\" getVisible=\"getVisible\" getEnabled=\"getEnabled\">","SPLI",{"$f":"+COUNTIF($M$3:M155,M155)","v":9},{"$f":"IF(B155<>\"\",IF(LEFT(B155,3)<>\"But\",\"Sel_\"&B155,B155),M155&TEXT(N155,\"000\"))","v":"SPLI009"},{"$f":"+SUBSTITUTE(SUBSTITUTE(L155,\"XXXX\",O155),\"HappyFace\",IF(K155<>\"\",K155,\"HappyFace\"))","v":"          <splitButton id=\"SPLI009\" size=\"large\" getVisible=\"getVisible\" getEnabled=\"getEnabled\">"}]
["But_TienDoThiCong","But_TienDoThiCong","Tiến độ",null,null,null,{"$f":"+IF(ISNUMBER(C156),0,1)","v":1},1,1,1,"ShowSchedulingPage","            <button id=\"XXXX\" onAction=\"onActionBUT\" getLabel=\"getLabel\" getScreentip=\"getScreentip\" getSupertip=\"getSupertip\" imageMso=\"HappyFace\" getEnabled=\"getEnabled\"/>","BUTT",{"$f":"+COUNTIF($M$3:M156,M156)","v":114},"But_TienDoThiCong","            <button id=\"But_TienDoThiCong\" onAction=\"onActionBUT\" getLabel=\"getLabel\" getScreentip=\"getScreentip\" getSupertip=\"getSupertip\" imageMso=\"ShowSchedulingPage\" getEnabled=\"getEnabled\"/>"]
["MENU009",null,null,null,null,null,{"$f":"+IF(ISNUMBER(C158),0,1)","v":1},1,1,1,null,"            <menu id=\"XXXX\" itemSize=\"normal\" getLabel=\"getLabel\" getScreentip=\"getScreentip\" getSupertip=\"getSupertip\" imageMso=\"HappyFace\" getEnabled=\"getEnabled\">","MENU",{"$f":"+COUNTIF($M$3:M157,M157)","v":9},"MENU009","            <menu id=\"MENU009\" itemSize=\"normal\" getLabel=\"getLabel\" getScreentip=\"getScreentip\" getSupertip=\"getSupertip\" imageMso=\"HappyFace\" getEnabled=\"getEnabled\">"]
["Sel_TiendoThicong","TiendoThicong","Tiến độ thi công",null,null,null,{"$f":"+IF(ISNUMBER(C158),0,1)","v":1},1,1,1,"ShowSchedulingPage","              <button id=\"XXXX\" onAction=\"onActionBUT\" getVisible=\"getVisible\" getLabel=\"getLabel\" getScreentip=\"getScreentip\" getSupertip=\"getSupertip\" imageMso=\"HappyFace\" getEnabled=\"getEnabled\"/>","BUTT",{"$f":"+COUNTIF($M$3:M158,M158)","v":115},"Sel_TiendoThicong","              <button id=\"Sel_TiendoThicong\" onAction=\"onActionBUT\" getVisible=\"getVisible\" getLabel=\"getLabel\" getScreentip=\"getScreentip\" getSupertip=\"getSupertip\" imageMso=\"ShowSchedulingPage\" getEnabled=\"getEnabled\"/>"]
["Sel_Nhancong","Nhancong","Nhân công",null,null,null,{"$f":"+IF(ISNUMBER(C159),0,1)","v":1},1,1,0,"ChartPlotArea","              <button id=\"XXXX\" onAction=\"onActionBUT\" getVisible=\"getVisible\" getLabel=\"getLabel\" getScreentip=\"getScreentip\" getSupertip=\"getSupertip\" imageMso=\"HappyFace\" getEnabled=\"getEnabled\"/>","BUTT",{"$f":"+COUNTIF($M$3:M159,M159)","v":116},"Sel_Nhancong","              <button id=\"Sel_Nhancong\" onAction=\"onActionBUT\" getVisible=\"getVisible\" getLabel=\"getLabel\" getScreentip=\"getScreentip\" getSupertip=\"getSupertip\" imageMso=\"ChartPlotArea\" getEnabled=\"getEnabled\"/>"]
["Sel_Thietbi","Thietbi","Thiết bị",null,null,null,{"$f":"+IF(ISNUMBER(C160),0,1)","v":1},1,1,0,"ChartPlotArea","              <button id=\"XXXX\" onAction=\"onActionBUT\" getVisible=\"getVisible\" getLabel=\"getLabel\" getScreentip=\"getScreentip\" getSupertip=\"getSupertip\" imageMso=\"HappyFace\" getEnabled=\"getEnabled\"/>","BUTT",{"$f":"+COUNTIF($M$3:M160,M160)","v":117},"Sel_Thietbi","              <button id=\"Sel_Thietbi\" onAction=\"onActionBUT\" getVisible=\"getVisible\" getLabel=\"getLabel\" getScreentip=\"getScreentip\" getSupertip=\"getSupertip\" imageMso=\"ChartPlotArea\" getEnabled=\"getEnabled\"/>"]
[null,null,{"$f":"+MAX($C$1:C160)+1","v":173},null,null,null,{"$f":"+IF(ISNUMBER(C161),0,1)","v":0},null,null,null,null,"            </menu>",null,null,"000","            </menu>"]
[null,null,{"$f":"+MAX($C$1:C161)+1","v":174},null,null,null,{"$f":"+IF(ISNUMBER(C162),0,1)","v":0},null,null,null,null,"          </splitButton>",null,null,"000","          </splitButton>"]
[{"$f":"+O163","v":"But_CaiDatXem"},"But_CaiDatXem",null,null,null,null,null,null,null,null,null,"          <dialogBoxLauncher><button id=\"XXXX\" onAction=\"onActionBUT\"/></dialogBoxLauncher>","BUTT",{"$f":"+COUNTIF($M$3:M163,M163)","v":118},"But_CaiDatXem","          <dialogBoxLauncher><button id=\"But_CaiDatXem\" onAction=\"onActionBUT\"/></dialogBoxLauncher>"]
[null,null,{"$f":"+MAX($C$1:C154)+1","v":173},null,null,null,0,null,null,null,null,"        </group>",null,null,"000","        </group>"]
[{"$f":"+O165","v":"GROU005"},null,"Xuất dữ liệu","Xuất dữ liệu",null,null,1,1,1,0,null,"        <group id=\"XXXX\" getVisible=\"getVisible\" getLabel=\"getLabel\">","GROU",{"$f":"+COUNTIF($M$3:M165,M165)","v":5},"GROU005","        <group id=\"GROU005\" getVisible=\"getVisible\" getLabel=\"getLabel\">"]
[{"$f":"+O166","v":"But_INBBNT"},"But_INBBNT","In biên bản","In biên bản",null,null,1,1,1,1,"FilePrint","          <button id=\"XXXX\" onAction=\"onActionBUT\" getSize=\"getSize\" getVisible=\"getVisible\" getLabel=\"getLabel\" getScreentip=\"getScreentip\" getSupertip=\"getSupertip\" imageMso=\"HappyFace\" getEnabled=\"getEnabled\"/>","BUTT",{"$f":"+COUNTIF($M$3:M166,M166)","v":119},"But_INBBNT","          <button id=\"But_INBBNT\" onAction=\"onActionBUT\" getSize=\"getSize\" getVisible=\"getVisible\" getLabel=\"getLabel\" getScreentip=\"getScreentip\" getSupertip=\"getSupertip\" imageMso=\"FilePrint\" getEnabled=\"getEnabled\"/>"]
["But_XuatBBNTCVXD","But_XuatBBNTCVXD","Xuất Biên bản","Xuất Biên bản","Xuất biên bản ra PDF\n\"đường dẫn file hiện tại\\PDF\\BienBan\\\"",null,1,1,1,1,"BlogPublish","          <button id=\"XXXX\" onAction=\"onActionBUT\" getSize=\"getSize\" getVisible=\"getVisible\" getLabel=\"getLabel\" getScreentip=\"getScreentip\" getSupertip=\"getSupertip\" imageMso=\"HappyFace\" getEnabled=\"getEnabled\"/>","BUTT",{"$f":"+COUNTIF($M$3:M167,M167)","v":120},"But_XuatBBNTCVXD","          <button id=\"But_XuatBBNTCVXD\" onAction=\"onActionBUT\" getSize=\"getSize\" getVisible=\"getVisible\" getLabel=\"getLabel\" getScreentip=\"getScreentip\" getSupertip=\"getSupertip\" imageMso=\"BlogPublish\" getEnabled=\"getEnabled\"/>"]
["But_Innhatky","But_Innhatky","Xuất Nhật ký","Xuất Nhật ký","Xuất Nhật ký ra PDF\n\"đường dẫn file hiện tại\\PDF\\NhatKy\\\"",null,1,1,1,1,"UpgradePresentation","          <button id=\"XXXX\" onAction=\"onActionBUT\" getSize=\"getSize\" getVisible=\"getVisible\" getLabel=\"getLabel\" getScreentip=\"getScreentip\" getSupertip=\"getSupertip\" imageMso=\"HappyFace\" getEnabled=\"getEnabled\"/>","BUTT",{"$f":"+COUNTIF($M$3:M168,M168)","v":121},"But_Innhatky","          <button id=\"But_Innhatky\" onAction=\"onActionBUT\" getSize=\"getSize\" getVisible=\"getVisible\" getLabel=\"getLabel\" getScreentip=\"getScreentip\" getSupertip=\"getSupertip\" imageMso=\"UpgradePresentation\" getEnabled=\"getEnabled\"/>"]
["BUTT122",null,213,null,null,null,0,1,1,1,null,"          <button id=\"XXXX\" onAction=\"onActionBUT\" getSize=\"getSize\" getVisible=\"getVisible\" getLabel=\"getLabel\" getScreentip=\"getScreentip\" getSupertip=\"getSupertip\" imageMso=\"HappyFace\" getEnabled=\"getEnabled\"/>","BUTT",{"$f":"+COUNTIF($M$3:M169,M169)","v":122},"BUTT122","          <button id=\"BUTT122\" onAction=\"onActionBUT\" getSize=\"getSize\" getVisible=\"getVisible\" getLabel=\"getLabel\" getScreentip=\"getScreentip\" getSupertip=\"getSupertip\" imageMso=\"HappyFace\" getEnabled=\"getEnabled\"/>"]
["SPLI010",null,214,null,null,null,{"$f":"+IF(ISNUMBER(C171),0,1)","v":1},1,1,1,null,"          <splitButton id=\"XXXX\" size=\"large\" getVisible=\"getVisible\" getEnabled=\"getEnabled\">","SPLI",{"$f":"+COUNTIF($M$3:M170,M170)","v":10},"SPLI010","          <splitButton id=\"SPLI010\" size=\"large\" getVisible=\"getVisible\" getEnabled=\"getEnabled\">"]
["But_XuatDanhMuc","But_XuatDanhMuc","Xuất List",null,null,null,1,1,1,1,"UpgradeDocument","            <button id=\"XXXX\" onAction=\"onActionBUT\" getLabel=\"getLabel\" getScreentip=\"getScreentip\" getSupertip=\"getSupertip\" imageMso=\"HappyFace\" getEnabled=\"getEnabled\"/>","BUTT",{"$f":"+COUNTIF($M$3:M171,M171)","v":123},"But_XuatDanhMuc","            <button id=\"But_XuatDanhMuc\" onAction=\"onActionBUT\" getLabel=\"getLabel\" getScreentip=\"getScreentip\" getSupertip=\"getSupertip\" imageMso=\"UpgradeDocument\" getEnabled=\"getEnabled\"/>"]
["MENU010",null,{"$f":"+C171","v":"Xuất List"},null,null,null,{"$f":"+IF(ISNUMBER(C173),0,1)","v":1},1,1,1,null,"            <menu id=\"XXXX\" itemSize=\"normal\" getLabel=\"getLabel\" getScreentip=\"getScreentip\" getSupertip=\"getSupertip\" imageMso=\"HappyFace\" getEnabled=\"getEnabled\">","MENU",{"$f":"+COUNTIF($M$3:M172,M172)","v":10},"MENU010","            <menu id=\"MENU010\" itemSize=\"normal\" getLabel=\"getLabel\" getScreentip=\"getScreentip\" getSupertip=\"getSupertip\" imageMso=\"HappyFace\" getEnabled=\"getEnabled\">"]
["But_TachListBBCVtoWord","But_TachListBBCVtoWord","Tách danh mục công việc xây dựng",null,null,null,1,1,1,1,"FileSaveAsWordDocx","              <button id=\"XXXX\" onAction=\"onActionBUT\" getVisible=\"getVisible\" getLabel=\"getLabel\" getScreentip=\"getScreentip\" getSupertip=\"getSupertip\" imageMso=\"HappyFace\" getEnabled=\"getEnabled\"/>","BUTT",{"$f":"+COUNTIF($M$3:M173,M173)","v":124},{"$f":"IF(B173<>\"\",IF(LEFT(B173,3)<>\"But\",\"Sel_\"&B173,B173),M173&TEXT(N173,\"000\"))","v":"But_TachListBBCVtoWord"},{"$f":"+SUBSTITUTE(SUBSTITUTE(L173,\"XXXX\",O173),\"HappyFace\",IF(K173<>\"\",K173,\"HappyFace\"))","v":"              <button id=\"But_TachListBBCVtoWord\" onAction=\"onActionBUT\" getVisible=\"getVisible\" getLabel=\"getLabel\" getScreentip=\"getScreentip\" getSupertip=\"getSupertip\" imageMso=\"FileSaveAsWordDocx\" getEnabled=\"getEnabled\"/>"}]
["But_TachListBBHT","But_TachListBBHT","Tách danh mục công việc hoàn thành",null,null,null,1,1,1,1,"FileSaveAsWordDocx","              <button id=\"XXXX\" onAction=\"onActionBUT\" getVisible=\"getVisible\" getLabel=\"getLabel\" getScreentip=\"getScreentip\" getSupertip=\"getSupertip\" imageMso=\"HappyFace\" getEnabled=\"getEnabled\"/>","BUTT",{"$f":"+COUNTIF($M$3:M174,M174)","v":125},"But_TachListBBHT","              <button id=\"But_TachListBBHT\" onAction=\"onActionBUT\" getVisible=\"getVisible\" getLabel=\"getLabel\" getScreentip=\"getScreentip\" getSupertip=\"getSupertip\" imageMso=\"FileSaveAsWordDocx\" getEnabled=\"getEnabled\"/>"]
["But_TachFileThinghiem","But_TachFileThinghiem","Tách danh mục thí nghiệm",null,null,null,{"$f":"+IF(ISNUMBER(C175),0,1)","v":1},1,1,1,"FileSaveAsWordDocx","              <button id=\"XXXX\" onAction=\"onActionBUT\" getVisible=\"getVisible\" getLabel=\"getLabel\" getScreentip=\"getScreentip\" getSupertip=\"getSupertip\" imageMso=\"HappyFace\" getEnabled=\"getEnabled\"/>","BUTT",{"$f":"+COUNTIF($M$3:M175,M175)","v":126},"But_TachFileThinghiem","              <button id=\"But_TachFileThinghiem\" onAction=\"onActionBUT\" getVisible=\"getVisible\" getLabel=\"getLabel\" getScreentip=\"getScreentip\" getSupertip=\"getSupertip\" imageMso=\"FileSaveAsWordDocx\" getEnabled=\"getEnabled\"/>"]
["But_TachNTVL","But_TachNTVL","Tách danh mục nghiệm thu vật liệu",null,null,null,1,1,1,0,"FileSaveAsWordDocx","              <button id=\"XXXX\" onAction=\"onActionBUT\" getVisible=\"getVisible\" getLabel=\"getLabel\" getScreentip=\"getScreentip\" getSupertip=\"getSupertip\" imageMso=\"HappyFace\" getEnabled=\"getEnabled\"/>","BUTT",{"$f":"+COUNTIF($M$3:M176,M176)","v":127},"But_TachNTVL","              <button id=\"But_TachNTVL\" onAction=\"onActionBUT\" getVisible=\"getVisible\" getLabel=\"getLabel\" getScreentip=\"getScreentip\" getSupertip=\"getSupertip\" imageMso=\"FileSaveAsWordDocx\" getEnabled=\"getEnabled\"/>"]
["But_TachNhatKy","But_TachNhatKy","Tách nhật ký",null,null,null,1,1,1,0,"FileSaveAsWordDocx","              <button id=\"XXXX\" onAction=\"onActionBUT\" getVisible=\"getVisible\" getLabel=\"getLabel\" getScreentip=\"getScreentip\" getSupertip=\"getSupertip\" imageMso=\"HappyFace\" getEnabled=\"getEnabled\"/>","BUTT",{"$f":"+COUNTIF($M$3:M177,M177)","v":128},"But_TachNhatKy","              <button id=\"But_TachNhatKy\" onAction=\"onActionBUT\" getVisible=\"getVisible\" getLabel=\"getLabel\" getScreentip=\"getScreentip\" getSupertip=\"getSupertip\" imageMso=\"FileSaveAsWordDocx\" getEnabled=\"getEnabled\"/>"]
["BUTT129",null,{"$f":"+MAX($C$1:C177)+1","v":215},null,null,null,0,1,1,0,"FileSaveAsWordDocx","              <button id=\"XXXX\" onAction=\"onActionBUT\" getVisible=\"getVisible\" getLabel=\"getLabel\" getScreentip=\"getScreentip\" getSupertip=\"getSupertip\" imageMso=\"HappyFace\" getEnabled=\"getEnabled\"/>","BUTT",{"$f":"+COUNTIF($M$3:M178,M178)","v":129},"BUTT129","              <button id=\"BUTT129\" onAction=\"onActionBUT\" getVisible=\"getVisible\" getLabel=\"getLabel\" getScreentip=\"getScreentip\" getSupertip=\"getSupertip\" imageMso=\"FileSaveAsWordDocx\" getEnabled=\"getEnabled\"/>"]
[null,null,{"$f":"+MAX($C$1:C178)+1","v":216},null,null,null,0,null,null,null,null,"            </menu>",null,null,"000","            </menu>"]
[null,null,{"$f":"+MAX($C$1:C179)+1","v":217},null,null,null,0,null,null,null,null,"          </splitButton>",null,null,"000","          </splitButton>"]
[{"$f":"+O181","v":"But_CaiDatXuatDuLieu"},"But_CaiDatXuatDuLieu",null,null,null,null,null,null,null,null,null,"          <dialogBoxLauncher><button id=\"XXXX\" onAction=\"onActionBUT\"/></dialogBoxLauncher>","BUTT",{"$f":"+COUNTIF($M$3:M181,M181)","v":130},"But_CaiDatXuatDuLieu","          <dialogBoxLauncher><button id=\"But_CaiDatXuatDuLieu\" onAction=\"onActionBUT\"/></dialogBoxLauncher>"]
[null,null,{"$f":"+MAX($C$1:C180)+1","v":218},null,null,null,0,null,null,null,null,"        </group>",null,null,"000","        </group>"]
[{"$f":"+O183","v":"GROU006"},null,"Ẩn/ hiện",null,null,null,{"$f":"+IF(ISNUMBER(C183),0,1)","v":1},1,1,0,null,"        <group id=\"XXXX\" getVisible=\"getVisible\" getLabel=\"getLabel\">","GROU",{"$f":"+COUNTIF($M$3:M183,M183)","v":6},{"$f":"IF(B183<>\"\",IF(LEFT(B183,3)<>\"But\",\"Sel_\"&B183,B183),M183&TEXT(N183,\"000\"))","v":"GROU006"},{"$f":"+SUBSTITUTE(SUBSTITUTE(L183,\"XXXX\",O183),\"HappyFace\",IF(K183<>\"\",K183,\"HappyFace\"))","v":"        <group id=\"GROU006\" getVisible=\"getVisible\" getLabel=\"getLabel\">"}]
[{"$f":"+O184","v":"But_HienNgayThang"},"But_HienNgayThang","Ngày tháng","Hiển thị ngày tháng tại biên bản","+ ngày 01 tháng 01 năm 1900\n+ ngày …..tháng…...năm…......",null,1,{"$f":"+IF(setting!$B$3,1,0)","v":1},1,0,"ViewAllProposals","          <button id=\"XXXX\" onAction=\"onActionBUT\" getSize=\"getSize\" getVisible=\"getVisible\" getLabel=\"getLabel\" getScreentip=\"getScreentip\" getSupertip=\"getSupertip\" imageMso=\"HappyFace\" getEnabled=\"getEnabled\"/>","BUTT",{"$f":"+COUNTIF($M$3:M184,M184)","v":131},{"$f":"IF(B184<>\"\",IF(LEFT(B184,3)<>\"But\",\"Sel_\"&B184,B184),M184&TEXT(N184,\"000\"))","v":"But_HienNgayThang"},{"$f":"+SUBSTITUTE(SUBSTITUTE(L184,\"XXXX\",O184),\"HappyFace\",IF(K184<>\"\",K184,\"HappyFace\"))","v":"          <button id=\"But_HienNgayThang\" onAction=\"onActionBUT\" getSize=\"getSize\" getVisible=\"getVisible\" getLabel=\"getLabel\" getScreentip=\"getScreentip\" getSupertip=\"getSupertip\" imageMso=\"ViewAllProposals\" getEnabled=\"getEnabled\"/>"}]
["But_HienSTT","But_HienSTT","Số biên bản","Hiển thị số biên bản","+ Số: 01/NTCV\n+ Số:…../NTCV",null,1,{"$f":"+IF(setting!$B$3,1,0)","v":1},1,0,"TripaneViewMode","          <button id=\"XXXX\" onAction=\"onActionBUT\" getSize=\"getSize\" getVisible=\"getVisible\" getLabel=\"getLabel\" getScreentip=\"getScreentip\" getSupertip=\"getSupertip\" imageMso=\"HappyFace\" getEnabled=\"getEnabled\"/>","BUTT",{"$f":"+COUNTIF($M$3:M185,M185)","v":132},"But_HienSTT","          <button id=\"But_HienSTT\" onAction=\"onActionBUT\" getSize=\"getSize\" getVisible=\"getVisible\" getLabel=\"getLabel\" getScreentip=\"getScreentip\" getSupertip=\"getSupertip\" imageMso=\"TripaneViewMode\" getEnabled=\"getEnabled\"/>"]
["But_HienTienDo","But_HienTienDo","Tiến độ","Hiển thị tiến độ","Hiển thị đường tiến độ tại sheet tiến độ",null,1,{"$f":"+IF(setting!$B$3,1,0)","v":1},1,0,"ShowSchedulingPage","          <button id=\"XXXX\" onAction=\"onActionBUT\" getSize=\"getSize\" getVisible=\"getVisible\" getLabel=\"getLabel\" getScreentip=\"getScreentip\" getSupertip=\"getSupertip\" imageMso=\"HappyFace\" getEnabled=\"getEnabled\"/>","BUTT",{"$f":"+COUNTIF($M$3:M186,M186)","v":133},"But_HienTienDo","          <button id=\"But_HienTienDo\" onAction=\"onActionBUT\" getSize=\"getSize\" getVisible=\"getVisible\" getLabel=\"getLabel\" getScreentip=\"getScreentip\" getSupertip=\"getSupertip\" imageMso=\"ShowSchedulingPage\" getEnabled=\"getEnabled\"/>"]
["But_CaiDatAnHien","But_CaiDatAnHien",null,null,null,null,null,null,null,null,null,"          <dialogBoxLauncher><button id=\"XXXX\" onAction=\"onActionBUT\"/></dialogBoxLauncher>","BUTT",{"$f":"+COUNTIF($M$3:M187,M187)","v":134},"But_CaiDatAnHien","          <dialogBoxLauncher><button id=\"But_CaiDatAnHien\" onAction=\"onActionBUT\"/></dialogBoxLauncher>"]
[null,null,{"$f":"+MAX($C$1:C183)+1","v":219},null,null,null,0,null,null,null,null,"        </group>",null,null,"000","        </group>"]
[{"$f":"+O189","v":"GROU007"},null,"Khác",null,null,null,1,1,1,0,null,"        <group id=\"XXXX\" getVisible=\"getVisible\" getLabel=\"getLabel\">","GROU",{"$f":"+COUNTIF($M$3:M189,M189)","v":7},"GROU007","        <group id=\"GROU007\" getVisible=\"getVisible\" getLabel=\"getLabel\">"]
[{"$f":"+O190","v":"But_Truoc"},"But_Truoc","Trước",{"$f":"+C190","v":"Trước"},"Đi đến biên bản trước",null,{"$f":"+IF(ISNUMBER(C190),0,1)","v":1},{"$f":"+IF(setting!$B$4,1,0)","v":1},1,1,"FillLeft","          <button id=\"XXXX\" onAction=\"onActionBUT\" getSize=\"getSize\" getVisible=\"getVisible\" getLabel=\"getLabel\" getScreentip=\"getScreentip\" getSupertip=\"getSupertip\" imageMso=\"HappyFace\" getEnabled=\"getEnabled\"/>","BUTT",{"$f":"+COUNTIF($M$3:M190,M190)","v":135},{"$f":"IF(B190<>\"\",IF(LEFT(B190,3)<>\"But\",\"Sel_\"&B190,B190),M190&TEXT(N190,\"000\"))","v":"But_Truoc"},{"$f":"+SUBSTITUTE(SUBSTITUTE(L190,\"XXXX\",O190),\"HappyFace\",IF(K190<>\"\",K190,\"HappyFace\"))","v":"          <button id=\"But_Truoc\" onAction=\"onActionBUT\" getSize=\"getSize\" getVisible=\"getVisible\" getLabel=\"getLabel\" getScreentip=\"getScreentip\" getSupertip=\"getSupertip\" imageMso=\"FillLeft\" getEnabled=\"getEnabled\"/>"},null,"FillUp","lên","FillLeft","trái"]
[{"$f":"+O191","v":"But_Sau"},"But_Sau","Sau   ",{"$f":"+C191","v":"Sau   "},"Đi đến biên bản sau",null,1,{"$f":"+IF(setting!$B$4,1,0)","v":1},1,1,"FillRight","          <button id=\"XXXX\" onAction=\"onActionBUT\" getSize=\"getSize\" getVisible=\"getVisible\" getLabel=\"getLabel\" getScreentip=\"getScreentip\" getSupertip=\"getSupertip\" imageMso=\"HappyFace\" getEnabled=\"getEnabled\"/>","BUTT",{"$f":"+COUNTIF($M$3:M193,M191)","v":138},{"$f":"IF(B191<>\"\",IF(LEFT(B191,3)<>\"But\",\"Sel_\"&B191,B191),M191&TEXT(N191,\"000\"))","v":"But_Sau"},{"$f":"+SUBSTITUTE(SUBSTITUTE(L191,\"XXXX\",O191),\"HappyFace\",IF(K191<>\"\",K191,\"HappyFace\"))","v":"          <button id=\"But_Sau\" onAction=\"onActionBUT\" getSize=\"getSize\" getVisible=\"getVisible\" getLabel=\"getLabel\" getScreentip=\"getScreentip\" getSupertip=\"getSupertip\" imageMso=\"FillRight\" getEnabled=\"getEnabled\"/>"},null,"FillMenu","xuống","FillRight","phải"]
[{"$f":"+O192","v":"But_Folder"},"But_Folder","Thư mục ảnh",{"$f":"+C192","v":"Thư mục ảnh"},"Chỉnh sửa đường dẫn thư mục ảnh, nếu lỗi chương trình sẽ lấy \"đường dẫn file hiện tại\\HinhAnh\\\"",null,1,{"$f":"+IF(setting!$B$2,1,0)","v":0},1,0,"MoveToFolder","          <button id=\"XXXX\" onAction=\"onActionBUT\" getSize=\"getSize\" getVisible=\"getVisible\" getLabel=\"getLabel\" getScreentip=\"getScreentip\" getSupertip=\"getSupertip\" imageMso=\"HappyFace\" getEnabled=\"getEnabled\"/>","BUTT",{"$f":"+COUNTIF($M$3:M192,M192)","v":137},"But_Folder","          <button id=\"But_Folder\" onAction=\"onActionBUT\" getSize=\"getSize\" getVisible=\"getVisible\" getLabel=\"getLabel\" getScreentip=\"getScreentip\" getSupertip=\"getSupertip\" imageMso=\"MoveToFolder\" getEnabled=\"getEnabled\"/>"]
["But_CapNhat","But_CapNhat","Cập nhật",{"$f":"+C193","v":"Cập nhật"},"+ Cập nhật chiều cao dòng Thông tin công trình tại các biên bản\n+ Cập nhật chiều cao dòng, dữ liệu công việc tại các biên bản",null,1,{"$f":"+IF(setting!$B$3,1,0)","v":1},1,0,"RecurrenceEdit","          <button id=\"XXXX\" onAction=\"onActionBUT\" getSize=\"getSize\" getVisible=\"getVisible\" getLabel=\"getLabel\" getScreentip=\"getScreentip\" getSupertip=\"getSupertip\" imageMso=\"HappyFace\" getEnabled=\"getEnabled\"/>","BUTT",{"$f":"+COUNTIF($M$3:M193,M193)","v":138},"But_CapNhat","          <button id=\"But_CapNhat\" onAction=\"onActionBUT\" getSize=\"getSize\" getVisible=\"getVisible\" getLabel=\"getLabel\" getScreentip=\"getScreentip\" getSupertip=\"getSupertip\" imageMso=\"RecurrenceEdit\" getEnabled=\"getEnabled\"/>"]
[{"$f":"+O194","v":"But_Setting"},"But_Setting","Cài đặt",null,null,null,{"$f":"+IF(ISNUMBER(C194),0,1)","v":1},{"$f":"+IF(setting!$B$3,1,0)","v":1},1,0,"AddInManager","          <button id=\"XXXX\" onAction=\"onActionBUT\" getSize=\"getSize\" getVisible=\"getVisible\" getLabel=\"getLabel\" getScreentip=\"getScreentip\" getSupertip=\"getSupertip\" imageMso=\"HappyFace\" getEnabled=\"getEnabled\"/>","BUTT",{"$f":"+COUNTIF($M$3:M194,M194)","v":139},{"$f":"IF(B194<>\"\",IF(LEFT(B194,3)<>\"But\",\"Sel_\"&B194,B194),M194&TEXT(N194,\"000\"))","v":"But_Setting"},{"$f":"+SUBSTITUTE(SUBSTITUTE(L194,\"XXXX\",O194),\"HappyFace\",IF(K194<>\"\",K194,\"HappyFace\"))","v":"          <button id=\"But_Setting\" onAction=\"onActionBUT\" getSize=\"getSize\" getVisible=\"getVisible\" getLabel=\"getLabel\" getScreentip=\"getScreentip\" getSupertip=\"getSupertip\" imageMso=\"AddInManager\" getEnabled=\"getEnabled\"/>"}]
[{"$f":"+O195","v":"But_Merge"},"But_Merge","Gộp ô",{"$f":"+C195","v":"Gộp ô"},"Gộp ô và canh trái",null,{"$f":"+IF(ISNUMBER(C195),0,1)","v":1},{"$f":"+IF(setting!$B$3,1,0)","v":1},1,0,"MergeCellsAcross","          <button id=\"XXXX\" onAction=\"onActionBUT\" getSize=\"getSize\" getVisible=\"getVisible\" getLabel=\"getLabel\" getScreentip=\"getScreentip\" getSupertip=\"getSupertip\" imageMso=\"HappyFace\" getEnabled=\"getEnabled\"/>","BUTT",{"$f":"+COUNTIF($M$3:M195,M195)","v":140},{"$f":"IF(B195<>\"\",IF(LEFT(B195,3)<>\"But\",\"Sel_\"&B195,B195),M195&TEXT(N195,\"000\"))","v":"But_Merge"},{"$f":"+SUBSTITUTE(SUBSTITUTE(L195,\"XXXX\",O195),\"HappyFace\",IF(K195<>\"\",K195,\"HappyFace\"))","v":"          <button id=\"But_Merge\" onAction=\"onActionBUT\" getSize=\"getSize\" getVisible=\"getVisible\" getLabel=\"getLabel\" getScreentip=\"getScreentip\" getSupertip=\"getSupertip\" imageMso=\"MergeCellsAcross\" getEnabled=\"getEnabled\"/>"}]
[{"$f":"+O196","v":"But_Preeze"},"But_Preeze","Cố định",{"$f":"+C196","v":"Cố định"},"Cố định ô",null,{"$f":"+IF(ISNUMBER(C196),0,1)","v":1},{"$f":"+IF(setting!$B$3,1,0)","v":1},1,0,"ViewFreezePanesGallery","          <button id=\"XXXX\" onAction=\"onActionBUT\" getSize=\"getSize\" getVisible=\"getVisible\" getLabel=\"getLabel\" getScreentip=\"getScreentip\" getSupertip=\"getSupertip\" imageMso=\"HappyFace\" getEnabled=\"getEnabled\"/>","BUTT",{"$f":"+COUNTIF($M$3:M216,M196)","v":159},{"$f":"IF(B196<>\"\",IF(LEFT(B196,3)<>\"But\",\"Sel_\"&B196,B196),M196&TEXT(N196,\"000\"))","v":"But_Preeze"},{"$f":"+SUBSTITUTE(SUBSTITUTE(L196,\"XXXX\",O196),\"HappyFace\",IF(K196<>\"\",K196,\"HappyFace\"))","v":"          <button id=\"But_Preeze\" onAction=\"onActionBUT\" getSize=\"getSize\" getVisible=\"getVisible\" getLabel=\"getLabel\" getScreentip=\"getScreentip\" getSupertip=\"getSupertip\" imageMso=\"ViewFreezePanesGallery\" getEnabled=\"getEnabled\"/>"}]
["MENU011",null,"Tiện ích",null,null,null,{"$f":"+IF(ISNUMBER(C198),0,1)","v":1},1,1,1,null,"            <menu id=\"XXXX\" itemSize=\"normal\" getLabel=\"getLabel\" getScreentip=\"getScreentip\" getSupertip=\"getSupertip\" imageMso=\"HappyFace\" getEnabled=\"getEnabled\">","MENU",{"$f":"+COUNTIF($M$3:M197,M197)","v":11},"MENU011","            <menu id=\"MENU011\" itemSize=\"normal\" getLabel=\"getLabel\" getScreentip=\"getScreentip\" getSupertip=\"getSupertip\" imageMso=\"HappyFace\" getEnabled=\"getEnabled\">"]
["But_TienIch1","But_TienIch1","Xóa ảnh minh họa",null,null,null,{"$f":"+IF(ISNUMBER(C198),0,1)","v":1},1,1,1,"_1","              <button id=\"XXXX\" onAction=\"onActionBUT\" getVisible=\"getVisible\" getLabel=\"getLabel\" getScreentip=\"getScreentip\" getSupertip=\"getSupertip\" imageMso=\"HappyFace\" getEnabled=\"getEnabled\"/>","BUTT",{"$f":"+COUNTIF($M$3:M198,M198)","v":142},"But_TienIch1","              <button id=\"But_TienIch1\" onAction=\"onActionBUT\" getVisible=\"getVisible\" getLabel=\"getLabel\" getScreentip=\"getScreentip\" getSupertip=\"getSupertip\" imageMso=\"_1\" getEnabled=\"getEnabled\"/>"]
["But_TienIch2","But_TienIch2","Quản lý tên","Quản lý tên","Ẩn/ Hiện/ Xóa\nTên lỗi, Tên liên kết ngoài",null,1,1,1,1,"_2","              <button id=\"XXXX\" onAction=\"onActionBUT\" getVisible=\"getVisible\" getLabel=\"getLabel\" getScreentip=\"getScreentip\" getSupertip=\"getSupertip\" imageMso=\"HappyFace\" getEnabled=\"getEnabled\"/>","BUTT",{"$f":"+COUNTIF($M$3:M199,M199)","v":143},"But_TienIch2","              <button id=\"But_TienIch2\" onAction=\"onActionBUT\" getVisible=\"getVisible\" getLabel=\"getLabel\" getScreentip=\"getScreentip\" getSupertip=\"getSupertip\" imageMso=\"_2\" getEnabled=\"getEnabled\"/>"]
["But_TienIch3","But_TienIch3","Ngừng/Chạy chương trình",null,null,null,1,1,1,0,"_3","              <button id=\"XXXX\" onAction=\"onActionBUT\" getVisible=\"getVisible\" getLabel=\"getLabel\" getScreentip=\"getScreentip\" getSupertip=\"getSupertip\" imageMso=\"HappyFace\" getEnabled=\"getEnabled\"/>","BUTT",{"$f":"+COUNTIF($M$3:M200,M200)","v":144},"But_TienIch3","              <button id=\"But_TienIch3\" onAction=\"onActionBUT\" getVisible=\"getVisible\" getLabel=\"getLabel\" getScreentip=\"getScreentip\" getSupertip=\"getSupertip\" imageMso=\"_3\" getEnabled=\"getEnabled\"/>"]
["But_TienIch4","But_TienIch4","Tiện ích 4",null,null,null,1,1,1,0,"_4","              <button id=\"XXXX\" onAction=\"onActionBUT\" getVisible=\"getVisible\" getLabel=\"getLabel\" getScreentip=\"getScreentip\" getSupertip=\"getSupertip\" imageMso=\"HappyFace\" getEnabled=\"getEnabled\"/>","BUTT",{"$f":"+COUNTIF($M$3:M201,M201)","v":145},"But_TienIch4","              <button id=\"But_TienIch4\" onAction=\"onActionBUT\" getVisible=\"getVisible\" getLabel=\"getLabel\" getScreentip=\"getScreentip\" getSupertip=\"getSupertip\" imageMso=\"_4\" getEnabled=\"getEnabled\"/>"]
["But_TienIch5","But_TienIch5","Tiện ích 5",null,null,null,1,1,1,0,"_5","              <button id=\"XXXX\" onAction=\"onActionBUT\" getVisible=\"getVisible\" getLabel=\"getLabel\" getScreentip=\"getScreentip\" getSupertip=\"getSupertip\" imageMso=\"HappyFace\" getEnabled=\"getEnabled\"/>","BUTT",{"$f":"+COUNTIF($M$3:M202,M202)","v":146},"But_TienIch5","              <button id=\"But_TienIch5\" onAction=\"onActionBUT\" getVisible=\"getVisible\" getLabel=\"getLabel\" getScreentip=\"getScreentip\" getSupertip=\"getSupertip\" imageMso=\"_5\" getEnabled=\"getEnabled\"/>"]
["But_TienIch6","But_TienIch6","Tiện ích 6",null,null,null,1,1,1,0,"_6","              <button id=\"XXXX\" onAction=\"onActionBUT\" getVisible=\"getVisible\" getLabel=\"getLabel\" getScreentip=\"getScreentip\" getSupertip=\"getSupertip\" imageMso=\"HappyFace\" getEnabled=\"getEnabled\"/>","BUTT",{"$f":"+COUNTIF($M$3:M203,M203)","v":147},"But_TienIch6","              <button id=\"But_TienIch6\" onAction=\"onActionBUT\" getVisible=\"getVisible\" getLabel=\"getLabel\" getScreentip=\"getScreentip\" getSupertip=\"getSupertip\" imageMso=\"_6\" getEnabled=\"getEnabled\"/>"]
["But_TienIch7","But_TienIch7","Tiện ích 7",null,null,null,1,1,1,0,"_7","              <button id=\"XXXX\" onAction=\"onActionBUT\" getVisible=\"getVisible\" getLabel=\"getLabel\" getScreentip=\"getScreentip\" getSupertip=\"getSupertip\" imageMso=\"HappyFace\" getEnabled=\"getEnabled\"/>","BUTT",{"$f":"+COUNTIF($M$3:M204,M204)","v":148},"But_TienIch7","              <button id=\"But_TienIch7\" onAction=\"onActionBUT\" getVisible=\"getVisible\" getLabel=\"getLabel\" getScreentip=\"getScreentip\" getSupertip=\"getSupertip\" imageMso=\"_7\" getEnabled=\"getEnabled\"/>"]
["But_TienIch8","But_TienIch8","Tiện ích 8",null,null,null,1,1,1,0,"_8","              <button id=\"XXXX\" onAction=\"onActionBUT\" getVisible=\"getVisible\" getLabel=\"getLabel\" getScreentip=\"getScreentip\" getSupertip=\"getSupertip\" imageMso=\"HappyFace\" getEnabled=\"getEnabled\"/>","BUTT",{"$f":"+COUNTIF($M$3:M205,M205)","v":149},"But_TienIch8","              <button id=\"But_TienIch8\" onAction=\"onActionBUT\" getVisible=\"getVisible\" getLabel=\"getLabel\" getScreentip=\"getScreentip\" getSupertip=\"getSupertip\" imageMso=\"_8\" getEnabled=\"getEnabled\"/>"]
["But_TienIch9","But_TienIch9","Tiện ích 9",null,null,null,1,1,1,0,"_9","              <button id=\"XXXX\" onAction=\"onActionBUT\" getVisible=\"getVisible\" getLabel=\"getLabel\" getScreentip=\"getScreentip\" getSupertip=\"getSupertip\" imageMso=\"HappyFace\" getEnabled=\"getEnabled\"/>","BUTT",{"$f":"+COUNTIF($M$3:M206,M206)","v":150},"But_TienIch9","              <button id=\"But_TienIch9\" onAction=\"onActionBUT\" getVisible=\"getVisible\" getLabel=\"getLabel\" getScreentip=\"getScreentip\" getSupertip=\"getSupertip\" imageMso=\"_9\" getEnabled=\"getEnabled\"/>"]
["But_TienIch10","But_TienIch10","Tiện ích 10",null,null,null,1,1,1,0,"_0","              <button id=\"XXXX\" onAction=\"onActionBUT\" getVisible=\"getVisible\" getLabel=\"getLabel\" getScreentip=\"getScreentip\" getSupertip=\"getSupertip\" imageMso=\"HappyFace\" getEnabled=\"getEnabled\"/>","BUTT",{"$f":"+COUNTIF($M$3:M207,M207)","v":151},"But_TienIch10","              <button id=\"But_TienIch10\" onAction=\"onActionBUT\" getVisible=\"getVisible\" getLabel=\"getLabel\" getScreentip=\"getScreentip\" getSupertip=\"getSupertip\" imageMso=\"_0\" getEnabled=\"getEnabled\"/>"]
["But_TienIch11","But_TienIch11","Tiện ích 11",null,null,null,1,1,1,0,"_1","              <button id=\"XXXX\" onAction=\"onActionBUT\" getVisible=\"getVisible\" getLabel=\"getLabel\" getScreentip=\"getScreentip\" getSupertip=\"getSupertip\" imageMso=\"HappyFace\" getEnabled=\"getEnabled\"/>","BUTT",{"$f":"+COUNTIF($M$3:M208,M208)","v":152},"But_TienIch11","              <button id=\"But_TienIch11\" onAction=\"onActionBUT\" getVisible=\"getVisible\" getLabel=\"getLabel\" getScreentip=\"getScreentip\" getSupertip=\"getSupertip\" imageMso=\"_1\" getEnabled=\"getEnabled\"/>"]
["But_TienIch12","But_TienIch12","Tiện ích 12",null,null,null,1,1,1,0,"_2","              <button id=\"XXXX\" onAction=\"onActionBUT\" getVisible=\"getVisible\" getLabel=\"getLabel\" getScreentip=\"getScreentip\" getSupertip=\"getSupertip\" imageMso=\"HappyFace\" getEnabled=\"getEnabled\"/>","BUTT",{"$f":"+COUNTIF($M$3:M209,M209)","v":153},"But_TienIch12","              <button id=\"But_TienIch12\" onAction=\"onActionBUT\" getVisible=\"getVisible\" getLabel=\"getLabel\" getScreentip=\"getScreentip\" getSupertip=\"getSupertip\" imageMso=\"_2\" getEnabled=\"getEnabled\"/>"]
["But_TienIch13","But_TienIch13","Tiện ích 13",null,null,null,1,1,1,0,"_3","              <button id=\"XXXX\" onAction=\"onActionBUT\" getVisible=\"getVisible\" getLabel=\"getLabel\" getScreentip=\"getScreentip\" getSupertip=\"getSupertip\" imageMso=\"HappyFace\" getEnabled=\"getEnabled\"/>","BUTT",{"$f":"+COUNTIF($M$3:M210,M210)","v":154},"But_TienIch13","              <button id=\"But_TienIch13\" onAction=\"onActionBUT\" getVisible=\"getVisible\" getLabel=\"getLabel\" getScreentip=\"getScreentip\" getSupertip=\"getSupertip\" imageMso=\"_3\" getEnabled=\"getEnabled\"/>"]
["But_TienIch14","But_TienIch14","Tiện ích 14",null,null,null,1,1,1,0,"_4","              <button id=\"XXXX\" onAction=\"onActionBUT\" getVisible=\"getVisible\" getLabel=\"getLabel\" getScreentip=\"getScreentip\" getSupertip=\"getSupertip\" imageMso=\"HappyFace\" getEnabled=\"getEnabled\"/>","BUTT",{"$f":"+COUNTIF($M$3:M211,M211)","v":155},"But_TienIch14","              <button id=\"But_TienIch14\" onAction=\"onActionBUT\" getVisible=\"getVisible\" getLabel=\"getLabel\" getScreentip=\"getScreentip\" getSupertip=\"getSupertip\" imageMso=\"_4\" getEnabled=\"getEnabled\"/>"]
["But_TienIch15","But_TienIch15","Tiện ích 15",null,null,null,1,1,1,0,"_5","              <button id=\"XXXX\" onAction=\"onActionBUT\" getVisible=\"getVisible\" getLabel=\"getLabel\" getScreentip=\"getScreentip\" getSupertip=\"getSupertip\" imageMso=\"HappyFace\" getEnabled=\"getEnabled\"/>","BUTT",{"$f":"+COUNTIF($M$3:M212,M212)","v":156},"But_TienIch15","              <button id=\"But_TienIch15\" onAction=\"onActionBUT\" getVisible=\"getVisible\" getLabel=\"getLabel\" getScreentip=\"getScreentip\" getSupertip=\"getSupertip\" imageMso=\"_5\" getEnabled=\"getEnabled\"/>"]
["But_TienIch16","But_TienIch16","Tiện ích 16",null,null,null,1,1,1,0,"_6","              <button id=\"XXXX\" onAction=\"onActionBUT\" getVisible=\"getVisible\" getLabel=\"getLabel\" getScreentip=\"getScreentip\" getSupertip=\"getSupertip\" imageMso=\"HappyFace\" getEnabled=\"getEnabled\"/>","BUTT",{"$f":"+COUNTIF($M$3:M213,M213)","v":157},"But_TienIch16","              <button id=\"But_TienIch16\" onAction=\"onActionBUT\" getVisible=\"getVisible\" getLabel=\"getLabel\" getScreentip=\"getScreentip\" getSupertip=\"getSupertip\" imageMso=\"_6\" getEnabled=\"getEnabled\"/>"]
["But_TienIch17","But_TienIch17","Lưu Addins","Lưu","Lưu Addins",null,1,1,1,0,"_7","              <button id=\"XXXX\" onAction=\"onActionBUT\" getVisible=\"getVisible\" getLabel=\"getLabel\" getScreentip=\"getScreentip\" getSupertip=\"getSupertip\" imageMso=\"HappyFace\" getEnabled=\"getEnabled\"/>","BUTT",{"$f":"+COUNTIF($M$3:M214,M214)","v":158},"But_TienIch17","              <button id=\"But_TienIch17\" onAction=\"onActionBUT\" getVisible=\"getVisible\" getLabel=\"getLabel\" getScreentip=\"getScreentip\" getSupertip=\"getSupertip\" imageMso=\"_7\" getEnabled=\"getEnabled\"/>"]
["But_TienIch18","But_TienIch18","Ribbon","Ribbon","Mở tùy chỉnh Ribbon",null,1,1,1,0,"_8","              <button id=\"XXXX\" onAction=\"onActionBUT\" getVisible=\"getVisible\" getLabel=\"getLabel\" getScreentip=\"getScreentip\" getSupertip=\"getSupertip\" imageMso=\"HappyFace\" getEnabled=\"getEnabled\"/>","BUTT",{"$f":"+COUNTIF($M$3:M215,M215)","v":159},"But_TienIch18","              <button id=\"But_TienIch18\" onAction=\"onActionBUT\" getVisible=\"getVisible\" getLabel=\"getLabel\" getScreentip=\"getScreentip\" getSupertip=\"getSupertip\" imageMso=\"_8\" getEnabled=\"getEnabled\"/>"]
[null,null,{"$f":"+MAX($C$1:C215)+1","v":220},null,null,null,0,null,null,null,null,"            </menu>",null,null,"000","            </menu>"]
[{"$f":"+O217","v":"But_CaiDatKhac"},"But_CaiDatKhac",null,null,null,null,null,null,null,null,null,"          <dialogBoxLauncher><button id=\"XXXX\" onAction=\"onActionBUT\"/></dialogBoxLauncher>","BUTT",{"$f":"+COUNTIF($M$3:M217,M217)","v":160},"But_CaiDatKhac","          <dialogBoxLauncher><button id=\"But_CaiDatKhac\" onAction=\"onActionBUT\"/></dialogBoxLauncher>"]
[null,null,{"$f":"+MAX($C$1:C193)+1","v":220},null,null,null,{"$f":"+IF(ISNUMBER(C218),0,1)","v":0},null,null,null,null,"        </group>",null,null,{"$f":"IF(B218<>\"\",IF(LEFT(B218,3)<>\"But\",\"Sel_\"&B218,B218),M218&TEXT(N218,\"000\"))","v":"000"},{"$f":"+SUBSTITUTE(SUBSTITUTE(L218,\"XXXX\",O218),\"HappyFace\",IF(K218<>\"\",K218,\"HappyFace\"))","v":"        </group>"}]
[{"$f":"+O219","v":"NhaPhatTrien001"},null,{"$f":"+MAX($C$1:C218)+1","v":221},null,null,null,0,1,1,0,null,"        <group id=\"XXXX\" getVisible=\"getVisible\" getLabel=\"getLabel\">","NhaPhatTrien",{"$f":"+COUNTIF($M$3:M219,M219)","v":1},{"$f":"IF(B219<>\"\",IF(LEFT(B219,3)<>\"But\",\"Sel_\"&B219,B219),M219&TEXT(N219,\"000\"))","v":"NhaPhatTrien001"},{"$f":"+SUBSTITUTE(SUBSTITUTE(L219,\"XXXX\",O219),\"HappyFace\",IF(K219<>\"\",K219,\"HappyFace\"))","v":"        <group id=\"NhaPhatTrien001\" getVisible=\"getVisible\" getLabel=\"getLabel\">"}]
[{"$f":"+O220","v":"BUTT161"},null,{"$f":"+MAX($C$1:C219)+1","v":222},null,null,null,{"$f":"+IF(ISNUMBER(C220),0,1)","v":0},1,1,0,"_1","          <button id=\"XXXX\" onAction=\"onActionBUT\" getSize=\"getSize\" getVisible=\"getVisible\" getLabel=\"getLabel\" getScreentip=\"getScreentip\" getSupertip=\"getSupertip\" imageMso=\"HappyFace\" getEnabled=\"getEnabled\"/>","BUTT",{"$f":"+COUNTIF($M$3:M220,M220)","v":161},"BUTT161","          <button id=\"BUTT161\" onAction=\"onActionBUT\" getSize=\"getSize\" getVisible=\"getVisible\" getLabel=\"getLabel\" getScreentip=\"getScreentip\" getSupertip=\"getSupertip\" imageMso=\"_1\" getEnabled=\"getEnabled\"/>"]
["BUTT162",null,{"$f":"+MAX($C$1:C220)+1","v":223},null,null,null,0,1,1,0,"_2","          <button id=\"XXXX\" onAction=\"onActionBUT\" getSize=\"getSize\" getVisible=\"getVisible\" getLabel=\"getLabel\" getScreentip=\"getScreentip\" getSupertip=\"getSupertip\" imageMso=\"HappyFace\" getEnabled=\"getEnabled\"/>","BUTT",{"$f":"+COUNTIF($M$3:M221,M221)","v":162},"BUTT162","          <button id=\"BUTT162\" onAction=\"onActionBUT\" getSize=\"getSize\" getVisible=\"getVisible\" getLabel=\"getLabel\" getScreentip=\"getScreentip\" getSupertip=\"getSupertip\" imageMso=\"_2\" getEnabled=\"getEnabled\"/>"]
["BUTT163",null,{"$f":"+MAX($C$1:C221)+1","v":224},null,null,null,0,1,1,0,"_3","          <button id=\"XXXX\" onAction=\"onActionBUT\" getSize=\"getSize\" getVisible=\"getVisible\" getLabel=\"getLabel\" getScreentip=\"getScreentip\" getSupertip=\"getSupertip\" imageMso=\"HappyFace\" getEnabled=\"getEnabled\"/>","BUTT",{"$f":"+COUNTIF($M$3:M222,M222)","v":163},"BUTT163","          <button id=\"BUTT163\" onAction=\"onActionBUT\" getSize=\"getSize\" getVisible=\"getVisible\" getLabel=\"getLabel\" getScreentip=\"getScreentip\" getSupertip=\"getSupertip\" imageMso=\"_3\" getEnabled=\"getEnabled\"/>"]
["BUTT164",null,{"$f":"+MAX($C$1:C222)+1","v":225},null,null,null,0,1,1,0,"_4","          <button id=\"XXXX\" onAction=\"onActionBUT\" getSize=\"getSize\" getVisible=\"getVisible\" getLabel=\"getLabel\" getScreentip=\"getScreentip\" getSupertip=\"getSupertip\" imageMso=\"HappyFace\" getEnabled=\"getEnabled\"/>","BUTT",{"$f":"+COUNTIF($M$3:M223,M223)","v":164},"BUTT164","          <button id=\"BUTT164\" onAction=\"onActionBUT\" getSize=\"getSize\" getVisible=\"getVisible\" getLabel=\"getLabel\" getScreentip=\"getScreentip\" getSupertip=\"getSupertip\" imageMso=\"_4\" getEnabled=\"getEnabled\"/>"]
["BUTT165",null,{"$f":"+MAX($C$1:C223)+1","v":226},null,null,null,0,1,1,0,"_5","          <button id=\"XXXX\" onAction=\"onActionBUT\" getSize=\"getSize\" getVisible=\"getVisible\" getLabel=\"getLabel\" getScreentip=\"getScreentip\" getSupertip=\"getSupertip\" imageMso=\"HappyFace\" getEnabled=\"getEnabled\"/>","BUTT",{"$f":"+COUNTIF($M$3:M224,M224)","v":165},"BUTT165","          <button id=\"BUTT165\" onAction=\"onActionBUT\" getSize=\"getSize\" getVisible=\"getVisible\" getLabel=\"getLabel\" getScreentip=\"getScreentip\" getSupertip=\"getSupertip\" imageMso=\"_5\" getEnabled=\"getEnabled\"/>"]
["BUTT166",null,{"$f":"+MAX($C$1:C224)+1","v":227},null,null,null,0,1,1,0,"_6","          <button id=\"XXXX\" onAction=\"onActionBUT\" getSize=\"getSize\" getVisible=\"getVisible\" getLabel=\"getLabel\" getScreentip=\"getScreentip\" getSupertip=\"getSupertip\" imageMso=\"HappyFace\" getEnabled=\"getEnabled\"/>","BUTT",{"$f":"+COUNTIF($M$3:M225,M225)","v":166},"BUTT166","          <button id=\"BUTT166\" onAction=\"onActionBUT\" getSize=\"getSize\" getVisible=\"getVisible\" getLabel=\"getLabel\" getScreentip=\"getScreentip\" getSupertip=\"getSupertip\" imageMso=\"_6\" getEnabled=\"getEnabled\"/>"]
["BUTT167",null,{"$f":"+MAX($C$1:C225)+1","v":228},null,null,null,0,1,1,0,"_7","          <button id=\"XXXX\" onAction=\"onActionBUT\" getSize=\"getSize\" getVisible=\"getVisible\" getLabel=\"getLabel\" getScreentip=\"getScreentip\" getSupertip=\"getSupertip\" imageMso=\"HappyFace\" getEnabled=\"getEnabled\"/>","BUTT",{"$f":"+COUNTIF($M$3:M226,M226)","v":167},"BUTT167","          <button id=\"BUTT167\" onAction=\"onActionBUT\" getSize=\"getSize\" getVisible=\"getVisible\" getLabel=\"getLabel\" getScreentip=\"getScreentip\" getSupertip=\"getSupertip\" imageMso=\"_7\" getEnabled=\"getEnabled\"/>"]
["BUTT168",null,{"$f":"+MAX($C$1:C226)+1","v":229},null,null,null,0,1,1,0,"_8","          <button id=\"XXXX\" onAction=\"onActionBUT\" getSize=\"getSize\" getVisible=\"getVisible\" getLabel=\"getLabel\" getScreentip=\"getScreentip\" getSupertip=\"getSupertip\" imageMso=\"HappyFace\" getEnabled=\"getEnabled\"/>","BUTT",{"$f":"+COUNTIF($M$3:M227,M227)","v":168},"BUTT168","          <button id=\"BUTT168\" onAction=\"onActionBUT\" getSize=\"getSize\" getVisible=\"getVisible\" getLabel=\"getLabel\" getScreentip=\"getScreentip\" getSupertip=\"getSupertip\" imageMso=\"_8\" getEnabled=\"getEnabled\"/>"]
["BUTT169",null,{"$f":"+MAX($C$1:C227)+1","v":230},null,null,null,0,1,1,0,"_9","          <button id=\"XXXX\" onAction=\"onActionBUT\" getSize=\"getSize\" getVisible=\"getVisible\" getLabel=\"getLabel\" getScreentip=\"getScreentip\" getSupertip=\"getSupertip\" imageMso=\"HappyFace\" getEnabled=\"getEnabled\"/>","BUTT",{"$f":"+COUNTIF($M$3:M228,M228)","v":169},"BUTT169","          <button id=\"BUTT169\" onAction=\"onActionBUT\" getSize=\"getSize\" getVisible=\"getVisible\" getLabel=\"getLabel\" getScreentip=\"getScreentip\" getSupertip=\"getSupertip\" imageMso=\"_9\" getEnabled=\"getEnabled\"/>"]
["BUTT170",null,{"$f":"+MAX($C$1:C228)+1","v":231},null,null,null,0,1,1,0,"_1","          <button id=\"XXXX\" onAction=\"onActionBUT\" getSize=\"getSize\" getVisible=\"getVisible\" getLabel=\"getLabel\" getScreentip=\"getScreentip\" getSupertip=\"getSupertip\" imageMso=\"HappyFace\" getEnabled=\"getEnabled\"/>","BUTT",{"$f":"+COUNTIF($M$3:M229,M229)","v":170},"BUTT170","          <button id=\"BUTT170\" onAction=\"onActionBUT\" getSize=\"getSize\" getVisible=\"getVisible\" getLabel=\"getLabel\" getScreentip=\"getScreentip\" getSupertip=\"getSupertip\" imageMso=\"_1\" getEnabled=\"getEnabled\"/>"]
["BUTT171",null,{"$f":"+MAX($C$1:C229)+1","v":232},null,null,null,0,1,1,0,"_2","          <button id=\"XXXX\" onAction=\"onActionBUT\" getSize=\"getSize\" getVisible=\"getVisible\" getLabel=\"getLabel\" getScreentip=\"getScreentip\" getSupertip=\"getSupertip\" imageMso=\"HappyFace\" getEnabled=\"getEnabled\"/>","BUTT",{"$f":"+COUNTIF($M$3:M230,M230)","v":171},"BUTT171","          <button id=\"BUTT171\" onAction=\"onActionBUT\" getSize=\"getSize\" getVisible=\"getVisible\" getLabel=\"getLabel\" getScreentip=\"getScreentip\" getSupertip=\"getSupertip\" imageMso=\"_2\" getEnabled=\"getEnabled\"/>"]
["BUTT172",null,{"$f":"+MAX($C$1:C230)+1","v":233},null,null,null,0,1,1,0,"_3","          <button id=\"XXXX\" onAction=\"onActionBUT\" getSize=\"getSize\" getVisible=\"getVisible\" getLabel=\"getLabel\" getScreentip=\"getScreentip\" getSupertip=\"getSupertip\" imageMso=\"HappyFace\" getEnabled=\"getEnabled\"/>","BUTT",{"$f":"+COUNTIF($M$3:M231,M231)","v":172},"BUTT172","          <button id=\"BUTT172\" onAction=\"onActionBUT\" getSize=\"getSize\" getVisible=\"getVisible\" getLabel=\"getLabel\" getScreentip=\"getScreentip\" getSupertip=\"getSupertip\" imageMso=\"_3\" getEnabled=\"getEnabled\"/>"]
["BUTT173",null,{"$f":"+MAX($C$1:C231)+1","v":234},null,null,null,0,1,1,0,"_4","          <button id=\"XXXX\" onAction=\"onActionBUT\" getSize=\"getSize\" getVisible=\"getVisible\" getLabel=\"getLabel\" getScreentip=\"getScreentip\" getSupertip=\"getSupertip\" imageMso=\"HappyFace\" getEnabled=\"getEnabled\"/>","BUTT",{"$f":"+COUNTIF($M$3:M232,M232)","v":173},"BUTT173","          <button id=\"BUTT173\" onAction=\"onActionBUT\" getSize=\"getSize\" getVisible=\"getVisible\" getLabel=\"getLabel\" getScreentip=\"getScreentip\" getSupertip=\"getSupertip\" imageMso=\"_4\" getEnabled=\"getEnabled\"/>"]
["BUTT174",null,{"$f":"+MAX($C$1:C232)+1","v":235},null,null,null,0,1,1,0,"_5","          <button id=\"XXXX\" onAction=\"onActionBUT\" getSize=\"getSize\" getVisible=\"getVisible\" getLabel=\"getLabel\" getScreentip=\"getScreentip\" getSupertip=\"getSupertip\" imageMso=\"HappyFace\" getEnabled=\"getEnabled\"/>","BUTT",{"$f":"+COUNTIF($M$3:M233,M233)","v":174},"BUTT174","          <button id=\"BUTT174\" onAction=\"onActionBUT\" getSize=\"getSize\" getVisible=\"getVisible\" getLabel=\"getLabel\" getScreentip=\"getScreentip\" getSupertip=\"getSupertip\" imageMso=\"_5\" getEnabled=\"getEnabled\"/>"]
["BUTT175",null,{"$f":"+MAX($C$1:C233)+1","v":236},null,null,null,0,1,1,0,"_6","          <button id=\"XXXX\" onAction=\"onActionBUT\" getSize=\"getSize\" getVisible=\"getVisible\" getLabel=\"getLabel\" getScreentip=\"getScreentip\" getSupertip=\"getSupertip\" imageMso=\"HappyFace\" getEnabled=\"getEnabled\"/>","BUTT",{"$f":"+COUNTIF($M$3:M234,M234)","v":175},"BUTT175","          <button id=\"BUTT175\" onAction=\"onActionBUT\" getSize=\"getSize\" getVisible=\"getVisible\" getLabel=\"getLabel\" getScreentip=\"getScreentip\" getSupertip=\"getSupertip\" imageMso=\"_6\" getEnabled=\"getEnabled\"/>"]
["BUTT176",null,{"$f":"+MAX($C$1:C234)+1","v":237},null,null,null,0,1,1,0,"_7","          <button id=\"XXXX\" onAction=\"onActionBUT\" getSize=\"getSize\" getVisible=\"getVisible\" getLabel=\"getLabel\" getScreentip=\"getScreentip\" getSupertip=\"getSupertip\" imageMso=\"HappyFace\" getEnabled=\"getEnabled\"/>","BUTT",{"$f":"+COUNTIF($M$3:M235,M235)","v":176},"BUTT176","          <button id=\"BUTT176\" onAction=\"onActionBUT\" getSize=\"getSize\" getVisible=\"getVisible\" getLabel=\"getLabel\" getScreentip=\"getScreentip\" getSupertip=\"getSupertip\" imageMso=\"_7\" getEnabled=\"getEnabled\"/>"]
["BUTT177",null,{"$f":"+MAX($C$1:C235)+1","v":238},null,null,null,0,1,1,0,"_8","          <button id=\"XXXX\" onAction=\"onActionBUT\" getSize=\"getSize\" getVisible=\"getVisible\" getLabel=\"getLabel\" getScreentip=\"getScreentip\" getSupertip=\"getSupertip\" imageMso=\"HappyFace\" getEnabled=\"getEnabled\"/>","BUTT",{"$f":"+COUNTIF($M$3:M236,M236)","v":177},"BUTT177","          <button id=\"BUTT177\" onAction=\"onActionBUT\" getSize=\"getSize\" getVisible=\"getVisible\" getLabel=\"getLabel\" getScreentip=\"getScreentip\" getSupertip=\"getSupertip\" imageMso=\"_8\" getEnabled=\"getEnabled\"/>"]
["BUTT178",null,{"$f":"+MAX($C$1:C236)+1","v":239},null,null,null,0,1,1,0,"_9","          <button id=\"XXXX\" onAction=\"onActionBUT\" getSize=\"getSize\" getVisible=\"getVisible\" getLabel=\"getLabel\" getScreentip=\"getScreentip\" getSupertip=\"getSupertip\" imageMso=\"HappyFace\" getEnabled=\"getEnabled\"/>","BUTT",{"$f":"+COUNTIF($M$3:M237,M237)","v":178},"BUTT178","          <button id=\"BUTT178\" onAction=\"onActionBUT\" getSize=\"getSize\" getVisible=\"getVisible\" getLabel=\"getLabel\" getScreentip=\"getScreentip\" getSupertip=\"getSupertip\" imageMso=\"_9\" getEnabled=\"getEnabled\"/>"]
["BUTT179",null,{"$f":"+MAX($C$1:C237)+1","v":240},null,null,null,0,1,1,0,"_1","          <button id=\"XXXX\" onAction=\"onActionBUT\" getSize=\"getSize\" getVisible=\"getVisible\" getLabel=\"getLabel\" getScreentip=\"getScreentip\" getSupertip=\"getSupertip\" imageMso=\"HappyFace\" getEnabled=\"getEnabled\"/>","BUTT",{"$f":"+COUNTIF($M$3:M238,M238)","v":179},"BUTT179","          <button id=\"BUTT179\" onAction=\"onActionBUT\" getSize=\"getSize\" getVisible=\"getVisible\" getLabel=\"getLabel\" getScreentip=\"getScreentip\" getSupertip=\"getSupertip\" imageMso=\"_1\" getEnabled=\"getEnabled\"/>"]
["BUTT180",null,{"$f":"+MAX($C$1:C238)+1","v":241},null,null,null,0,1,1,0,"_2","          <button id=\"XXXX\" onAction=\"onActionBUT\" getSize=\"getSize\" getVisible=\"getVisible\" getLabel=\"getLabel\" getScreentip=\"getScreentip\" getSupertip=\"getSupertip\" imageMso=\"HappyFace\" getEnabled=\"getEnabled\"/>","BUTT",{"$f":"+COUNTIF($M$3:M239,M239)","v":180},"BUTT180","          <button id=\"BUTT180\" onAction=\"onActionBUT\" getSize=\"getSize\" getVisible=\"getVisible\" getLabel=\"getLabel\" getScreentip=\"getScreentip\" getSupertip=\"getSupertip\" imageMso=\"_2\" getEnabled=\"getEnabled\"/>"]
["BUTT181",null,{"$f":"+MAX($C$1:C239)+1","v":242},null,null,null,0,1,1,0,"_3","          <button id=\"XXXX\" onAction=\"onActionBUT\" getSize=\"getSize\" getVisible=\"getVisible\" getLabel=\"getLabel\" getScreentip=\"getScreentip\" getSupertip=\"getSupertip\" imageMso=\"HappyFace\" getEnabled=\"getEnabled\"/>","BUTT",{"$f":"+COUNTIF($M$3:M240,M240)","v":181},"BUTT181","          <button id=\"BUTT181\" onAction=\"onActionBUT\" getSize=\"getSize\" getVisible=\"getVisible\" getLabel=\"getLabel\" getScreentip=\"getScreentip\" getSupertip=\"getSupertip\" imageMso=\"_3\" getEnabled=\"getEnabled\"/>"]
["BUTT182",null,{"$f":"+MAX($C$1:C240)+1","v":243},null,null,null,0,1,1,0,"_4","          <button id=\"XXXX\" onAction=\"onActionBUT\" getSize=\"getSize\" getVisible=\"getVisible\" getLabel=\"getLabel\" getScreentip=\"getScreentip\" getSupertip=\"getSupertip\" imageMso=\"HappyFace\" getEnabled=\"getEnabled\"/>","BUTT",{"$f":"+COUNTIF($M$3:M241,M241)","v":182},"BUTT182","          <button id=\"BUTT182\" onAction=\"onActionBUT\" getSize=\"getSize\" getVisible=\"getVisible\" getLabel=\"getLabel\" getScreentip=\"getScreentip\" getSupertip=\"getSupertip\" imageMso=\"_4\" getEnabled=\"getEnabled\"/>"]
["BUTT183",null,{"$f":"+MAX($C$1:C241)+1","v":244},null,null,null,0,1,1,0,"_5","          <button id=\"XXXX\" onAction=\"onActionBUT\" getSize=\"getSize\" getVisible=\"getVisible\" getLabel=\"getLabel\" getScreentip=\"getScreentip\" getSupertip=\"getSupertip\" imageMso=\"HappyFace\" getEnabled=\"getEnabled\"/>","BUTT",{"$f":"+COUNTIF($M$3:M242,M242)","v":183},"BUTT183","          <button id=\"BUTT183\" onAction=\"onActionBUT\" getSize=\"getSize\" getVisible=\"getVisible\" getLabel=\"getLabel\" getScreentip=\"getScreentip\" getSupertip=\"getSupertip\" imageMso=\"_5\" getEnabled=\"getEnabled\"/>"]
[{"$f":"+O243","v":"BUTT184"},null,{"$f":"+MAX($C$1:C242)+1","v":245},null,null,null,0,1,1,1,"_6","          <button id=\"XXXX\" onAction=\"onActionBUT\" getSize=\"getSize\" getVisible=\"getVisible\" getLabel=\"getLabel\" getScreentip=\"getScreentip\" getSupertip=\"getSupertip\" imageMso=\"HappyFace\" getEnabled=\"getEnabled\"/>","BUTT",{"$f":"+COUNTIF($M$3:M243,M243)","v":184},{"$f":"IF(B243<>\"\",IF(LEFT(B243,3)<>\"But\",\"Sel_\"&B243,B243),M243&TEXT(N243,\"000\"))","v":"BUTT184"},"          <button id=\"BUTT184\" onAction=\"onActionBUT\" getSize=\"getSize\" getVisible=\"getVisible\" getLabel=\"getLabel\" getScreentip=\"getScreentip\" getSupertip=\"getSupertip\" imageMso=\"_6\" getEnabled=\"getEnabled\"/>"]
["BUTT185",null,{"$f":"+MAX($C$1:C243)+1","v":246},null,null,null,{"$f":"+IF(ISNUMBER(C244),0,1)","v":0},1,1,1,"_7","          <button id=\"XXXX\" onAction=\"onActionBUT\" getSize=\"getSize\" getVisible=\"getVisible\" getLabel=\"getLabel\" getScreentip=\"getScreentip\" getSupertip=\"getSupertip\" imageMso=\"HappyFace\" getEnabled=\"getEnabled\"/>","BUTT",{"$f":"+COUNTIF($M$3:M244,M244)","v":185},"BUTT185","          <button id=\"BUTT185\" onAction=\"onActionBUT\" getSize=\"getSize\" getVisible=\"getVisible\" getLabel=\"getLabel\" getScreentip=\"getScreentip\" getSupertip=\"getSupertip\" imageMso=\"_7\" getEnabled=\"getEnabled\"/>"]
["BUTT186",null,{"$f":"+MAX($C$1:C244)+1","v":247},null,null,null,0,1,1,1,"_8","          <button id=\"XXXX\" onAction=\"onActionBUT\" getSize=\"getSize\" getVisible=\"getVisible\" getLabel=\"getLabel\" getScreentip=\"getScreentip\" getSupertip=\"getSupertip\" imageMso=\"HappyFace\" getEnabled=\"getEnabled\"/>","BUTT",{"$f":"+COUNTIF($M$3:M245,M245)","v":186},"BUTT186","          <button id=\"BUTT186\" onAction=\"onActionBUT\" getSize=\"getSize\" getVisible=\"getVisible\" getLabel=\"getLabel\" getScreentip=\"getScreentip\" getSupertip=\"getSupertip\" imageMso=\"_8\" getEnabled=\"getEnabled\"/>"]
["BUTT187",null,{"$f":"+MAX($C$1:C245)+1","v":248},null,null,null,0,1,1,0,"_9","          <button id=\"XXXX\" onAction=\"onActionBUT\" getSize=\"getSize\" getVisible=\"getVisible\" getLabel=\"getLabel\" getScreentip=\"getScreentip\" getSupertip=\"getSupertip\" imageMso=\"HappyFace\" getEnabled=\"getEnabled\"/>","BUTT",{"$f":"+COUNTIF($M$3:M246,M246)","v":187},"BUTT187","          <button id=\"BUTT187\" onAction=\"onActionBUT\" getSize=\"getSize\" getVisible=\"getVisible\" getLabel=\"getLabel\" getScreentip=\"getScreentip\" getSupertip=\"getSupertip\" imageMso=\"_9\" getEnabled=\"getEnabled\"/>"]
["BUTT188",null,{"$f":"+MAX($C$1:C246)+1","v":249},null,null,null,0,1,1,0,"_1","          <button id=\"XXXX\" onAction=\"onActionBUT\" getSize=\"getSize\" getVisible=\"getVisible\" getLabel=\"getLabel\" getScreentip=\"getScreentip\" getSupertip=\"getSupertip\" imageMso=\"HappyFace\" getEnabled=\"getEnabled\"/>","BUTT",{"$f":"+COUNTIF($M$3:M247,M247)","v":188},"BUTT188",{"$f":"+SUBSTITUTE(SUBSTITUTE(L247,\"XXXX\",O247),\"HappyFace\",IF(K247<>\"\",K247,\"HappyFace\"))","v":"          <button id=\"BUTT188\" onAction=\"onActionBUT\" getSize=\"getSize\" getVisible=\"getVisible\" getLabel=\"getLabel\" getScreentip=\"getScreentip\" getSupertip=\"getSupertip\" imageMso=\"_1\" getEnabled=\"getEnabled\"/>"}]
["BUTT189",null,{"$f":"+MAX($C$1:C247)+1","v":250},null,null,null,0,1,1,0,"_2","          <button id=\"XXXX\" onAction=\"onActionBUT\" getSize=\"getSize\" getVisible=\"getVisible\" getLabel=\"getLabel\" getScreentip=\"getScreentip\" getSupertip=\"getSupertip\" imageMso=\"HappyFace\" getEnabled=\"getEnabled\"/>","BUTT",{"$f":"+COUNTIF($M$3:M248,M248)","v":189},"BUTT189","          <button id=\"BUTT189\" onAction=\"onActionBUT\" getSize=\"getSize\" getVisible=\"getVisible\" getLabel=\"getLabel\" getScreentip=\"getScreentip\" getSupertip=\"getSupertip\" imageMso=\"_2\" getEnabled=\"getEnabled\"/>"]
["BUTT190",null,{"$f":"+MAX($C$1:C248)+1","v":251},null,null,null,0,1,1,0,"_3","          <button id=\"XXXX\" onAction=\"onActionBUT\" getSize=\"getSize\" getVisible=\"getVisible\" getLabel=\"getLabel\" getScreentip=\"getScreentip\" getSupertip=\"getSupertip\" imageMso=\"HappyFace\" getEnabled=\"getEnabled\"/>","BUTT",{"$f":"+COUNTIF($M$3:M249,M249)","v":190},"BUTT190","          <button id=\"BUTT190\" onAction=\"onActionBUT\" getSize=\"getSize\" getVisible=\"getVisible\" getLabel=\"getLabel\" getScreentip=\"getScreentip\" getSupertip=\"getSupertip\" imageMso=\"_3\" getEnabled=\"getEnabled\"/>"]
["BUTT191",null,{"$f":"+MAX($C$1:C249)+1","v":252},null,null,null,0,1,1,0,"_4","          <button id=\"XXXX\" onAction=\"onActionBUT\" getSize=\"getSize\" getVisible=\"getVisible\" getLabel=\"getLabel\" getScreentip=\"getScreentip\" getSupertip=\"getSupertip\" imageMso=\"HappyFace\" getEnabled=\"getEnabled\"/>","BUTT",{"$f":"+COUNTIF($M$3:M250,M250)","v":191},"BUTT191","          <button id=\"BUTT191\" onAction=\"onActionBUT\" getSize=\"getSize\" getVisible=\"getVisible\" getLabel=\"getLabel\" getScreentip=\"getScreentip\" getSupertip=\"getSupertip\" imageMso=\"_4\" getEnabled=\"getEnabled\"/>"]
["BUTT192",null,{"$f":"+MAX($C$1:C250)+1","v":253},null,null,null,0,1,1,0,"_5","          <button id=\"XXXX\" onAction=\"onActionBUT\" getSize=\"getSize\" getVisible=\"getVisible\" getLabel=\"getLabel\" getScreentip=\"getScreentip\" getSupertip=\"getSupertip\" imageMso=\"HappyFace\" getEnabled=\"getEnabled\"/>","BUTT",{"$f":"+COUNTIF($M$3:M251,M251)","v":192},"BUTT192","          <button id=\"BUTT192\" onAction=\"onActionBUT\" getSize=\"getSize\" getVisible=\"getVisible\" getLabel=\"getLabel\" getScreentip=\"getScreentip\" getSupertip=\"getSupertip\" imageMso=\"_5\" getEnabled=\"getEnabled\"/>"]
["BUTT193",null,{"$f":"+MAX($C$1:C251)+1","v":254},null,null,null,0,1,1,0,"_6","          <button id=\"XXXX\" onAction=\"onActionBUT\" getSize=\"getSize\" getVisible=\"getVisible\" getLabel=\"getLabel\" getScreentip=\"getScreentip\" getSupertip=\"getSupertip\" imageMso=\"HappyFace\" getEnabled=\"getEnabled\"/>","BUTT",{"$f":"+COUNTIF($M$3:M252,M252)","v":193},"BUTT193","          <button id=\"BUTT193\" onAction=\"onActionBUT\" getSize=\"getSize\" getVisible=\"getVisible\" getLabel=\"getLabel\" getScreentip=\"getScreentip\" getSupertip=\"getSupertip\" imageMso=\"_6\" getEnabled=\"getEnabled\"/>"]
["BUTT194",null,{"$f":"+MAX($C$1:C252)+1","v":255},null,null,null,0,1,1,0,"_7","          <button id=\"XXXX\" onAction=\"onActionBUT\" getSize=\"getSize\" getVisible=\"getVisible\" getLabel=\"getLabel\" getScreentip=\"getScreentip\" getSupertip=\"getSupertip\" imageMso=\"HappyFace\" getEnabled=\"getEnabled\"/>","BUTT",{"$f":"+COUNTIF($M$3:M253,M253)","v":194},"BUTT194","          <button id=\"BUTT194\" onAction=\"onActionBUT\" getSize=\"getSize\" getVisible=\"getVisible\" getLabel=\"getLabel\" getScreentip=\"getScreentip\" getSupertip=\"getSupertip\" imageMso=\"_7\" getEnabled=\"getEnabled\"/>"]
["BUTT195",null,{"$f":"+MAX($C$1:C253)+1","v":256},null,null,null,0,1,1,0,"_8","          <button id=\"XXXX\" onAction=\"onActionBUT\" getSize=\"getSize\" getVisible=\"getVisible\" getLabel=\"getLabel\" getScreentip=\"getScreentip\" getSupertip=\"getSupertip\" imageMso=\"HappyFace\" getEnabled=\"getEnabled\"/>","BUTT",{"$f":"+COUNTIF($M$3:M254,M254)","v":195},"BUTT195","          <button id=\"BUTT195\" onAction=\"onActionBUT\" getSize=\"getSize\" getVisible=\"getVisible\" getLabel=\"getLabel\" getScreentip=\"getScreentip\" getSupertip=\"getSupertip\" imageMso=\"_8\" getEnabled=\"getEnabled\"/>"]
["BUTT196",null,{"$f":"+MAX($C$1:C254)+1","v":257},null,null,null,0,1,1,0,"_9","          <button id=\"XXXX\" onAction=\"onActionBUT\" getSize=\"getSize\" getVisible=\"getVisible\" getLabel=\"getLabel\" getScreentip=\"getScreentip\" getSupertip=\"getSupertip\" imageMso=\"HappyFace\" getEnabled=\"getEnabled\"/>","BUTT",{"$f":"+COUNTIF($M$3:M255,M255)","v":196},"BUTT196","          <button id=\"BUTT196\" onAction=\"onActionBUT\" getSize=\"getSize\" getVisible=\"getVisible\" getLabel=\"getLabel\" getScreentip=\"getScreentip\" getSupertip=\"getSupertip\" imageMso=\"_9\" getEnabled=\"getEnabled\"/>"]
["BUTT197",null,{"$f":"+MAX($C$1:C255)+1","v":258},null,null,null,0,1,1,0,"_1","          <button id=\"XXXX\" onAction=\"onActionBUT\" getSize=\"getSize\" getVisible=\"getVisible\" getLabel=\"getLabel\" getScreentip=\"getScreentip\" getSupertip=\"getSupertip\" imageMso=\"HappyFace\" getEnabled=\"getEnabled\"/>","BUTT",{"$f":"+COUNTIF($M$3:M256,M256)","v":197},"BUTT197","          <button id=\"BUTT197\" onAction=\"onActionBUT\" getSize=\"getSize\" getVisible=\"getVisible\" getLabel=\"getLabel\" getScreentip=\"getScreentip\" getSupertip=\"getSupertip\" imageMso=\"_1\" getEnabled=\"getEnabled\"/>"]
["BUTT198",null,{"$f":"+MAX($C$1:C256)+1","v":259},null,null,null,0,1,1,0,"_2","          <button id=\"XXXX\" onAction=\"onActionBUT\" getSize=\"getSize\" getVisible=\"getVisible\" getLabel=\"getLabel\" getScreentip=\"getScreentip\" getSupertip=\"getSupertip\" imageMso=\"HappyFace\" getEnabled=\"getEnabled\"/>","BUTT",{"$f":"+COUNTIF($M$3:M257,M257)","v":198},"BUTT198","          <button id=\"BUTT198\" onAction=\"onActionBUT\" getSize=\"getSize\" getVisible=\"getVisible\" getLabel=\"getLabel\" getScreentip=\"getScreentip\" getSupertip=\"getSupertip\" imageMso=\"_2\" getEnabled=\"getEnabled\"/>"]
["BUTT199",null,{"$f":"+MAX($C$1:C257)+1","v":260},null,null,null,0,1,1,0,"_3","          <button id=\"XXXX\" onAction=\"onActionBUT\" getSize=\"getSize\" getVisible=\"getVisible\" getLabel=\"getLabel\" getScreentip=\"getScreentip\" getSupertip=\"getSupertip\" imageMso=\"HappyFace\" getEnabled=\"getEnabled\"/>","BUTT",{"$f":"+COUNTIF($M$3:M258,M258)","v":199},"BUTT199","          <button id=\"BUTT199\" onAction=\"onActionBUT\" getSize=\"getSize\" getVisible=\"getVisible\" getLabel=\"getLabel\" getScreentip=\"getScreentip\" getSupertip=\"getSupertip\" imageMso=\"_3\" getEnabled=\"getEnabled\"/>"]
["BUTT200",null,{"$f":"+MAX($C$1:C258)+1","v":261},null,null,null,0,1,1,0,"_4","          <button id=\"XXXX\" onAction=\"onActionBUT\" getSize=\"getSize\" getVisible=\"getVisible\" getLabel=\"getLabel\" getScreentip=\"getScreentip\" getSupertip=\"getSupertip\" imageMso=\"HappyFace\" getEnabled=\"getEnabled\"/>","BUTT",{"$f":"+COUNTIF($M$3:M259,M259)","v":200},"BUTT200","          <button id=\"BUTT200\" onAction=\"onActionBUT\" getSize=\"getSize\" getVisible=\"getVisible\" getLabel=\"getLabel\" getScreentip=\"getScreentip\" getSupertip=\"getSupertip\" imageMso=\"_4\" getEnabled=\"getEnabled\"/>"]
["BUTT201",null,{"$f":"+MAX($C$1:C259)+1","v":262},null,null,null,0,1,1,0,"_5","          <button id=\"XXXX\" onAction=\"onActionBUT\" getSize=\"getSize\" getVisible=\"getVisible\" getLabel=\"getLabel\" getScreentip=\"getScreentip\" getSupertip=\"getSupertip\" imageMso=\"HappyFace\" getEnabled=\"getEnabled\"/>","BUTT",{"$f":"+COUNTIF($M$3:M260,M260)","v":201},"BUTT201","          <button id=\"BUTT201\" onAction=\"onActionBUT\" getSize=\"getSize\" getVisible=\"getVisible\" getLabel=\"getLabel\" getScreentip=\"getScreentip\" getSupertip=\"getSupertip\" imageMso=\"_5\" getEnabled=\"getEnabled\"/>"]
["BUTT202",null,{"$f":"+MAX($C$1:C260)+1","v":263},null,null,null,0,1,1,0,"_6","          <button id=\"XXXX\" onAction=\"onActionBUT\" getSize=\"getSize\" getVisible=\"getVisible\" getLabel=\"getLabel\" getScreentip=\"getScreentip\" getSupertip=\"getSupertip\" imageMso=\"HappyFace\" getEnabled=\"getEnabled\"/>","BUTT",{"$f":"+COUNTIF($M$3:M261,M261)","v":202},"BUTT202","          <button id=\"BUTT202\" onAction=\"onActionBUT\" getSize=\"getSize\" getVisible=\"getVisible\" getLabel=\"getLabel\" getScreentip=\"getScreentip\" getSupertip=\"getSupertip\" imageMso=\"_6\" getEnabled=\"getEnabled\"/>"]
["But_CaiDatNhaPhatTrien","But_CaiDatNhaPhatTrien",null,null,null,null,null,null,null,null,null,"          <dialogBoxLauncher><button id=\"XXXX\" onAction=\"onActionBUT\"/></dialogBoxLauncher>","BUTT",{"$f":"+COUNTIF($M$3:M262,M262)","v":203},"But_CaiDatNhaPhatTrien","          <dialogBoxLauncher><button id=\"But_CaiDatNhaPhatTrien\" onAction=\"onActionBUT\"/></dialogBoxLauncher>"]
[null,null,{"$f":"+MAX($C$1:C261)+1","v":264},null,null,null,null,null,null,null,null,"        </group>",null,null,"000",{"$f":"+SUBSTITUTE(SUBSTITUTE(L263,\"XXXX\",O263),\"HappyFace\",IF(K263<>\"\",K263,\"HappyFace\"))","v":"        </group>"}]
[{"$f":"+O264","v":"GROU008"},null,"Tác giả",null,null,null,{"$f":"+IF(ISNUMBER(C264),0,1)","v":1},0,1,0,null,"        <group id=\"XXXX\" getVisible=\"getVisible\" getLabel=\"getLabel\">","GROU",{"$f":"+COUNTIF($M$3:M264,M264)","v":8},"GROU008","        <group id=\"GROU008\" getVisible=\"getVisible\" getLabel=\"getLabel\">"]
[{"$f":"+O265","v":"LABEL001"},null,"Gia Lộc Khang Co.Ltd",null,null,null,1,0,1,1,null,"          <labelControl id=\"XXXX\" getLabel=\"getLabel\" getScreentip=\"getScreentip\" getSupertip=\"getSupertip\" getEnabled=\"getEnabled\"/>","LABEL",{"$f":"+COUNTIF($M$3:M265,M265)","v":1},{"$f":"IF(B265<>\"\",IF(LEFT(B265,3)<>\"But\",\"Sel_\"&B265,B265),M265&TEXT(N265,\"000\"))","v":"LABEL001"},{"$f":"+SUBSTITUTE(SUBSTITUTE(L265,\"XXXX\",O265),\"HappyFace\",IF(K265<>\"\",K265,\"HappyFace\"))","v":"          <labelControl id=\"LABEL001\" getLabel=\"getLabel\" getScreentip=\"getScreentip\" getSupertip=\"getSupertip\" getEnabled=\"getEnabled\"/>"}]
[{"$f":"+O266","v":"LABEL002"},null,"PTNVL LAS-XD 1391",null,null,null,1,0,1,1,null,"          <labelControl id=\"XXXX\" getLabel=\"getLabel\" getScreentip=\"getScreentip\" getSupertip=\"getSupertip\" getEnabled=\"getEnabled\"/>","LABEL",{"$f":"+COUNTIF($M$3:M266,M266)","v":2},{"$f":"IF(B266<>\"\",IF(LEFT(B266,3)<>\"But\",\"Sel_\"&B266,B266),M266&TEXT(N266,\"000\"))","v":"LABEL002"},{"$f":"+SUBSTITUTE(SUBSTITUTE(L266,\"XXXX\",O266),\"HappyFace\",IF(K266<>\"\",K266,\"HappyFace\"))","v":"          <labelControl id=\"LABEL002\" getLabel=\"getLabel\" getScreentip=\"getScreentip\" getSupertip=\"getSupertip\" getEnabled=\"getEnabled\"/>"}]
[{"$f":"+O267","v":"LABEL003"},null,"Glk.ninhthuan@gmail.com",null,null,null,1,{"$f":"+IF(setting!$B$2,1,0)","v":0},1,1,null,"          <labelControl id=\"XXXX\" getLabel=\"getLabel\" getScreentip=\"getScreentip\" getSupertip=\"getSupertip\" getEnabled=\"getEnabled\"/>","LABEL",{"$f":"+COUNTIF($M$3:M267,M267)","v":3},{"$f":"IF(B267<>\"\",IF(LEFT(B267,3)<>\"But\",\"Sel_\"&B267,B267),M267&TEXT(N267,\"000\"))","v":"LABEL003"},{"$f":"+SUBSTITUTE(SUBSTITUTE(L267,\"XXXX\",O267),\"HappyFace\",IF(K267<>\"\",K267,\"HappyFace\"))","v":"          <labelControl id=\"LABEL003\" getLabel=\"getLabel\" getScreentip=\"getScreentip\" getSupertip=\"getSupertip\" getEnabled=\"getEnabled\"/>"}]
["But_CaiDatTacGia","But_CaiDatTacGia",null,null,null,null,null,null,null,null,null,"          <dialogBoxLauncher><button id=\"XXXX\" onAction=\"onActionBUT\"/></dialogBoxLauncher>","BUTT",{"$f":"+COUNTIF($M$3:M268,M268)","v":204},"But_CaiDatTacGia","          <dialogBoxLauncher><button id=\"But_CaiDatTacGia\" onAction=\"onActionBUT\"/></dialogBoxLauncher>"]
[null,null,{"$f":"+MAX($C$1:C267)+1","v":265},null,null,null,0,null,null,null,null,"        </group>",null,null,"000","        </group>"]

{"sheet":"setting","index":1,"n_rows":371,"n_cols":8,"rows_kept":371,"cut":false,"hidden":false,"merged":[]}
["TAB",true,0,"⬜☑☒✓☓✖★☆◀ ▶ Ω℧⌀⍺⍴⍵π±½¼∞≈÷~≤≠≥⏀∆‰"]
["Thư mục ảnh",false,1]
["Cập nhật",true,2]
["Trước sau",true,3]
["Tiến độ",true,4]
["ngày tháng",false,5]
["số biên bản",true,6]
[]
[]
[]
[]
[]
[]
[]
[]
[]
[]
[]
[]
[]
[]
[]
[]
[]
[]
[]
[]
[]
[]
[]
[]
[]
[]
[]
[]
[]
[]
[]
[]
[]
[]
[]
[]
[]
[]
[]
[]
[]
[]
[]
[]
[]
[]
[]
[]
[]
[]
[]
[]
[]
[]
[]
[]
[]
[]
[]
[]
[]
[]
[]
[]
[]
[]
[]
[]
[]
[]
[]
[]
[]
[]
[]
[]
[]
[]
[]
[]
[]
[]
[]
[]
[]
[]
[]
[]
[]
[]
[]
[]
[]
[]
[]
[]
[]
[]
[]
[]
[]
[]
[]
[]
[]
[]
[]
[]
[]
[]
[]
[]
[]
[]
[]
[]
[]
[]
[]
[]
[]
[]
[]
[]
[]
[]
[]
[]
[]
[]
[]
[]
[]
[]
[]
[]
[]
[]
[]
[]
[]
[]
[]
[]
[]
[]
[]
[]
[]
[]
[]
[]
[]
[]
[]
[]
[]
[]
[]
[]
[]
[]
[]
[]
[]
[]
[]
[]
[]
[]
[]
[]
[]
[]
[]
[]
[]
[]
[]
[]
[]
[]
[]
[]
[]
[]
[]
[]
[]
[]
[]
[]
[]
[]
[]
[]
[]
[]
[]
[]
[]
[]
[]
[]
[]
[]
[]
[]
[]
[]
[]
[]
[]
[]
[]
[]
[]
[]
[]
[]
[]
[]
[]
[]
[]
[]
[]
[]
[]
[]
[]
[]
[]
[]
[]
[]
[]
[]
[]
[]
[]
[]
[]
[]
[]
[]
[]
[]
[]
[]
[]
[]
[]
[]
[]
[]
[]
[]
[]
[]
[]
[]
[]
[]
[]
[]
[]
[]
[]
[]
[]
[]
[]
[]
[]
[]
[]
[]
[]
[]
[]
[]
[]
[]
[]
[]
[]
[]
[]
[]
[]
[]
[]
[]
[]
[]
[]
[]
[]
[]
[]
[]
[]
[]
[]
[]
[]
[]
[]
[]
[]
[]
[]
[]
[]
[]
[]
[]
[]
[]
[]
[]
[]
[]
[]
[]
[]
[]
[]
[]
[]
[]
[]
[]
[]
[]
[]
[]
[]
[]
[]
[]
[]
[]
[]
[]
[]
[]
[]
[]
[]
[]
[]
[]
[]
[]
[]
[]
[]
[]
[null,null,null,null,null,null,0]
[null,null,null,null,null,null,0,0]
[null,null,null,null,null,null,null,0]
[null,null,null,null,null,null,null,0]

{"sheet":"Helpsheet","index":2,"n_rows":7,"n_cols":2,"rows_kept":7,"cut":false,"hidden":false,"merged":[]}
["CÁC CHỨC NĂNG CHÍNH CỦA CHƯƠNG TRÌNH:","CÁC CHỨC NĂNG CHÍNH CỦA CHƯƠNG TRÌNH:\n\nChương trình này dùng để quản lý lập biên bản nghiệm thu công việc xây dựng: ( Gồm có 5 bước)\n\n1- Khai báo thông tin ( Công trình; Hợp đồng; Chủ đầu tư; Đơn vị thiết kế; Đơn vị thi công; Đơn vị thí nghiệm)\n\n2- Dữ liệu đầu vào\n\n3- Lên kế hoạch thi công\n\n4- Xuất biên bản nghiệm thu \n\n5- Xuất nhật ký thi công.\n\n\n\n\n\n\n\n\n\n\n\n\n\n\n\n\n\n\n"]
["I - THÔNG TIN CÔNG TRÌNH:","THÔNG TIN CÔNG TRÌNH:\n\n              Click  Công trình --->  Thông tin công trình\n\n1- Khai báo thông tin ( Công trình; Hợp đồng; Chủ đầu tư; Đơn vị thiết kế; Đơn vị thi công; Đơn vị thí nghiệm)\n\nBAO GỒM:\n\n1. Thông tin công trình: \n- Tên công trình:\n- Tên gói thầu:\n- Địa điểm xây dựng:\n2. Thông tin về hợp đồng: (Số: .../HĐXD ... , ngày ... tháng ... năm ...)\n3. Thông tin chủ đầu tư: (Tên chủ đầu tư)\n4. Thông tin đơn vị thiết kế ( Tên đơn vị thiết kế)\n5. Ngày phê duyệt bản vẽ thi công\n6. Thông tin đơn vị giám sát (Tên đơn vị giám sát, Tên và chức vụ của người giám sát)\n7. Thông tin đơn vị thi công ( Tên đơn vị thi công, Tên và chức vụ của KCS, Chỉ huy trưởng, Cán bộ kỹ thuật, Người phát phiếu yêu cầu nghiệm thu)\n8. Thông tin đơn vị thí nghiệm ( Tên phòng thí nghiệm, Tên và chức vụ của người thí nghiệm)\n\n\n\n\n\n\n\n\n\n\n\n\n\n\n\n\n"]
["II - DỮ LIỆU CÔNG TRÌNH:","DỮ LIỆU CÔNG TRÌNH\n\n             Click Công trình ---->  Dữ liệu đầu vào  \n\n1. Nhập ngày nhận mặt bằng\n\n2. Nhập ngày bắt đầu thi công \n\n3. Nhập ngày không thi công ( Ngày nghỉ lễ, ngày mưa trong quá trình thi công)\n\n\n\n\n\n\n\n\n\n\n\n\n\n\n\n\n\n\n\n\n\n\n\n"]
["III - LẬP KẾ HOẠCH THI CÔNG:","LẬP KẾ HOẠCH THI CÔNG:\nClick Nhật trình công việc  -->Click vào \"Tạo mới\" để tạo công trình mới ( Đối với công trình mới)\n\n     Thao tác với Sheet(\"Nhattrinh\")\n\n*)  Chọn mã hiệu công việc\n1. Công tác chuẩn bị ( Phần này tên nội dung công việc được đặt mặc định): Điều chỉnh ngày và công việc lại cho hợp lý\n\n2. Công tác thi công:\n\nQuy trình nhập liệu:\n\n- Mã hiệu, nội dung công việc nghiệm thu:\n+ Click chuột trái vào côt B  --->  hiện form Mã hiệu công việc.\n+ Để chọn nhanh 1 mã công việc: Tại  dòng tìm kiếm đánh tên đại diện của công việc (Ví dụ muốn chọn mã đất: Tại dòng tìm kiếm đánh chữ đất thì tất cả các mã liên quan đến từ đất được lọc ra). Chọn mã công việc thích hợp, hiệu chỉnh lại mã tiêu chuẩn nghiệm thu, mã thí nghiệm (Nếu cần) sau đó bấm nút \"Chấp nhận\"\n- Cách ghi mã công việc\n+ Khi chọn xong mã công việc tại Form Tại phần nội dung công việc ta chỉnh sửa lại tên công việc cho phù hợp với tên công việc cụ thể của từng công trình\n+ Có thẻ hiệu chỉnh mã hiệu tiêu chuẩn, mã hiệu thí nghiệm bằng cách Click vào Cột K, Cột L để hiện Form\n+ Nhập vị trí xây dựng trên công trình\n+ Nhập ngày bắt đầu, ngày kết thúc (Đối với mã hiệu thi công hoặc lấy mẫu)\n+ Nhập ngày nghiệm thu nội bộ ( Đối với mã nghiệm thu)\n\n\nGhi chú:\n          -  Đối với mã thi công thì không có ngày nghiệm thu (Nội bộ, PYC, NTCV)\n          -  Đối với nghiệm thu thì không có ngày bắt đầu thi công, kết thúc thi công\n\n- Sau khi nhập xong tất cả các mã công việc của công trình.\n\na) Kiểm tra ngày thi công: Từ Menu HSQLCL ---> Click vào nút kiểm tra ngày thi công. Nếu ô bị bôi xanh và chữ gạch giữa tức là ngày nghiệm thu trùng với ngày nghỉ đã khai báo tại dữ liệu đầu vào. Điều chỉnh lại ngày cho hợp lý (Nên tâng ngày thi công lên để kéo dài thời gian thi công ra. Vì tất cả các ngày với ngày nghỉ sẽ không được tính trong thời gian thi công và trong phần xuất ra nhật ký sẽ ghi là Công trình nghỉ không thi công).\n\nb)  Xuất dữ liệu biên bản: Từ Menu HSQLCL ---> Click Xuất dữ liệu biên bản  \n+ Chọn xuất theo hạng mục: Số thứ tự của biên bản được xắp xếp theo trình tự Nhật trình công việc\n+ Chọn xuất theo ngày thi công được xắp xếp theo ngày nghiệm thu (Từ nhỏ đến lớn)\n\nc) Xuất dữ liệu nhật ký: Từ Menu HSQLCL ---> Click Xuất dữ liệu nhật ký\n                    \n\n\n\n                             ( Kết thúc quá trình Lập kế hoạch thi công)\n\n\n\n\n\n\n\n\n\n\n"]
["IV - TÁCH FILE THÀNH FILE MỚI","TÁCH FILE: \n-Từ Menu HSQLCL ---> Click nút \"Tách List biên bản\" -->Chọn loại file cần tách ---> Chọn đường dẫn lưu\n\n\n\nCó 3 loại gồm\n             + List biên bản nghiệm thu công việc xây dựng ( Phục vụ cho trộn dữ liệu từ Execl sang Word)\n             + Biên bản hoàn thành hạng mục ( Phục vụ cho trộn dữ liệu từ Execl sang Word)\n             + List thí nghiệm (Gửi đơn vị thí nghiệm )\n\n\n\n\n\n\n\n\n\n\n\n"]
["IV - XUẤT BIÊN BẢN NGHIỆM THU VÀ BIÊN BẢN NGHIỆM THU:","XUẤT BIÊN BẢN NGHIỆM THU: \n-Từ Menu HSQLCL ---> Click nút \"Xuất biên bản ra file Pdf\"\n- Biên bản nghiệm thu được xuất dưới dạng file Pdf và được lưu vào thư mục chứa file chương trình.\n\n\n\n\n\n\n\n\n\n\n"]
["VI- XUẤT NHẬT KÝ THI CÔNG","Từ Menu HSQLCL ---> Click \"Xuất nhật ký ra file Pdf\""]

{"sheet":"Nhattrinh","index":3,"n_rows":0,"n_cols":0,"rows_kept":0,"cut":false,"hidden":false,"merged":[]}